Ref No,Fund Type,Dept,Cost Centre Description    ,Description    ,Creditor Name    ,GL Code Net Amount,Payment date        
2,Revenue,CAHD,Bed Purchasing - South,Permanent Residential,.,1571.88, 22-Dec-2015
3,Revenue,CAHD,Bed Purchasing - South,Permanent Nursing,.,861.32, 22-Dec-2015
4,Revenue,CAHD,18-25 Year Olds,Permanent Residential,1 St Georges House,13350.08, 22-Dec-2015
5,Revenue,CAHD,Breakthrough and Inclusion Work,Other Supplies & Services,121Turnaround Limited,456.00, 01-Dec-2015
6,Revenue,CAHD,Breakthrough and Inclusion Work,Other Supplies & Services,121Turnaround Limited,1098.16, 21-Dec-2015
7,Revenue,CAHD,Supporting People Programme,Grants to Voluntary Bodies,1625 Independent People,16872.78, 01-Dec-2015
8,Revenue,CAHD,Supporting People Programme,Grants to Voluntary Bodies,1625 Independent People,16872.78, 30-Dec-2015
9,Revenue,CAHD,Bed Purchasing - Southmead Hospital,Permanent Nursing,2 Woodbrook Crescent,777.40, 22-Dec-2015
10,Revenue,CAHD,Home Care - Elderly - South,Day Care / Social Activities,3 Trees Community Support Ltd,198.88, 01-Dec-2015
11,Revenue,CAHD,Home Care - Elderly - North,Day Care / Social Activities,3 Trees Community Support Ltd,2734.60, 01-Dec-2015
12,Revenue,CAHD,Home Care - Elderly - North,Other Small Contracts,3 Trees Community Support Ltd,108.48, 01-Dec-2015
13,Revenue,CAHD,Home Care - Elderly - North,Supported Living,3 Trees Community Support Ltd,10090.47, 01-Dec-2015
14,Revenue,CAHD,Home Care - Elderly - South,Day Care / Social Activities,3 Trees Community Support Ltd,198.88, 10-Dec-2015
15,Revenue,CAHD,Home Care - Elderly - North,Day Care / Social Activities,3 Trees Community Support Ltd,2657.76, 10-Dec-2015
16,Revenue,CAHD,Home Care - Elderly - North,Other Small Contracts,3 Trees Community Support Ltd,108.48, 10-Dec-2015
17,Revenue,CAHD,Home Care - Elderly - North,Supported Living,3 Trees Community Support Ltd,9443.71, 10-Dec-2015
18,Revenue,CAHD,Home Care - Elderly - South,Day Care / Social Activities,3 Trees Community Support Ltd,198.88, 21-Dec-2015
19,Revenue,CAHD,Home Care - Elderly - North,Day Care / Social Activities,3 Trees Community Support Ltd,2653.24, 21-Dec-2015
20,Revenue,CAHD,Home Care - Elderly - North,Other Small Contracts,3 Trees Community Support Ltd,108.48, 21-Dec-2015
21,Revenue,CAHD,Home Care - Elderly - North,Supported Living,3 Trees Community Support Ltd,9443.71, 21-Dec-2015
22,Revenue,CAHD,Home Care - Elderly - South,Day Care / Social Activities,3 Trees Community Support Ltd,198.88, 21-Dec-2015
23,Revenue,CAHD,Home Care - Elderly - North,Day Care / Social Activities,3 Trees Community Support Ltd,2653.24, 21-Dec-2015
24,Revenue,CAHD,Home Care - Elderly - North,Other Small Contracts,3 Trees Community Support Ltd,113.00, 21-Dec-2015
25,Revenue,CAHD,Home Care - Elderly - North,Supported Living,3 Trees Community Support Ltd,9431.77, 21-Dec-2015
26,Revenue,CAHD,Bed Purchasing - South,Permanent Residential,5Th Floor Harlech Court,16236.56, 22-Dec-2015
27,Revenue,CAHD,18-25 Year Olds,Permanent Residential,5Th Floor Harlech Court,13837.80, 22-Dec-2015
28,Revenue,CAHD,18-25 Year Olds,Permanent Residential,5Th Floor Harlech Court,14114.08, 22-Dec-2015
29,Revenue,CAHD,18-25 Year Olds,Permanent Residential,5Th Floor Harlech Court,12656.32, 22-Dec-2015
30,Revenue,CAHD,Bed Purchasing - North,Permanent Residential,5Th Floor Harlech Court,16769.20, 22-Dec-2015
31,Revenue,CAHD,18-25 Year Olds,Permanent Residential,5Th Floor Harlech Court,15925.08, 22-Dec-2015
32,Revenue,CAHD,Bed Purchasing - South,Permanent Residential,5Th Floor Harlech Court,9403.36, 22-Dec-2015
33,Revenue,CAHD,Bed purchasing - S28A Under 65 - South,Permanent Residential,5Th Floor Harlech Court,9854.40, 22-Dec-2015
34,Revenue,CAHD,Bed purchasing - S28A Under 65 - South,Permanent Residential,5Th Floor Harlech Court,10834.28, 22-Dec-2015
35,Revenue,CAHD,Bed Purchasing - South,Permanent Residential,5Th Floor Harlech Court,10352.52, 22-Dec-2015
36,Revenue,CAHD,CSC - Vinney Green Secure Unit,R & M by Departments,A P Thompson Services Limited,815.00, 30-Dec-2015
37,Revenue,CAHD,Bed Purchasing - North,Permanent Nursing,ABI Development Limited,7046.44, 22-Dec-2015
38,Revenue,CAHD,Day Care - South,Day Care / Social Activities,About Me Care and Support Limited,1202.20, 18-Dec-2015
39,Revenue,CAHD,Day Care - North,Day Care / Social Activities,About Me Care and Support Limited,781.28, 24-Dec-2015
40,Revenue,CAHD,Day Care - South,Day Care / Social Activities,About Me Care and Support Limited,780.17, 18-Dec-2015
41,Revenue,CAHD,EY- 2 Yr Old Trajectory Building Funds,Publicity & Promotions,Access Point Ltd,2038.50, 07-Dec-2015
42,Revenue,CAHD,Training Budget - Children`s Social Serv,Training Expenses,Acorn Health & Safety Limited,429.00, 11-Dec-2015
43,Revenue,CAHD,Older People's Commissioned Se,Grants to Voluntary Bodies,Action for Blind People,24242.25, 30-Dec-2015
44,Revenue,CAHD,CSC - Agency Fostering,Foster Parent Allowances,Action for Children,3542.86, 29-Dec-2015
45,Revenue,CAHD,CSC - Allowances,Advertising - General,Adoption UK,495.00, 01-Dec-2015
46,Revenue,CAHD,Mental Health and Emotional Wellbeing,Other Small Contracts,Age UK South Gloucestershire,14475.00, 30-Dec-2015
47,Revenue,CAHD,Home Care - Elderly - South,Other Small Contracts,Agincare Chippenham,1871.10, 07-Dec-2015
48,Revenue,CAHD,Home Care - Elderly - South,Other Small Contracts,Agincare Chippenham,1824.90, 21-Dec-2015
49,Revenue,CAHD,Home Care - Elderly - South,Other Small Contracts,Agincare Chippenham,1836.45, 21-Dec-2015
50,Revenue,CAHD,Home Care - Elderly - South,Other Small Contracts,Agincare Chippenham,1855.70, 29-Dec-2015
51,Revenue,CAHD,Home Care - Elderly - South,Other Small Contracts,Agincare UK Limited,1197.35, 07-Dec-2015
52,Revenue,CAHD,Home Care - Elderly - North,Other Small Contracts,Agincare UK Limited,535.15, 07-Dec-2015
53,Revenue,CAHD,Elderly MH Day Care North,Day Care / Social Activities,Agincare UK Limited,53.90, 07-Dec-2015
54,Revenue,CAHD,Home Care - Elderly - South,Other Small Contracts,Agincare UK Limited,1158.85, 07-Dec-2015
55,Revenue,CAHD,Home Care - Elderly - North,Other Small Contracts,Agincare UK Limited,400.40, 07-Dec-2015
56,Revenue,CAHD,Elderly MH Day Care North,Day Care / Social Activities,Agincare UK Limited,57.75, 07-Dec-2015
57,Revenue,CAHD,Home Care - Elderly - South,Other Small Contracts,Agincare UK Limited,1070.30, 07-Dec-2015
58,Revenue,CAHD,Home Care - Elderly - North,Other Small Contracts,Agincare UK Limited,523.60, 07-Dec-2015
59,Revenue,CAHD,Elderly MH Day Care North,Day Care / Social Activities,Agincare UK Limited,50.05, 07-Dec-2015
60,Revenue,CAHD,Home Care - Elderly - South,Other Small Contracts,Agincare UK Limited,1266.65, 21-Dec-2015
61,Revenue,CAHD,Home Care - Elderly - North,Other Small Contracts,Agincare UK Limited,500.50, 21-Dec-2015
62,Revenue,CAHD,Elderly MH Day Care North,Day Care / Social Activities,Agincare UK Limited,50.05, 21-Dec-2015
63,Revenue,CAHD,Home Care - Elderly - South,Other Small Contracts,Agincare UK Limited,1216.60, 21-Dec-2015
64,Revenue,CAHD,Home Care - Elderly - North,Other Small Contracts,Agincare UK Limited,523.60, 21-Dec-2015
65,Revenue,CAHD,Elderly MH Day Care North,Day Care / Social Activities,Agincare UK Limited,50.05, 21-Dec-2015
66,Revenue,CAHD,Home Care - Elderly - South,Other Small Contracts,Agincare UK Limited,1274.35, 29-Dec-2015
67,Revenue,CAHD,Home Care - Elderly - North,Other Small Contracts,Agincare UK Limited,519.75, 29-Dec-2015
68,Revenue,CAHD,Elderly MH Day Care North,Day Care / Social Activities,Agincare UK Limited,53.90, 29-Dec-2015
69,Revenue,CAHD,Home Care - Elderly - South,Other Small Contracts,Agincare UK Nutfield,38.50, 07-Dec-2015
70,Revenue,CAHD,Home Care - Elderly - North,Other Small Contracts,Agincare UK Nutfield,1732.50, 07-Dec-2015
71,Revenue,CAHD,Home Care - Elderly - North,Other Small Contracts,Agincare UK Nutfield,1605.45, 21-Dec-2015
72,Revenue,CAHD,Home Care - Elderly - North,Other Small Contracts,Agincare UK Nutfield,1767.15, 21-Dec-2015
73,Revenue,CAHD,Home Care - Elderly - North,Other Small Contracts,Agincare UK Nutfield,2136.75, 21-Dec-2015
74,Revenue,CAHD,Home Care - Elderly - North,Other Small Contracts,Agincare UK Nutfield,1925.00, 29-Dec-2015
75,Revenue,CAHD,Training Budget - Children`s Social Serv,Training Expenses,Individual,575.40, 16-Dec-2015
76,Revenue,CAHD,Access Team,Care Management/Assessment Staff Pay,Alexander Leigh Recruitment Ltd,1871.34, 02-Dec-2015
77,Revenue,CAHD,Access Team,Care Management/Assessment Staff Pay,Alexander Leigh Recruitment Ltd,1867.56, 02-Dec-2015
78,Revenue,CAHD,Access Team,Care Management/Assessment Staff Pay,Alexander Leigh Recruitment Ltd,1883.48, 04-Dec-2015
79,Revenue,CAHD,Access Team,Care Management/Assessment Staff Pay,Alexander Leigh Recruitment Ltd,1513.87, 04-Dec-2015
80,Revenue,CAHD,Access Team,Care Management/Assessment Staff Pay,Alexander Leigh Recruitment Ltd,1790.80, 11-Dec-2015
81,Revenue,CAHD,Access Team,Care Management/Assessment Staff Pay,Alexander Leigh Recruitment Ltd,1446.81, 24-Dec-2015
82,Revenue,CAHD,Home Care - Elderly - South,Other Small Contracts,AliMo Care Ltd,1224.74, 03-Dec-2015
83,Revenue,CAHD,Home Care - Elderly - South,Other Small Contracts,AliMo Care Ltd,1107.70, 30-Dec-2015
84,Revenue,CAHD,Home Care - Elderly - South,Other Small Contracts,AliMo Care Ltd,1241.46, 17-Dec-2015
85,Revenue,CAHD,Home Care - Elderly - South,Other Small Contracts,AliMo Care Ltd,1262.36, 30-Dec-2015
86,Revenue,CAHD,Home Care - Elderly - South,Other Small Contracts,AliMo Care Ltd,1124.42, 30-Dec-2015
87,Revenue,CAHD,Training - Adult Services,Training Expenses,All About Food,600.00, 24-Dec-2015
88,Revenue,CAHD,Mental Health and Emotional Wellbeing,Other Small Contracts,Alzheimers Society,10983.75, 30-Dec-2015
89,Revenue,CAHD,Bed Purchasing - South,Permanent Nursing,Ambleside Nusing Ho!,1677.02, 22-Dec-2015
90,Revenue,CAHD,CSC - Agency Fostering,Foster Parent Allowances,Amicus Foster Care Ltd,3314.56, 03-Dec-2015
91,Revenue,CAHD,CSC - Agency Fostering,Foster Parent Allowances,Amicus Foster Care Ltd,3418.14, 30-Dec-2015
92,Revenue,CAHD,Supporting People Programme,Grants to Voluntary Bodies,Anchor Housing,905.17, 01-Dec-2015
93,Revenue,CAHD,Supporting People Programme,Grants to Voluntary Bodies,Anchor Housing,905.17, 30-Dec-2015
94,Revenue,CAHD,CSC - Safeguarding Board,Training Expenses,Anthony Domaille,850.00, 03-Dec-2015
95,Revenue,CAHD,Direct Payments - Phys Dis - North,Grants to Voluntary Bodies,Aquarium Card Management Solutions Ltd,2047.75, 30-Dec-2015
96,Revenue,CAHD,Training Budget - Children`s Social Serv,Training Expenses,Aquaterra Leisure,1205.85, 10-Dec-2015
97,Revenue,CAHD,Bed Purchasing - North,Permanent Residential,Ark Care Homes Ltd,10348.28, 22-Dec-2015
98,Revenue,CAHD,S117 Placements PCT,Permanent Residential,Ash View House,7052.76, 22-Dec-2015
99,Revenue,CAHD,18-25 Year Olds,Permanent Residential,Ash View House,6225.80, 22-Dec-2015
100,Revenue,CAHD,Section 117 Placements MH Younger,Permanent Residential,Ash View House,6565.76, 22-Dec-2015
101,Revenue,CAHD,Bed purchasing - Elderly S117 - South,Permanent Residential,Ash View House,6246.76, 22-Dec-2015
102,Revenue,CAHD,CSC - Care Leavers Independent Living,Bed & Breakfast,Ashley Guest Houses Limited,510.00, 23-Dec-2015
103,Revenue,CAHD,DAT Treatment,Rent,Ashville Asset Management Limited,2421.00, 24-Dec-2015
104,Revenue,CAHD,DAT Treatment,Rent,Ashville Asset Management Limited,6159.00, 24-Dec-2015
105,Revenue,CAHD,Bed Purchasing - North,Permanent Residential,Aspects 2 Limited,6428.16, 22-Dec-2015
106,Revenue,CAHD,Supporting People Programme,Grants to Voluntary Bodies,Aspects and Milestones Trust,3254.35, 30-Dec-2015
107,Revenue,CAHD,Supporting People Programme,Grants to Voluntary Bodies,Aspects and Milestones Trust,1631.60, 30-Dec-2015
108,Revenue,CAHD,Supporting People Programme,Grants to Voluntary Bodies,Aspects and Milestones Trust,2476.54, 30-Dec-2015
109,Revenue,CAHD,Supporting People Programme,Grants to Voluntary Bodies,Aspects and Milestones Trust,3254.35, 30-Dec-2015
110,Revenue,CAHD,Supporting People Programme,Grants to Voluntary Bodies,Aspects and Milestones Trust,1631.60, 30-Dec-2015
111,Revenue,CAHD,Supporting People Programme,Grants to Voluntary Bodies,Aspects and Milestones Trust,2476.54, 30-Dec-2015
112,Revenue,CAHD,Supported Living - South,Private & Voluntary Home Care,Aspirations Support Bristol Limited,1405.44, 29-Dec-2015
113,Revenue,CAHD,Supported Living - South,Private & Voluntary Home Care,Aspirations Support Bristol Limited,829.44, 29-Dec-2015
114,Revenue,CAHD,CSC - Vinney Green Secure Unit,R & M by Departments,ASSA Abloy Ltd,6062.50, 18-Dec-2015
115,Revenue,CAHD,CSC - Vinney Green Secure Unit,Furniture & Fittings Loose,ASSA Abloy Ltd,2215.13, 24-Dec-2015
116,Revenue,CAHD,Bed Purchasing - South,Permanent Residential,Autism Specialised Care Homes,5672.64, 22-Dec-2015
117,Revenue,CAHD,Younger Adult Mental Health,Health Services (Third Party Payments),Avon & Wiltshire Mental Health,1667.00, 30-Dec-2015
118,Revenue,CAHD,Kingswood Centre - Maple Suite,Premises Maintenance by Contractor,Avon Armour Limited,2276.00, 24-Dec-2015
119,Revenue,CAHD,Leadership and Business Support,Other Supplies & Services,Avon Local Pharmaceutical Committee,3960.00, 02-Dec-2015
120,Revenue,CAHD,Schools Specific Grant Income,Schools Funding,Barnardo Services Limited,633.34, 07-Dec-2015
121,Revenue,CAHD,Sexual Health,Other Supplies & Services,Barts Health NHS Trust,1061.90, 22-Dec-2015
122,Revenue,CAHD,Pensions - Non DSG,Annual Pension,Bath & North East Somerset Council,117482.88, 22-Dec-2015
123,Revenue,CAHD,Placements OLA Special Schools and RB,Other L.A.'s - General,Bath & North East Somerset Dist Council,1161.29, 03-Dec-2015
124,Revenue,CAHD,Early Years Development,Catering,Bawa Healthcare & Leisure,1630.00, 18-Dec-2015
125,Revenue,CAHD,Early Years Development,Premises Hire,Bawa Healthcare & Leisure,520.83, 18-Dec-2015
126,Revenue,CAHD,Bed Purchasing - Southmead Hospital,Permanent Nursing,Bayview Nursing & Residential Home,1494.36, 22-Dec-2015
127,Revenue,CAHD,Bed Purchasing - Elderly S117- North,Permanent Nursing,Beaufort Grange Care Home,8990.57, 22-Dec-2015
128,Revenue,CAHD,South Glos Users in South Glos Homes,Permanent Nursing,Beaufort Grange Care Home,896.00, 22-Dec-2015
129,Revenue,CAHD,Bed Purchasing - North,Permanent Residential,Beaufort House,1686.44, 22-Dec-2015
130,Revenue,CAHD,Bed Purchasing - North,Permanent Residential,Beaufort House,1894.80, 22-Dec-2015
131,Revenue,CAHD,Bed Purchasing - North,Permanent Residential,Beaufort House,2425.92, 22-Dec-2015
132,Revenue,CAHD,Bed Purchasing - North,Permanent Residential,Beaufort House,1395.68, 22-Dec-2015
133,Revenue,CAHD,Bed Purchasing - South,Permanent Residential,Beaufort House,1447.40, 22-Dec-2015
134,Revenue,CAHD,Bed Purchasing - North,Permanent Residential,Beaufort House,1822.84, 22-Dec-2015
135,Revenue,CAHD,Bed Purchasing - Southmead Hospital,Permanent Residential,Beaufort House,1270.48, 22-Dec-2015
136,Revenue,CAHD,Bed Purchasing - North,Permanent Residential,Beaufort House,1365.16, 22-Dec-2015
137,Revenue,CAHD,Bed Purchasing - North,Respite Planned - Residential,Beaufort House,1114.28, 22-Dec-2015
138,Revenue,CAHD,Bed Purchasing - Southmead Hospital,Permanent Residential,Beaufort House,1543.28, 22-Dec-2015
139,Revenue,CAHD,Bed Purchasing - North,Permanent Residential,Beaufort House,1960.72, 22-Dec-2015
140,Revenue,CAHD,Bed Purchasing - North,Permanent Residential,Beaufort House,1876.68, 22-Dec-2015
141,Revenue,CAHD,Bed Purchasing - North,Respite Emergency - Residential,Beaufort House,2057.14, 22-Dec-2015
142,Revenue,CAHD,Bed Purchasing - South,Permanent Residential,Bedrock Lodge,3186.88, 22-Dec-2015
143,Revenue,CAHD,Bed Purchasing - South,Permanent Residential,Bedrock Lodge,2976.96, 22-Dec-2015
144,Revenue,CAHD,Section 117 Placements MH Younger,Permanent Residential,Bedrock Lodge,1885.04, 22-Dec-2015
145,Revenue,CAHD,Bed Purchasing - South,Permanent Residential,Beech House,1270.80, 22-Dec-2015
146,Revenue,CAHD,Bed Purchasing - North,Respite Planned - Residential,Beech House,4934.29, 22-Dec-2015
147,Revenue,CAHD,Bed Purchasing - North,Respite Planned - Residential,Beech House,1345.71, 22-Dec-2015
148,Revenue,CAHD,Bed Purchasing - North,Permanent Nursing,Beech House,1663.92, 22-Dec-2015
149,Revenue,CAHD,Bed Purchasing - North,Permanent Nursing,Beech House,2115.56, 22-Dec-2015
150,Revenue,CAHD,Bed Purchasing - North,Permanent Residential,Beech House,1442.80, 22-Dec-2015
151,Revenue,CAHD,South Glos Users in South Glos Homes,Permanent Nursing,Beech House,960.00, 22-Dec-2015
152,Revenue,CAHD,South Glos Users in South Glos Homes,Permanent Nursing,Beech House,2016.00, 22-Dec-2015
153,Revenue,CAHD,Bed Purchasing - North,Permanent Nursing,Beech House,4857.01, 22-Dec-2015
154,Revenue,CAHD,South Glos Users in South Glos Homes,Permanent Nursing,Beech House,2080.00, 22-Dec-2015
155,Revenue,CAHD,Bed Purchasing - North,Permanent Residential,Beech House,1413.56, 22-Dec-2015
156,Revenue,CAHD,Bed Purchasing - North,Permanent Residential,Beech House,5881.75, 22-Dec-2015
157,Revenue,CAHD,Bed Purchasing - North,Permanent Residential,Beech House,2386.80, 22-Dec-2015
158,Revenue,CAHD,Statemented Support Payments to OLAs,Other L.A.'s - General,Beechen Cliff School,716.64, 29-Dec-2015
159,Revenue,CAHD,Home Care - Elderly - North,Other Small Contracts,Bibby Factors Bristol Limited,7921.20, 08-Dec-2015
160,Revenue,CAHD,Home Care - Elderly - North,Day Care / Social Activities,Bibby Factors Bristol Limited,134.40, 08-Dec-2015
161,Revenue,CAHD,Home Care - Elderly - North,Other Small Contracts,Bibby Factors Bristol Limited,7463.40, 08-Dec-2015
162,Revenue,CAHD,Home Care - Elderly - North,Day Care / Social Activities,Bibby Factors Bristol Limited,134.40, 08-Dec-2015
163,Revenue,CAHD,Home Care - Elderly - North,Other Small Contracts,Bibby Factors Bristol Limited,7047.60, 08-Dec-2015
164,Revenue,CAHD,Home Care - Elderly - North,Day Care / Social Activities,Bibby Factors Bristol Limited,134.40, 22-Dec-2015
165,Revenue,CAHD,Home Care - Elderly - North,Other Small Contracts,Bibby Factors Bristol Limited,8001.00, 22-Dec-2015
166,Revenue,CAHD,Home Care - Elderly - North,Day Care / Social Activities,Bibby Factors Bristol Limited,134.40, 21-Dec-2015
167,Revenue,CAHD,Home Care - Elderly - North,Other Small Contracts,Bibby Factors Bristol Limited,8299.20, 21-Dec-2015
168,Revenue,CAHD,Home Care - Elderly - North,Day Care / Social Activities,Bibby Factors Bristol Limited,134.40, 22-Dec-2015
169,Revenue,CAHD,Home Care - Elderly - North,Other Small Contracts,Bibby Factors Bristol Limited,8442.00, 22-Dec-2015
170,Revenue,CAHD,Home Care - Elderly - North,Day Care / Social Activities,Bibby Factors Bristol Limited,134.40, 22-Dec-2015
171,Revenue,CAHD,Home Care - Elderly - North,Other Small Contracts,Bibby Factors Bristol Limited,7946.40, 22-Dec-2015
172,Revenue,CAHD,Home Care - Elderly - North,Day Care / Social Activities,Bibby Factors Bristol Limited,134.40, 24-Dec-2015
173,Revenue,CAHD,Home Care - Elderly - North,Other Small Contracts,Bibby Factors Bristol Limited,7245.00, 24-Dec-2015
174,Revenue,CAHD,Home Care - Elderly - North,Day Care / Social Activities,Bibby Factors Bristol Limited,67.20, 22-Dec-2015
175,Revenue,CAHD,Home Care - Elderly - North,Other Small Contracts,Bibby Factors Bristol Limited,7492.80, 22-Dec-2015
176,Revenue,CAHD,Bed Purchasing - North,Permanent Nursing,Blossom Field,2747.96, 22-Dec-2015
177,Revenue,CAHD,Bed Purchasing - North,Permanent Nursing,Blossom Field,1835.00, 22-Dec-2015
178,Revenue,CAHD,Bed Purchasing - Elderly S117- North,Permanent Nursing,Blossom Field,2012.00, 22-Dec-2015
179,Revenue,CAHD,Bed Purchasing - North,Permanent Nursing,Blossom Field,1393.52, 22-Dec-2015
180,Revenue,CAHD,Bed purchasing - Elderly S117 - South,Permanent Nursing,Blossom Field,4400.00, 22-Dec-2015
181,Revenue,CAHD,South Glos Users in South Glos Homes,Permanent Nursing,Blossom Field,976.00, 22-Dec-2015
182,Revenue,CAHD,Bed purchasing - Elderly S117 - South,Permanent Nursing,Blossom Field,4352.00, 22-Dec-2015
183,Revenue,CAHD,South Glos Users in South Glos Homes,Permanent Nursing,Blossom Field,896.00, 22-Dec-2015
184,Revenue,CAHD,Bed Purchasing - North,Permanent Nursing,Blossom Field,2850.96, 22-Dec-2015
185,Revenue,CAHD,Bed Purchasing - North,Permanent Nursing,Blossom Field,2729.24, 22-Dec-2015
186,Revenue,CAHD,Bed Purchasing - Southmead Hospital,Permanent Nursing,Blossom Field,2586.92, 22-Dec-2015
187,Revenue,CAHD,Bed Purchasing - North,Permanent Nursing,Blossom Fields,1874.48, 22-Dec-2015
188,Revenue,CAHD,Bed Purchasing - Southmead Hospital,Permanent Nursing,Blossom Fields,2111.72, 22-Dec-2015
189,Revenue,CAHD,Bed Purchasing - North,Permanent Nursing,Blossom Fields,2616.92, 22-Dec-2015
190,Revenue,CAHD,Home Care - Elderly - North,Other Small Contracts,Bluebird Care (South Gloucestershire),2485.39, 07-Dec-2015
191,Revenue,CAHD,Home Care - Elderly - North,Other Small Contracts,Bluebird Care (South Gloucestershire),2445.79, 10-Dec-2015
192,Revenue,CAHD,Home Care - Elderly - North,Other Small Contracts,Bluebird Care (South Gloucestershire),2218.58, 22-Dec-2015
193,Revenue,CAHD,Home Care - Elderly - South,Other Small Contracts,Bluebird Care (South Gloucestershire),113.85, 23-Dec-2015
194,Revenue,CAHD,Home Care - Elderly - North,Other Small Contracts,Bluebird Care (South Gloucestershire),2480.93, 23-Dec-2015
195,Revenue,CAHD,Home Care - Elderly - South,Other Small Contracts,Bluebird Care (South Gloucestershire),173.25, 29-Dec-2015
196,Revenue,CAHD,Home Care - Elderly - North,Other Small Contracts,Bluebird Care (South Gloucestershire),2143.84, 29-Dec-2015
197,Revenue,CAHD,Home Care - Elderly - North,Other Small Contracts,Bluebird Care (South Gloucestershire),2297.78, 29-Dec-2015
198,Revenue,CAHD,Home Care - Elderly - South,Other Small Contracts,Bluebird Care (South Gloucestershire),29.70, 29-Dec-2015
199,Revenue,CAHD,Home Care - Elderly - North,Other Small Contracts,Bluebird Care (South Gloucestershire),2297.78, 29-Dec-2015
200,Revenue,CAHD,Training - Adult Services,Training Expenses,Bob Dawson,1425.00, 14-Dec-2015
201,Revenue,CAHD,Virtual School for Looked After Children,Books & Publications,Booktrust,3229.48, 30-Dec-2015
202,Revenue,CAHD,NHS Health Checks & Tobacco Control,Drugs & Medical Supplies,Boots UK Ltd,1638.76, 02-Dec-2015
203,Revenue,CAHD,18-25 Year Olds,Permanent Residential,Bradbury House,8855.64, 22-Dec-2015
204,Revenue,CAHD,Bed Purchasing - North,Permanent Residential,Bradley House,1546.32, 22-Dec-2015
205,Revenue,CAHD,Home Care - Elderly - North,Other Small Contracts,Bradley House Home Care Services,825.12, 07-Dec-2015
206,Revenue,CAHD,Home Care - Elderly - North,Other Small Contracts,Bradley House Home Care Services,833.76, 07-Dec-2015
207,Revenue,CAHD,Home Care - Elderly - North,Other Small Contracts,Bradley House Home Care Services,851.04, 15-Dec-2015
208,Revenue,CAHD,Home Care - Elderly - North,Other Small Contracts,Bradley House Home Care Services,656.64, 21-Dec-2015
209,Revenue,CAHD,Home Care - Elderly - North,Other Small Contracts,Bradley House Home Care Services,604.80, 29-Dec-2015
210,Revenue,CAHD,Sexual Health,Other Small Contracts,Bradley Stoke Surgery,1435.00, 02-Dec-2015
211,Revenue,CAHD,Bed Purchasing - S28A - Over 65- North,Permanent Residential,Brandon Trust,3126.48, 22-Dec-2015
212,Revenue,CAHD,Bed Purchasing - South,Permanent Residential,Brandon Trust,10380.40, 22-Dec-2015
213,Revenue,CAHD,Bed Purchasing - South,Permanent Residential,Brandon Trust,4080.76, 22-Dec-2015
214,Revenue,CAHD,Bed Purchasing - North,Permanent Residential,Brandon Trust,4241.79, 22-Dec-2015
215,Revenue,CAHD,Bed Purchasing - Southmead Hospital,Permanent Nursing,Brandon Trust,4603.08, 22-Dec-2015
216,Revenue,CAHD,Bed Purchasing - South,Permanent Nursing,Brandon Trust,5092.48, 22-Dec-2015
217,Revenue,CAHD,Bed purchasing - S28A Under 65 - South,Permanent Nursing,Brandon Trust,5474.04, 22-Dec-2015
218,Revenue,CAHD,Bed purchasing - S28A Under 65 - South,Permanent Residential,Brandon Trust,263706.25, 22-Dec-2015
219,Revenue,CAHD,Bed purchasing - S28A Under 65 - South,Permanent Residential,Brandon Trust,3341.38, 22-Dec-2015
220,Revenue,CAHD,Bed Purchasing - LD S28A- Over 65- South,Permanent Nursing,Brandon Trust,5190.64, 22-Dec-2015
221,Revenue,CAHD,Bed Purchasing - LD S28A- Over 65- South,Permanent Nursing,Brandon Trust,4904.80, 22-Dec-2015
222,Revenue,CAHD,Bed Purchasing - South,Permanent Residential,Brandon Trust,3309.88, 22-Dec-2015
223,Revenue,CAHD,Bed purchasing - S28A Under 65 - South,Permanent Residential,Brandon Trust,5260.00, 22-Dec-2015
224,Revenue,CAHD,Bed purchasing - S28A Under 65 - South,Permanent Residential,Brandon Trust,5316.28, 22-Dec-2015
225,Revenue,CAHD,Bed purchasing - S28A Under 65 - South,Permanent Nursing,Brandon Trust,5418.04, 22-Dec-2015
226,Revenue,CAHD,Bed purchasing -S28A  Under 65 - North,Permanent Nursing,Brandon Trust,4835.88, 22-Dec-2015
227,Revenue,CAHD,Bed purchasing - S28A Under 65 - South,Permanent Residential,Brandon Trust,5316.28, 22-Dec-2015
228,Revenue,CAHD,Bed Purchasing - LD S28A- Over 65- South,Permanent Residential,Brandon Trust,4795.44, 22-Dec-2015
229,Revenue,CAHD,CSC - Legal Fees,Legal Fees,Brendan Fleming Ltd,514.00, 14-Dec-2015
230,Revenue,CAHD,Bed Purchasing - North,Permanent Residential,Bridge House Care Home,1533.60, 22-Dec-2015
231,Revenue,CAHD,Bed Purchasing - North,Permanent Residential,Bridge House Care Home,1079.20, 22-Dec-2015
232,Revenue,CAHD,Bed Purchasing - North,Permanent Residential,Bridge House Care Home,1531.48, 22-Dec-2015
233,Revenue,CAHD,Bed Purchasing - North,Permanent Residential,Bridge House Care Home,1544.60, 22-Dec-2015
234,Revenue,CAHD,Bed Purchasing - North,Permanent Residential,Bridgwater Court,10055.68, 22-Dec-2015
235,Revenue,CAHD,Bed Purchasing - South,Permanent Residential,Brightbow,2113.88, 22-Dec-2015
236,Revenue,CAHD,MH Purchasing - Younger,Permanent Residential,Brightbow,1503.92, 22-Dec-2015
237,Revenue,CAHD,Health Inequalities,Other Small Contracts,Bristol & Avon Chinese Womens Group,500.00, 30-Dec-2015
238,Revenue,CAHD,Statemented Support Academies,Schools Funding,Bristol & South Gloucestershire UTC,583.30, 29-Dec-2015
239,Revenue,CAHD,Statemented Support Academies,Schools Funding,Bristol & South Gloucestershire UTC,649.97, 29-Dec-2015
240,Revenue,CAHD,Older People's Commissioned Se,Grants to Voluntary Bodies,Bristol Area Stroke Foundation,15749.00, 30-Dec-2015
241,Revenue,CAHD,CSC - Section 17,Preventative Assistance,Bristol Children`s contact Services Ltd,5135.00, 15-Dec-2015
242,Revenue,CAHD,CSC - Section 17,Preventative Assistance,Bristol Children`s contact Services Ltd,1118.00, 08-Dec-2015
243,Revenue,CAHD,ICES / NRS Contract,Daily Living Equipment,Bristol City Council,2273.40, 24-Dec-2015
244,Revenue,CAHD,Transport OLA Special Schools and RB,Client Transport,Bristol City Council,3456.21, 10-Dec-2015
245,Revenue,CAHD,Sensory Support Joint Arrangement,Other L.A.'s - General,Bristol City Council,63197.00, 03-Dec-2015
246,Revenue,CAHD,Placements OLA Special Schools and RB,Other L.A.'s - General,Bristol City Council - Schools,2083.33, 30-Dec-2015
247,Revenue,CAHD,Placements OLA Special Schools and RB,Other L.A.'s - General,Bristol City Council - Schools,2083.33, 30-Dec-2015
248,Revenue,CAHD,Placements OLA Special Schools and RB,Other L.A.'s - General,Bristol City Council - Schools,1333.33, 30-Dec-2015
249,Revenue,CAHD,Statemented Support Payments to OLAs,Other L.A.'s - General,Bristol City Council - Schools,1374.97, 29-Dec-2015
250,Revenue,CAHD,Placements OLA Special Schools and RB,Other L.A.'s - General,Bristol City Council - Schools,2083.33, 30-Dec-2015
251,Revenue,CAHD,Placements OLA Special Schools and RB,Other L.A.'s - General,Bristol City Council - Schools,1333.33, 30-Dec-2015
252,Revenue,CAHD,Placements OLA Special Schools and RB,Other L.A.'s - General,Bristol City Council - Schools,1333.33, 30-Dec-2015
253,Revenue,CAHD,Placements OLA Special Schools and RB,Other L.A.'s - General,Bristol City Council - Schools,2916.67, 30-Dec-2015
254,Revenue,CAHD,Placements OLA Special Schools and RB,Other L.A.'s - General,Bristol City Council - Schools,2083.33, 30-Dec-2015
255,Revenue,CAHD,Placements OLA Special Schools and RB,Other L.A.'s - General,Bristol City Council - Schools,833.33, 30-Dec-2015
256,Revenue,CAHD,Placements OLA Special Schools and RB,Other L.A.'s - General,Bristol City Council - Schools,1333.33, 30-Dec-2015
257,Revenue,CAHD,Placements OLA Special Schools and RB,Other L.A.'s - General,Bristol City Council - Schools,2083.33, 30-Dec-2015
258,Revenue,CAHD,Placements OLA Special Schools and RB,Other L.A.'s - General,Bristol City Council - Schools,4083.31, 30-Dec-2015
259,Revenue,CAHD,Placements OLA Special Schools and RB,Other L.A.'s - General,Bristol City Council - Schools,833.33, 30-Dec-2015
260,Revenue,CAHD,Placements OLA Special Schools and RB,Other L.A.'s - General,Bristol City Council - Schools,833.33, 30-Dec-2015
261,Revenue,CAHD,Placements OLA Special Schools and RB,Other L.A.'s - General,Bristol City Council - Schools,2083.33, 30-Dec-2015
262,Revenue,CAHD,Statemented Support Payments to OLAs,Other L.A.'s - General,Bristol City Council - Schools,641.64, 29-Dec-2015
263,Revenue,CAHD,Placements OLA Special Schools and RB,Other L.A.'s - General,Bristol City Council - Schools,833.33, 30-Dec-2015
264,Revenue,CAHD,Placements OLA Special Schools and RB,Other L.A.'s - General,Bristol City Council - Schools,3667.88, 30-Dec-2015
265,Revenue,CAHD,Placements OLA Special Schools and RB,Other L.A.'s - General,Bristol City Council - Schools,833.33, 30-Dec-2015
266,Revenue,CAHD,Placements OLA Special Schools and RB,Other L.A.'s - General,Bristol City Council - Schools,2083.33, 30-Dec-2015
267,Revenue,CAHD,Placements OLA Special Schools and RB,Other L.A.'s - General,Bristol City Council - Schools,1333.33, 30-Dec-2015
268,Revenue,CAHD,Placements OLA Special Schools and RB,Other L.A.'s - General,Bristol City Council - Schools,2083.33, 30-Dec-2015
269,Revenue,CAHD,Placements OLA Special Schools and RB,Other L.A.'s - General,Bristol City Council - Schools,1666.66, 30-Dec-2015
270,Revenue,CAHD,Placements OLA Special Schools and RB,Other L.A.'s - General,Bristol City Council - Schools,833.33, 30-Dec-2015
271,Revenue,CAHD,Placements OLA Special Schools and RB,Other L.A.'s - General,Bristol City Council - Schools,2083.33, 30-Dec-2015
272,Revenue,CAHD,Placements OLA Special Schools and RB,Other L.A.'s - General,Bristol City Council - Schools,833.33, 30-Dec-2015
273,Revenue,CAHD,Placements OLA Special Schools and RB,Other L.A.'s - General,Bristol City Council - Schools,1333.33, 30-Dec-2015
274,Revenue,CAHD,Placements OLA Special Schools and RB,Other L.A.'s - General,Bristol City Council - Schools,1333.33, 30-Dec-2015
275,Revenue,CAHD,Placements OLA Special Schools and RB,Other L.A.'s - General,Bristol City Council - Schools,833.33, 30-Dec-2015
276,Revenue,CAHD,CSC - Vinney Green Secure Unit,R & M by Departments,Bristol Electrical Wholesale Limited,498.00, 01-Dec-2015
277,Revenue,CAHD,Statemented Support Payments to OLAs,Other L.A.'s - General,Bristol Free School,933.30, 07-Dec-2015
278,Revenue,CAHD,Statemented Support Payments to OLAs,Other L.A.'s - General,Bristol Free School,933.30, 29-Dec-2015
279,Revenue,CAHD,Supported Living - North,Private & Voluntary Home Care,Bristol Houses UK Limited,550.96, 18-Dec-2015
280,Revenue,CAHD,Home Care - Elderly - North,Day Care / Social Activities,Bristol Houses UK Limited,628.16, 21-Dec-2015
281,Revenue,CAHD,Home Care - Elderly - South,Day Care / Social Activities,Bristol Houses UK Limited,1086.40, 21-Dec-2015
282,Revenue,CAHD,Bed and Breakfast,Bed & Breakfast,Bristol Housing & Support Limited,490.00, 21-Dec-2015
283,Revenue,CAHD,Supporting People Programme,Grants to Voluntary Bodies,Bristol Missing Link,2012.42, 01-Dec-2015
284,Revenue,CAHD,Supporting People Programme,Grants to Voluntary Bodies,Bristol Missing Link,1464.82, 01-Dec-2015
285,Revenue,CAHD,Supporting People Programme,Grants to Voluntary Bodies,Bristol Missing Link,2012.42, 30-Dec-2015
286,Revenue,CAHD,Supporting People Programme,Grants to Voluntary Bodies,Bristol Missing Link,1464.82, 30-Dec-2015
287,Revenue,CAHD,Home Care - Elderly - North,SU Employment Support,Britannia House,693.60, 22-Dec-2015
288,Revenue,CAHD,Home Care - Elderly - North,Day Care / Social Activities,Britannia House,924.80, 22-Dec-2015
289,Revenue,CAHD,Home Care - Elderly - North,Day Care / Social Activities,Britannia House,693.60, 22-Dec-2015
290,Revenue,CAHD,Home Care - Elderly - North,Day Care / Social Activities,Britannia House,693.60, 22-Dec-2015
291,Revenue,CAHD,Home Care - Elderly - South,Day Care / Social Activities,Britannia House,693.60, 22-Dec-2015
292,Revenue,CAHD,Home Care - Elderly - North,Day Care / Social Activities,Britannia House,924.80, 22-Dec-2015
293,Revenue,CAHD,Home Care - Elderly - South,Day Care / Social Activities,Britannia House,1156.00, 22-Dec-2015
294,Revenue,CAHD,Home Care - Elderly - South,Day Care / Social Activities,Britannia House,693.60, 22-Dec-2015
295,Revenue,CAHD,Home Care - Elderly - South,Day Care / Social Activities,Britannia House,693.60, 22-Dec-2015
296,Revenue,CAHD,Home Care - Elderly - South,Day Care / Social Activities,Britannia House,693.60, 22-Dec-2015
297,Revenue,CAHD,CSC - Residential Placements,Permanent Residential,Broadwood Educational Services Limited,14571.30, 07-Dec-2015
298,Revenue,CAHD,CSC - Residential Placements,Permanent Residential,Broadwood Educational Services Limited,15057.01, 30-Dec-2015
299,Revenue,CAHD,Supporting People Programme,Grants to Voluntary Bodies,Bromford Housing Group,14201.99, 01-Dec-2015
300,Revenue,CAHD,Supporting People Programme,Grants to Voluntary Bodies,Bromford Housing Group,14201.99, 30-Dec-2015
301,Revenue,CAHD,Sexual Health,External Lecturers Expenses,Brook Advisory Centre (Avon),750.00, 11-Dec-2015
302,Revenue,CAHD,Home Care - Elderly - North,Private & Voluntary Home Care,Brunelcare,23503.00, 07-Dec-2015
303,Revenue,CAHD,Home Care - Elderly - North,Private & Voluntary Home Care,Brunelcare,23503.00, 14-Dec-2015
304,Revenue,CAHD,Home Care - Elderly - North,Private & Voluntary Home Care,Brunelcare,23503.00, 21-Dec-2015
305,Revenue,CAHD,Home Care - Elderly - North,Private & Voluntary Home Care,Brunelcare,23503.00, 24-Dec-2015
306,Revenue,CAHD,Pathway 2 - (Interim Beds),Permanent Nursing,Brunelcare,54600.00, 14-Dec-2015
307,Revenue,CAHD,Bed Purchasing - Southmead Hospital,Permanent Nursing,Brunelcare,2181.04, 24-Dec-2015
308,Revenue,CAHD,Bed Purchasing - South,Permanent Nursing,Brunelcare,2078.31, 24-Dec-2015
309,Revenue,CAHD,Bed Purchasing - South,Permanent Nursing,Brunelcare,2448.94, 24-Dec-2015
310,Revenue,CAHD,Bed Purchasing - Elderly S117- North,Permanent Nursing,Brunelcare,3034.29, 24-Dec-2015
311,Revenue,CAHD,Bed Purchasing - Elderly S117- North,Permanent Nursing,Brunelcare,3034.29, 24-Dec-2015
312,Revenue,CAHD,Bed Purchasing - South,Permanent Nursing,Brunelcare,2245.54, 24-Dec-2015
313,Revenue,CAHD,Bed Purchasing - Southmead Hospital,Permanent Nursing,Brunelcare,2417.61, 24-Dec-2015
314,Revenue,CAHD,Bed Purchasing - Southmead Hospital,Permanent Nursing,Brunelcare,1389.09, 24-Dec-2015
315,Revenue,CAHD,Bed Purchasing - Southmead Hospital,Permanent Nursing,Brunelcare,2381.74, 24-Dec-2015
316,Revenue,CAHD,Bed Purchasing - South,Permanent Nursing,Brunelcare,2493.00, 24-Dec-2015
317,Revenue,CAHD,Bed Purchasing - South,Permanent Nursing,Brunelcare,2211.77, 24-Dec-2015
318,Revenue,CAHD,Bed purchasing - Elderly S117 - South,Permanent Nursing,Brunelcare,3034.29, 24-Dec-2015
319,Revenue,CAHD,Bed Purchasing - North,Permanent Nursing,Brunelcare,2420.91, 24-Dec-2015
320,Revenue,CAHD,Bed Purchasing - Southmead Hospital,Permanent Nursing,Brunelcare,2322.99, 24-Dec-2015
321,Revenue,CAHD,Bed Purchasing - North,Permanent Nursing,Brunelcare,2435.14, 24-Dec-2015
322,Revenue,CAHD,Bed Purchasing - North,Permanent Nursing,Brunelcare,2493.00, 24-Dec-2015
323,Revenue,CAHD,Bed Purchasing - Southmead Hospital,Permanent Nursing,Brunelcare,2493.00, 24-Dec-2015
324,Revenue,CAHD,Bed Purchasing - Southmead Hospital,Permanent Nursing,Brunelcare,2398.29, 24-Dec-2015
325,Revenue,CAHD,Bed Purchasing - Elderly S117- North,Permanent Nursing,Brunelcare,3034.29, 24-Dec-2015
326,Revenue,CAHD,Bed Purchasing - North,Respite Planned - Nursing,Brunelcare,505.71, 24-Dec-2015
327,Revenue,CAHD,Bed Purchasing - South,Permanent Nursing,Brunelcare,606.86, 24-Dec-2015
328,Revenue,CAHD,Bed Purchasing - South,Permanent Nursing,Brunelcare,708.00, 24-Dec-2015
329,Revenue,CAHD,Pathway 2 - (Interim Beds),Permanent Nursing,Brunelcare,15200.00, 29-Dec-2015
330,Revenue,CAHD,Home Care - Elderly - South,Other Small Contracts,Brunelcare,2837.31, 07-Dec-2015
331,Revenue,CAHD,Home Care - Elderly - North,Other Small Contracts,Brunelcare,2274.42, 07-Dec-2015
332,Revenue,CAHD,Day Care - South,Day Care / Social Activities,Brunelcare,28.91, 07-Dec-2015
333,Revenue,CAHD,Home Care - Elderly - South,Other Small Contracts,Brunelcare,2742.32, 07-Dec-2015
334,Revenue,CAHD,Home Care - Elderly - North,Other Small Contracts,Brunelcare,2173.50, 07-Dec-2015
335,Revenue,CAHD,Day Care - South,Day Care / Social Activities,Brunelcare,24.78, 07-Dec-2015
336,Revenue,CAHD,Home Care - Elderly - South,Other Small Contracts,Brunelcare,2692.76, 21-Dec-2015
337,Revenue,CAHD,Home Care - Elderly - North,Other Small Contracts,Brunelcare,2378.88, 21-Dec-2015
338,Revenue,CAHD,Day Care - South,Day Care / Social Activities,Brunelcare,24.78, 21-Dec-2015
339,Revenue,CAHD,Home Care - Elderly - South,Other Small Contracts,Brunelcare,2734.06, 21-Dec-2015
340,Revenue,CAHD,Home Care - Elderly - North,Other Small Contracts,Brunelcare,2383.01, 21-Dec-2015
341,Revenue,CAHD,Day Care - South,Day Care / Social Activities,Brunelcare,28.91, 21-Dec-2015
342,Revenue,CAHD,Home Care - Elderly - South,Other Small Contracts,Brunelcare,2829.05, 29-Dec-2015
343,Revenue,CAHD,Home Care - Elderly - North,Other Small Contracts,Brunelcare,2126.95, 29-Dec-2015
344,Revenue,CAHD,Day Care - South,Day Care / Social Activities,Brunelcare,33.04, 29-Dec-2015
345,Revenue,CAHD,Home Care - Elderly - South,Other Small Contracts,Brunelcare,2655.59, 30-Dec-2015
346,Revenue,CAHD,Home Care - Elderly - North,Other Small Contracts,Brunelcare,2151.73, 30-Dec-2015
347,Revenue,CAHD,Day Care - South,Day Care / Social Activities,Brunelcare,24.78, 30-Dec-2015
348,Revenue,CAHD,Home Care - Elderly - North,Private & Voluntary Home Care,Brunelcare,78450.39, 01-Dec-2015
349,Revenue,CAHD,Woodleaze,Agency Staff (Admin/Support Staff) Pay,BS Project Services Limited,532.64, 02-Dec-2015
350,Revenue,CAHD,Woodleaze,Agency Staff (Admin/Support Staff) Pay,BS Project Services Limited,763.49, 03-Dec-2015
351,Revenue,CAHD,Woodleaze,Agency Staff (Admin/Support Staff) Pay,BS Project Services Limited,527.56, 09-Dec-2015
352,Revenue,CAHD,Woodleaze,Agency Staff (Admin/Support Staff) Pay,BS Project Services Limited,705.17, 16-Dec-2015
353,Revenue,CAHD,Information Systems - Software,Computer Equipment - Purchase,BT Global Services Solutions,985.98, 21-Dec-2015
354,Revenue,CAHD,Bed Purchasing - Southmead Hospital,Permanent Nursing,Bupa Care Services  Bridge House,3849.36, 22-Dec-2015
355,Revenue,CAHD,Bed Purchasing - Southmead Hospital,Permanent Nursing,Bupa Care Services  Bridge House,3392.64, 22-Dec-2015
356,Revenue,CAHD,Bed Purchasing - North,Permanent Nursing,Bupa Care Services  Bridge House,6002.40, 22-Dec-2015
357,Revenue,CAHD,South Glos Users in all other LA Homes,Permanent Nursing,Bupa Care Services  Bridge House,616.56, 22-Dec-2015
358,Revenue,CAHD,Bed Purchasing - North,Permanent Nursing,Bupa Care Services  Bridge House,5709.78, 22-Dec-2015
359,Revenue,CAHD,Bed Purchasing - North,Permanent Nursing,Bupa Care Services  Bridge House,8146.88, 22-Dec-2015
360,Revenue,CAHD,Statemented Support Payments to OLAs,Other L.A.'s - General,Cabot Learning Federation,524.97, 29-Dec-2015
361,Revenue,CAHD,Statemented Support Academies,Schools Funding,Cabot Learning Federation,641.64, 29-Dec-2015
362,Revenue,CAHD,Statemented Support Academies,Schools Funding,Cabot Learning Federation,691.64, 29-Dec-2015
363,Revenue,CAHD,Statemented Support Academies,Schools Funding,Cabot Learning Federation,624.97, 29-Dec-2015
364,Revenue,CAHD,Statemented Support Academies,Schools Funding,Cabot Learning Federation,583.30, 29-Dec-2015
365,Revenue,CAHD,Statemented Support Academies,Schools Funding,Cabot Learning Federation,541.64, 29-Dec-2015
366,Revenue,CAHD,Statemented Support Academies,Schools Funding,Cabot Learning Federation,599.97, 29-Dec-2015
367,Revenue,CAHD,Academy Resource Base Funding,Other Public Bodies,Cabot Learning Federation,1231.51, 24-Dec-2015
368,Revenue,CAHD,Academy Resource Base Funding,Other Public Bodies,Cabot Learning Federation,1613.70, 24-Dec-2015
369,Revenue,CAHD,Academy Resource Base Funding,Other Public Bodies,Cabot Learning Federation,1613.70, 24-Dec-2015
370,Revenue,CAHD,Academy Resource Base Funding,Other Public Bodies,Cabot Learning Federation,509.59, 24-Dec-2015
371,Revenue,CAHD,Academy Resource Base Funding,Other Public Bodies,Cabot Learning Federation,509.59, 24-Dec-2015
372,Revenue,CAHD,Academy Resource Base Funding,Other Public Bodies,Cabot Learning Federation,509.59, 24-Dec-2015
373,Revenue,CAHD,Academy Resource Base Funding,Other Public Bodies,Cabot Learning Federation,509.59, 24-Dec-2015
374,Revenue,CAHD,Academy Resource Base Funding,Other Public Bodies,Cabot Learning Federation,509.59, 24-Dec-2015
375,Revenue,CAHD,Academy Resource Base Funding,Other Public Bodies,Cabot Learning Federation,509.59, 24-Dec-2015
376,Revenue,CAHD,Academy Resource Base Funding,Other Public Bodies,Cabot Learning Federation,1613.70, 24-Dec-2015
377,Revenue,CAHD,Academy Resource Base Funding,Other Public Bodies,Cabot Learning Federation,509.59, 24-Dec-2015
378,Revenue,CAHD,Academy Resource Base Funding,Other Public Bodies,Cabot Learning Federation,509.59, 24-Dec-2015
379,Revenue,CAHD,Academy Resource Base Funding,Other Public Bodies,Cabot Learning Federation,1613.70, 24-Dec-2015
380,Revenue,CAHD,Academy Resource Base Funding,Other Public Bodies,Cabot Learning Federation,509.59, 24-Dec-2015
381,Revenue,CAHD,Academy Resource Base Funding,Other Public Bodies,Cabot Learning Federation,509.59, 24-Dec-2015
382,Revenue,CAHD,Academy Resource Base Funding,Other Public Bodies,Cabot Learning Federation,509.59, 24-Dec-2015
383,Revenue,CAHD,Academy Resource Base Funding,Other Public Bodies,Cabot Learning Federation,1613.70, 24-Dec-2015
384,Revenue,CAHD,Academy Resource Base Funding,Other Public Bodies,Cabot Learning Federation,509.59, 24-Dec-2015
385,Revenue,CAHD,Academy Resource Base Funding,Other Public Bodies,Cabot Learning Federation,509.59, 24-Dec-2015
386,Revenue,CAHD,Academy Resource Base Funding,Other Public Bodies,Cabot Learning Federation,509.59, 24-Dec-2015
387,Revenue,CAHD,Academy Resource Base Funding,Other Public Bodies,Cabot Learning Federation,509.59, 24-Dec-2015
388,Revenue,CAHD,Academy Resource Base Funding,Other Public Bodies,Cabot Learning Federation,509.59, 24-Dec-2015
389,Revenue,CAHD,Academy Resource Base Funding,Other Public Bodies,Cabot Learning Federation,509.59, 24-Dec-2015
390,Revenue,CAHD,Academy Resource Base Funding,Other Public Bodies,Cabot Learning Federation,1613.70, 24-Dec-2015
391,Revenue,CAHD,Academy Resource Base Funding,Other Public Bodies,Cabot Learning Federation,509.59, 24-Dec-2015
392,Revenue,CAHD,Academy Resource Base Funding,Other Public Bodies,Cabot Learning Federation,849.32, 24-Dec-2015
393,Revenue,CAHD,Schools Specific Grant Income - from OLA,Other Public Bodies,Cabot Learning Federation,633.33, 29-Dec-2015
394,Revenue,CAHD,Schools Specific Grant Income - from OLA,Other Public Bodies,Cabot Learning Federation,633.33, 29-Dec-2015
395,Revenue,CAHD,Schools Specific Grant Income - from OLA,Other Public Bodies,Cabot Learning Federation,633.33, 29-Dec-2015
396,Revenue,CAHD,Statemented Support Academies,Schools Funding,Cabot Learning Federation,724.97, 29-Dec-2015
397,Revenue,CAHD,Statemented Support Academies,Schools Funding,Cabot Learning Federation,874.97, 29-Dec-2015
398,Revenue,CAHD,Statemented Support Academies,Schools Funding,Cabot Learning Federation,691.64, 29-Dec-2015
399,Revenue,CAHD,Statemented Support Academies,Schools Funding,Cabot Learning Federation,583.30, 29-Dec-2015
400,Revenue,CAHD,Statemented Support Academies,Schools Funding,Cabot Learning Federation,1316.64, 29-Dec-2015
401,Revenue,CAHD,Statemented Support Academies,Schools Funding,Cabot Learning Federation,624.97, 29-Dec-2015
402,Revenue,CAHD,Statemented Support Academies,Schools Funding,Cabot Learning Federation,899.97, 29-Dec-2015
403,Revenue,CAHD,Statemented Support Academies,Schools Funding,Cabot Learning Federation,683.30, 29-Dec-2015
404,Revenue,CAHD,Statemented Support Academies,Schools Funding,Cabot Learning Federation,1224.97, 29-Dec-2015
405,Revenue,CAHD,Statemented Support Academies,Schools Funding,Cabot Learning Federation,958.30, 29-Dec-2015
406,Revenue,CAHD,Statemented Support Academies,Schools Funding,Cabot Learning Federation,583.30, 29-Dec-2015
407,Revenue,CAHD,Statemented Support Academies,Schools Funding,Cabot Learning Federation,749.97, 29-Dec-2015
408,Revenue,CAHD,Schools Specific Grant Income - from OLA,Other Public Bodies,Cabot Learning Federation,633.33, 29-Dec-2015
409,Revenue,CAHD,Schools Specific Grant Income - from OLA,Other Public Bodies,Cabot Learning Federation,633.33, 29-Dec-2015
410,Revenue,CAHD,Schools Specific Grant Income - from OLA,Other Public Bodies,Cabot Learning Federation,633.33, 29-Dec-2015
411,Revenue,CAHD,Schools Specific Grant Income - from OLA,Other Public Bodies,Cabot Learning Federation,633.33, 29-Dec-2015
412,Revenue,CAHD,Schools Specific Grant Income - from OLA,Other Public Bodies,Cabot Learning Federation,633.33, 29-Dec-2015
413,Revenue,CAHD,Schools Specific Grant Income - from OLA,Other Public Bodies,Cabot Learning Federation,633.33, 29-Dec-2015
414,Revenue,CAHD,Schools Specific Grant Income - from OLA,Other Public Bodies,Cabot Learning Federation,633.33, 29-Dec-2015
415,Revenue,CAHD,Schools Specific Grant Income - from OLA,Other Public Bodies,Cabot Learning Federation,633.33, 29-Dec-2015
416,Revenue,CAHD,Schools Specific Grant Income - from OLA,Other Public Bodies,Cabot Learning Federation,633.33, 29-Dec-2015
417,Revenue,CAHD,Schools Specific Grant Income - from OLA,Other Public Bodies,Cabot Learning Federation,633.33, 29-Dec-2015
418,Revenue,CAHD,Schools Specific Grant Income - from OLA,Other Public Bodies,Cabot Learning Federation,633.33, 29-Dec-2015
419,Revenue,CAHD,Schools Specific Grant Income - from OLA,Other Public Bodies,Cabot Learning Federation,633.33, 29-Dec-2015
420,Revenue,CAHD,Statemented Support Academies,Schools Funding,Cabot Learning Federation,941.64, 29-Dec-2015
421,Revenue,CAHD,Statemented Support Academies,Schools Funding,Cabot Learning Federation,549.97, 29-Dec-2015
422,Revenue,CAHD,Statemented Support Payments to OLAs,Other L.A.'s - General,Cabot Learning Federation,583.30, 29-Dec-2015
423,Revenue,CAHD,Statemented Support Academies,Schools Funding,Cabot Learning Federation,1308.30, 29-Dec-2015
424,Revenue,CAHD,Sexual Health,Other Small Contracts,Cadbury Heath Healthcare,2333.16, 24-Dec-2015
425,Revenue,CAHD,Post 16 High Needs Placements,Other Private Contractors,Cambian Whinfell School Ltd,28366.35, 01-Dec-2015
426,Revenue,CAHD,Post 16 High Needs Placements,Other Private Contractors,Cambian Whinfell School Ltd,11230.91, 16-Dec-2015
427,Revenue,CAHD,Post 16 High Needs Placements,Other Private Contractors,Cambian Whinfell School Ltd,17590.83, 01-Dec-2015
428,Revenue,CAHD,Post 16 High Needs Placements,Other Private Contractors,Cambian Whinfell School Ltd,15575.40, 01-Dec-2015
429,Revenue,CAHD,Early Years Development,Fees - General,Cambium Sustainable Landscapes & Training,498.00, 30-Dec-2015
430,Revenue,CAHD,Home Care - Elderly - South,Supported Living,Camphill Communities Thornbury Limited,220.64, 02-Dec-2015
431,Revenue,CAHD,Home Care - Elderly - North,Day Care / Social Activities,Camphill Communities Thornbury Limited,1225.34, 02-Dec-2015
432,Revenue,CAHD,Home Care - Elderly - North,Supported Living,Camphill Communities Thornbury Limited,1576.00, 02-Dec-2015
433,Revenue,CAHD,Home Care - Elderly - North,Day Care / Social Activities,Camphill Communities Thornbury Limited,1237.16, 10-Dec-2015
434,Revenue,CAHD,Home Care - Elderly - North,Supported Living,Camphill Communities Thornbury Limited,1036.22, 10-Dec-2015
435,Revenue,CAHD,Home Care - Elderly - North,Day Care / Social Activities,Camphill Communities Thornbury Limited,1233.22, 18-Dec-2015
436,Revenue,CAHD,Home Care - Elderly - North,Supported Living,Camphill Communities Thornbury Limited,1386.88, 18-Dec-2015
437,Revenue,CAHD,Home Care - Elderly - North,Day Care / Social Activities,Camphill Communities Thornbury Limited,1103.20, 24-Dec-2015
438,Revenue,CAHD,Home Care - Elderly - North,Supported Living,Camphill Communities Thornbury Limited,1382.94, 24-Dec-2015
439,Revenue,CAHD,Home Care - Elderly - North,Day Care / Social Activities,Camphill Communities Thornbury Limited,1189.88, 30-Dec-2015
440,Revenue,CAHD,Home Care - Elderly - North,Supported Living,Camphill Communities Thornbury Limited,1347.48, 30-Dec-2015
441,Revenue,CAHD,Bed Purchasing - Elderly S117- North,Permanent Residential,Canjayor,2359.24, 22-Dec-2015
442,Revenue,CAHD,Information Systems - Software,Software Support & Maintenance,Capita Business Services Ltd,2600.00, 03-Dec-2015
443,Revenue,CAHD,Home Care - Elderly - South,Other Small Contracts,Care 1st Homecare,4721.75, 24-Dec-2015
444,Revenue,CAHD,Home Care - Elderly - South,Supported Living,Care 1st Homecare,21.25, 24-Dec-2015
445,Revenue,CAHD,Home Care - Elderly - North,One-off Planned Direct Payment,Care 1st Homecare,55.25, 24-Dec-2015
446,Revenue,CAHD,Home Care - Elderly - North,Other Small Contracts,Care 1st Homecare,3514.75, 24-Dec-2015
447,Revenue,CAHD,Home Care - Elderly - South,Other Small Contracts,Care 1st Homecare,4441.25, 24-Dec-2015
448,Revenue,CAHD,Home Care - Elderly - South,Supported Living,Care 1st Homecare,21.25, 24-Dec-2015
449,Revenue,CAHD,Home Care - Elderly - North,One-off Planned Direct Payment,Care 1st Homecare,42.50, 24-Dec-2015
450,Revenue,CAHD,Home Care - Elderly - North,Other Small Contracts,Care 1st Homecare,3417.00, 24-Dec-2015
451,Revenue,CAHD,Home Care - Elderly - South,Other Small Contracts,Care 1st Homecare,3876.00, 24-Dec-2015
452,Revenue,CAHD,Home Care - Elderly - South,Supported Living,Care 1st Homecare,25.50, 24-Dec-2015
453,Revenue,CAHD,Home Care - Elderly - North,One-off Planned Direct Payment,Care 1st Homecare,42.50, 24-Dec-2015
454,Revenue,CAHD,Home Care - Elderly - North,Other Small Contracts,Care 1st Homecare,4419.50, 24-Dec-2015
455,Revenue,CAHD,Purchase of Non-Res Care - South,Day Care / Social Activities,Care Futures,2227.34, 14-Dec-2015
456,Revenue,CAHD,Home Care - Elderly - South,Other Small Contracts,Care Horizons Limited,396.00, 10-Dec-2015
457,Revenue,CAHD,Home Care - Elderly - North,Day Care / Social Activities,Care Horizons Limited,162.00, 10-Dec-2015
458,Revenue,CAHD,Home Care - Elderly - North,Other Small Contracts,Care Horizons Limited,369.00, 10-Dec-2015
459,Revenue,CAHD,Supported Living - North,Private & Voluntary Home Care,Care Horizons Limited,2552.26, 03-Dec-2015
460,Revenue,CAHD,Supported Living - North,Private & Voluntary Home Care,Care Horizons Limited,2552.26, 03-Dec-2015
461,Revenue,CAHD,Purchase of Non-Res Care - North,Day Care / Social Activities,Care Horizons Limited,1356.15, 03-Dec-2015
462,Revenue,CAHD,Purchase of Non-Res Care - North,Day Care / Social Activities,Care Horizons Limited,1007.69, 03-Dec-2015
463,Revenue,CAHD,Supported Living - North,Private & Voluntary Home Care,Care Horizons Limited,2544.88, 03-Dec-2015
464,Revenue,CAHD,Supported Living - North,Private & Voluntary Home Care,Care Horizons Limited,2544.88, 03-Dec-2015
465,Revenue,CAHD,Purchase of Non-Res Care - North,Day Care / Social Activities,Care Horizons Limited,3025.11, 29-Dec-2015
466,Revenue,CAHD,Purchase of Non-Res Care - North,Day Care / Social Activities,Care Horizons Limited,1621.04, 29-Dec-2015
467,Revenue,CAHD,Home Care Monitoring (CM2000),Other Supplies & Services,Care Monitoring 2000 Limited,9623.04, 16-Dec-2015
468,Revenue,CAHD,Home Care Monitoring (CM2000),Other Supplies & Services,Care Monitoring 2000 Limited,9570.29, 15-Dec-2015
469,Revenue,CAHD,Home Care Monitoring (CM2000),Other Supplies & Services,Care Monitoring 2000 Limited,1308.00, 21-Dec-2015
470,Revenue,CAHD,Home Care - Elderly - South,Other Small Contracts,Care UK,3838.99, 10-Dec-2015
471,Revenue,CAHD,Home Care - Elderly - North,Other Small Contracts,Care UK,1453.02, 10-Dec-2015
472,Revenue,CAHD,Home Care - Elderly - South,Other Small Contracts,Care UK,3771.50, 10-Dec-2015
473,Revenue,CAHD,Home Care - Elderly - North,Other Small Contracts,Care UK,1226.73, 10-Dec-2015
474,Revenue,CAHD,Home Care - Elderly - South,Other Small Contracts,Care UK,3719.89, 10-Dec-2015
475,Revenue,CAHD,Home Care - Elderly - North,Other Small Contracts,Care UK,1385.53, 10-Dec-2015
476,Revenue,CAHD,Home Care - Elderly - South,Other Small Contracts,Care UK,3565.06, 16-Dec-2015
477,Revenue,CAHD,Home Care - Elderly - North,Other Small Contracts,Care UK,1449.05, 16-Dec-2015
478,Revenue,CAHD,Home Care - Elderly - South,Other Small Contracts,Care UK,3533.30, 21-Dec-2015
479,Revenue,CAHD,Home Care - Elderly - North,Other Small Contracts,Care UK,1445.08, 21-Dec-2015
480,Revenue,CAHD,Home Care - Elderly - South,Other Small Contracts,Carers R Us (Bristol) Limited,658.52, 07-Dec-2015
481,Revenue,CAHD,Home Care - Elderly - North,Other Small Contracts,Carers R Us (Bristol) Limited,161.60, 07-Dec-2015
482,Revenue,CAHD,Home Care - Elderly - South,Other Small Contracts,Carers R Us (Bristol) Limited,670.64, 07-Dec-2015
483,Revenue,CAHD,Home Care - Elderly - South,Other Small Contracts,Carers R Us (Bristol) Limited,638.32, 07-Dec-2015
484,Revenue,CAHD,Home Care - Elderly - South,Other Small Contracts,Carers R Us (Bristol) Limited,650.44, 07-Dec-2015
485,Revenue,CAHD,Home Care - Elderly - South,Other Small Contracts,Carers R Us (Bristol) Limited,642.36, 11-Dec-2015
486,Revenue,CAHD,Home Care - Elderly - South,Other Small Contracts,Carers R Us (Bristol) Limited,634.28, 24-Dec-2015
487,Revenue,CAHD,Home Care - Elderly - South,Other Small Contracts,Carers R Us (Bristol) Limited,642.36, 24-Dec-2015
488,Revenue,CAHD,SLA Grants - Support Serv,Grants to Voluntary Bodies,Carers Support Centre,12275.00, 30-Dec-2015
489,Revenue,CAHD,SLA Grants - Support Serv,Grants to Voluntary Bodies,Carers Support Centre,24775.00, 30-Dec-2015
490,Revenue,CAHD,Health Inequalities,Other Small Contracts,Carers Support Centre,59557.75, 30-Dec-2015
491,Revenue,CAHD,Home Care - Elderly - South,Other Small Contracts,Caring Comes 1st Ltd,1069.20, 22-Dec-2015
492,Revenue,CAHD,Home Care - Elderly - South,Other Small Contracts,Caring Comes 1st Ltd,594.00, 22-Dec-2015
493,Revenue,CAHD,Home Care - Elderly - South,Other Small Contracts,Caring Comes 1st Ltd,1236.60, 22-Dec-2015
494,Revenue,CAHD,CSC - Vinney Green Secure Unit,R & M by Departments,Carlton Services UK Limited,1074.00, 29-Dec-2015
495,Revenue,CAHD,Statemented Support Academies,Schools Funding,Castle School Education Trust,674.97, 29-Dec-2015
496,Revenue,CAHD,Statemented Support Academies,Schools Funding,Castle School Education Trust,891.64, 29-Dec-2015
497,Revenue,CAHD,Statemented Support Academies,Schools Funding,Castle School Education Trust,783.30, 29-Dec-2015
498,Revenue,CAHD,Statemented Support Academies,Schools Funding,Castle School Education Trust,583.30, 29-Dec-2015
499,Revenue,CAHD,Statemented Support Academies,Schools Funding,Castle School Education Trust,583.30, 29-Dec-2015
500,Revenue,CAHD,Statemented Support Academies,Schools Funding,Castle School Education Trust,524.97, 29-Dec-2015
501,Revenue,CAHD,Statemented Support Academies,Schools Funding,Castle School Education Trust,1324.97, 29-Dec-2015
502,Revenue,CAHD,Statemented Support Academies,Schools Funding,Castle School Education Trust,591.64, 29-Dec-2015
503,Revenue,CAHD,Statemented Support Academies,Schools Funding,Castle School Education Trust,833.30, 29-Dec-2015
504,Revenue,CAHD,Statemented Support Academies,Schools Funding,Castle School Education Trust,649.97, 29-Dec-2015
505,Revenue,CAHD,Statemented Support Academies,Schools Funding,Castle School Education Trust,1474.97, 29-Dec-2015
506,Revenue,CAHD,Statemented Support Academies,Schools Funding,Castle School Education Trust,708.30, 29-Dec-2015
507,Revenue,CAHD,Statemented Support Academies,Schools Funding,Castle School Education Trust,766.64, 29-Dec-2015
508,Revenue,CAHD,Statemented Support Academies,Schools Funding,Castle School Education Trust,583.30, 29-Dec-2015
509,Revenue,CAHD,Statemented Support Academies,Schools Funding,Castle School Education Trust,508.30, 29-Dec-2015
510,Revenue,CAHD,Statemented Support Academies,Schools Funding,Castle School Education Trust,874.97, 29-Dec-2015
511,Revenue,CAHD,Statemented Support Academies,Schools Funding,Castle School Education Trust,733.30, 29-Dec-2015
512,Revenue,CAHD,Statemented Support Academies,Schools Funding,Castle School Education Trust,674.97, 29-Dec-2015
513,Revenue,CAHD,Statemented Support Academies,Schools Funding,Castle School Education Trust,883.30, 29-Dec-2015
514,Revenue,CAHD,Statemented Support Academies,Schools Funding,Castle School Education Trust,891.64, 29-Dec-2015
515,Revenue,CAHD,Statemented Support Academies,Schools Funding,Castle School Education Trust,599.97, 29-Dec-2015
516,Revenue,CAHD,Statemented Support Academies,Schools Funding,Castle School Education Trust,1166.64, 29-Dec-2015
517,Revenue,CAHD,Statemented Support Academies,Schools Funding,Castle School Education Trust,658.30, 29-Dec-2015
518,Revenue,CAHD,Statemented Support Academies,Schools Funding,Castle School Education Trust,608.30, 29-Dec-2015
519,Revenue,CAHD,Schools Specific Grant Income - from OLA,Other Public Bodies,Castle School Education Trust,633.33, 29-Dec-2015
520,Revenue,CAHD,Statemented Support Academies,Schools Funding,Castle School Education Trust,524.97, 29-Dec-2015
521,Revenue,CAHD,Statemented Support Academies,Schools Funding,Castle School Education Trust,533.30, 29-Dec-2015
522,Revenue,CAHD,Statemented Support Academies,Schools Funding,Castle School Education Trust,699.97, 29-Dec-2015
523,Revenue,CAHD,Statemented Support Academies,Schools Funding,Castle School Education Trust,649.97, 29-Dec-2015
524,Revenue,CAHD,Statemented Support Academies,Schools Funding,Castle School Education Trust,508.30, 29-Dec-2015
525,Revenue,CAHD,Statemented Support Academies,Schools Funding,Castle School Education Trust,874.97, 29-Dec-2015
526,Revenue,CAHD,Statemented Support Academies,Schools Funding,Castle School Education Trust,691.64, 29-Dec-2015
527,Revenue,CAHD,Statemented Support Academies,Schools Funding,Castle School Education Trust,558.30, 29-Dec-2015
528,Revenue,CAHD,Statemented Support Academies,Schools Funding,Castle School Education Trust,1133.30, 29-Dec-2015
529,Revenue,CAHD,Formula Redetermination Contingency-Sec,Other Public Bodies,Castle School Education Trust,462524.33, 07-Dec-2015
530,Revenue,CAHD,Statemented Support Academies,Schools Funding,Castle School Education Trust,1283.30, 29-Dec-2015
531,Revenue,CAHD,Social Lettings Agency,Fees - General,Individual,10.53, 01-Dec-2015
532,Revenue,CAHD,Social Lettings Agency,Fees & Charges Income - General,Individual,595.11, 01-Dec-2015
533,Revenue,CAHD,Social Lettings Agency,Fees - General,Individual,10.53, 30-Dec-2015
534,Revenue,CAHD,Social Lettings Agency,Fees & Charges Income - General,Individual,595.11, 30-Dec-2015
535,Revenue,CAHD,Sexual Health,Other Supplies & Services,Central & North West London NHS Foundation Trust,590.04, 21-Dec-2015
536,Revenue,CAHD,Bed Purchasing - North,Permanent Residential,Charlton House,919.52, 22-Dec-2015
537,Revenue,CAHD,Sexual Health,Other Supplies & Services,Chelsea and Westminster Hospital,508.53, 24-Dec-2015
538,Revenue,CAHD,Home Care - Elderly - South,Other Small Contracts,Cherish Able Care Limited,4815.02, 04-Dec-2015
539,Revenue,CAHD,Home Care - Elderly - North,Other Small Contracts,Cherish Able Care Limited,303.84, 04-Dec-2015
540,Revenue,CAHD,Home Care - Elderly - South,Other Small Contracts,Cherish Able Care Limited,4549.16, 11-Dec-2015
541,Revenue,CAHD,Home Care - Elderly - North,Other Small Contracts,Cherish Able Care Limited,240.54, 11-Dec-2015
542,Revenue,CAHD,Home Care - Elderly - South,Other Small Contracts,Cherish Able Care Limited,4435.22, 17-Dec-2015
543,Revenue,CAHD,Home Care - Elderly - North,Other Small Contracts,Cherish Able Care Limited,118.16, 17-Dec-2015
544,Revenue,CAHD,Home Care - Elderly - South,Other Small Contracts,Cherish Able Care Limited,4629.34, 24-Dec-2015
545,Revenue,CAHD,Home Care - Elderly - North,Other Small Contracts,Cherish Able Care Limited,122.38, 24-Dec-2015
546,Revenue,CAHD,Home Care - Elderly - South,Other Small Contracts,Cherish Able Care Limited,4996.48, 30-Dec-2015
547,Revenue,CAHD,Home Care - Elderly - North,Other Small Contracts,Cherish Able Care Limited,122.38, 30-Dec-2015
548,Revenue,CAHD,Bed purchasing -S28A  Under 65 - North,Permanent Residential,Chescombe Lodge,8791.96, 22-Dec-2015
549,Revenue,CAHD,Training Budget - Children`s Social Serv,Training Expenses,Child Trauma Intervention Services,2550.00, 01-Dec-2015
550,Revenue,CAHD,Early Years Development,Conference Expenses,Childcare Consultancy Ltd,1191.69, 03-Dec-2015
551,Revenue,CAHD,CSC - Short Breaks,Grants to Voluntary Bodies,Childrens Playlink,47175.00, 22-Dec-2015
552,Revenue,CAHD,Bed Purchasing - Southmead Hospital,Permanent Nursing,Cholwell House Nursing Home Ltd,1989.76, 22-Dec-2015
553,Revenue,CAHD,CSC - Vinney Green Secure Unit,R & M by Departments,Chubb Systems Limited,715.00, 24-Dec-2015
554,Revenue,CAHD,Bed Purchasing - North,Permanent Residential,Church House,21242.32, 22-Dec-2015
555,Revenue,CAHD,Bed Purchasing - North,Permanent Residential,Church House,11969.12, 22-Dec-2015
556,Revenue,CAHD,Section 117 Placements MH Younger,Permanent Residential,Church House,7649.04, 22-Dec-2015
557,Revenue,CAHD,Bed Purchasing - Southmead Hospital,Permanent Nursing,Churchill Property Services,1698.04, 22-Dec-2015
558,Revenue,CAHD,Learning Difficulties,Premises Hire,Circadian Trust,793.00, 03-Dec-2015
559,Revenue,CAHD,Learning Difficulties,Premises Hire,Circadian Trust,610.00, 11-Dec-2015
560,Revenue,CAHD,18-25 Year Olds,Permanent Residential,Citibase Watford,7088.60, 22-Dec-2015
561,Revenue,CAHD,Bed Purchasing - Elderly S117- North,Permanent Residential,Citibase Watford,9028.60, 22-Dec-2015
562,Revenue,CAHD,18-25 Year Olds,Permanent Residential,Citibase Watford,5514.44, 22-Dec-2015
563,Revenue,CAHD,EY- 2 Yr Old Trajectory Building Funds,Advertising - General,Clear Channel UK Limited,2647.90, 15-Dec-2015
564,Revenue,CAHD,Bed Purchasing - South,Permanent Residential,Cleeve Lodge,568.08, 22-Dec-2015
565,Revenue,CAHD,Bed Purchasing - Southmead Hospital,Permanent Residential,Cleeve Lodge,1475.80, 22-Dec-2015
566,Revenue,CAHD,Bed Purchasing - South,Permanent Residential,Cleeve Lodge,1954.80, 22-Dec-2015
567,Revenue,CAHD,Bed Purchasing - South,Permanent Residential,Cleeve Lodge,1827.76, 22-Dec-2015
568,Revenue,CAHD,Sexual Health,Other Small Contracts,Close Farm Surgery,557.48, 02-Dec-2015
569,Revenue,CAHD,Bed Purchasing - South,Permanent Residential,Collingwood Residential Home,1456.80, 22-Dec-2015
570,Revenue,CAHD,Bed Purchasing - South,Permanent Residential,Collingwood Residential Home,1466.04, 22-Dec-2015
571,Revenue,CAHD,Bed Purchasing - South,Permanent Residential,Collingwood Residential Home,1079.12, 22-Dec-2015
572,Revenue,CAHD,Bed Purchasing - South,Permanent Residential,Collingwood Residential Home,1333.28, 22-Dec-2015
573,Revenue,CAHD,Bed Purchasing - South,Permanent Residential,Collingwood Residential Home,1327.16, 22-Dec-2015
574,Revenue,CAHD,Bed Purchasing - South,Permanent Nursing,Community Integrated Care,664.84, 22-Dec-2015
575,Revenue,CAHD,CSC - Vinney Green Secure Unit,R & M by Departments,Complete Weed Control (North Wessex) Ltd,575.00, 16-Dec-2015
576,Revenue,CAHD,Sexual Health,Other Small Contracts,Concord Medical Centre,1455.64, 02-Dec-2015
577,Revenue,CAHD,Bed and Breakfast,Bed & Breakfast,Connolly & Callaghan Limited,476.00, 03-Dec-2015
578,Revenue,CAHD,Bed and Breakfast,Bed & Breakfast,Connolly & Callaghan Limited,476.00, 02-Dec-2015
579,Revenue,CAHD,Bed and Breakfast,Bed & Breakfast,Connolly & Callaghan Limited,546.00, 03-Dec-2015
580,Revenue,CAHD,Bed and Breakfast,Bed & Breakfast,Connolly & Callaghan Limited,546.00, 03-Dec-2015
581,Revenue,CAHD,Bed and Breakfast,Bed & Breakfast,Connolly & Callaghan Limited,700.00, 02-Dec-2015
582,Revenue,CAHD,Bed and Breakfast,Bed & Breakfast,Connolly & Callaghan Limited,511.00, 03-Dec-2015
583,Revenue,CAHD,Bed and Breakfast,Bed & Breakfast,Connolly & Callaghan Limited,441.00, 03-Dec-2015
584,Revenue,CAHD,Bed and Breakfast,Bed & Breakfast,Connolly & Callaghan Limited,476.00, 01-Dec-2015
585,Revenue,CAHD,Bed and Breakfast,Bed & Breakfast,Connolly & Callaghan Limited,476.00, 03-Dec-2015
586,Revenue,CAHD,Bed and Breakfast,Bed & Breakfast,Connolly & Callaghan Limited,511.00, 02-Dec-2015
587,Revenue,CAHD,Bed and Breakfast,Bed & Breakfast,Connolly & Callaghan Limited,511.00, 02-Dec-2015
588,Revenue,CAHD,Bed and Breakfast,Bed & Breakfast,Connolly & Callaghan Limited,616.00, 11-Dec-2015
589,Revenue,CAHD,Bed and Breakfast,Bed & Breakfast,Connolly & Callaghan Limited,476.00, 02-Dec-2015
590,Revenue,CAHD,Bed and Breakfast,Bed & Breakfast,Connolly & Callaghan Limited,476.00, 08-Dec-2015
591,Revenue,CAHD,Bed and Breakfast,Bed & Breakfast,Connolly & Callaghan Limited,476.00, 09-Dec-2015
592,Revenue,CAHD,Bed and Breakfast,Bed & Breakfast,Connolly & Callaghan Limited,546.00, 08-Dec-2015
593,Revenue,CAHD,Bed and Breakfast,Bed & Breakfast,Connolly & Callaghan Limited,546.00, 08-Dec-2015
594,Revenue,CAHD,Bed and Breakfast,Bed & Breakfast,Connolly & Callaghan Limited,511.00, 08-Dec-2015
595,Revenue,CAHD,Bed and Breakfast,Bed & Breakfast,Connolly & Callaghan Limited,441.00, 08-Dec-2015
596,Revenue,CAHD,Bed and Breakfast,Bed & Breakfast,Connolly & Callaghan Limited,476.00, 08-Dec-2015
597,Revenue,CAHD,Bed and Breakfast,Bed & Breakfast,Connolly & Callaghan Limited,511.00, 09-Dec-2015
598,Revenue,CAHD,Bed and Breakfast,Bed & Breakfast,Connolly & Callaghan Limited,511.00, 09-Dec-2015
599,Revenue,CAHD,Bed and Breakfast,Bed & Breakfast,Connolly & Callaghan Limited,616.00, 09-Dec-2015
600,Revenue,CAHD,Bed and Breakfast,Bed & Breakfast,Connolly & Callaghan Limited,476.00, 09-Dec-2015
601,Revenue,CAHD,Bed and Breakfast,Bed & Breakfast,Connolly & Callaghan Limited,476.00, 11-Dec-2015
602,Revenue,CAHD,Bed and Breakfast,Bed & Breakfast,Connolly & Callaghan Limited,546.00, 11-Dec-2015
603,Revenue,CAHD,Bed and Breakfast,Bed & Breakfast,Connolly & Callaghan Limited,546.00, 11-Dec-2015
604,Revenue,CAHD,Bed and Breakfast,Bed & Breakfast,Connolly & Callaghan Limited,511.00, 11-Dec-2015
605,Revenue,CAHD,Bed and Breakfast,Bed & Breakfast,Connolly & Callaghan Limited,476.00, 11-Dec-2015
606,Revenue,CAHD,Bed and Breakfast,Bed & Breakfast,Connolly & Callaghan Limited,441.00, 11-Dec-2015
607,Revenue,CAHD,Bed Purchasing - Southmead Hospital,Permanent Residential,Coombs Wood House,1192.80, 22-Dec-2015
608,Revenue,CAHD,Sexual Health,Other Small Contracts,Courtside Surgery,2281.54, 02-Dec-2015
609,Revenue,CAHD,Bed Purchasing - S28A - Over 65- North,Permanent Residential,Cream Ii Ltd  Longrun House,8102.76, 22-Dec-2015
610,Revenue,CAHD,Bed Purchasing - South,Permanent Residential,Cream Ii Ltd  Longrun House,5689.32, 22-Dec-2015
611,Revenue,CAHD,Bed purchasing -S28A  Under 65 - North,Permanent Residential,Creedy Court,9392.72, 22-Dec-2015
612,Revenue,CAHD,Bed Purchasing - S28A - Over 65- North,Permanent Residential,Creedy Court,7806.28, 22-Dec-2015
613,Revenue,CAHD,Bed Purchasing - North,Permanent Residential,Creedy Court,12716.84, 22-Dec-2015
614,Revenue,CAHD,SW HAWB Support,Consultants Fees,Creole Consulting Ltd,3749.30, 18-Dec-2015
615,Revenue,CAHD,Schools Specific Grant Income,Other Public Bodies,Crossways Care Limited,633.34, 01-Dec-2015
616,Revenue,CAHD,Independent Special Placements - Pre 16,Other Private Contractors,Cruckton Hall School,40301.33, 15-Dec-2015
617,Revenue,CAHD,Training Budget - Children`s Social Serv,Training Expenses,Cruidin Training and Consultancy Ltd,2144.05, 18-Dec-2015
618,Revenue,CAHD,CSC - Safeguarding Board,Training Expenses,Cruidin Training and Consultancy Ltd,500.00, 18-Dec-2015
619,Revenue,CAHD,Public Health Project Funding,Consultants Fees,D Harvey Consulting Limited,3098.25, 30-Dec-2015
620,Revenue,CAHD,Public Health Project Funding,Consultants Fees,D Harvey Consulting Limited,1400.00, 30-Dec-2015
621,Revenue,CAHD,Public Health Project Funding,Consultants Fees,D Harvey Consulting Limited,1980.75, 30-Dec-2015
622,Revenue,CAHD,Public Health Project Funding,Consultants Fees,D Harvey Consulting Limited,2992.50, 30-Dec-2015
623,Revenue,CAHD,Bed Purchasing - South,Permanent Residential,Daneswood,11113.64, 22-Dec-2015
624,Revenue,CAHD,Bed Purchasing - North,Permanent Residential,Daneswood,9213.64, 22-Dec-2015
625,Revenue,CAHD,Bed Purchasing - Elderly S117- North,Permanent Nursing,Danshell Healthcare Group,11653.52, 22-Dec-2015
626,Revenue,CAHD,Learning Difficulties PSL,Other Supplies & Services,Individual,2105.50, 22-Dec-2015
627,Revenue,CAHD,Tenancy Start Up Scheme,Other Supplies & Services,Individual,1500.00, 01-Dec-2015
628,Revenue,CAHD,CSC - Special Guardianship Orders,Special Payments,Denise Presland,794.30, 04-Dec-2015
629,Revenue,CAHD,18-25 Year Olds,Day Care / Social Activities,Design 4 Life Ltd,762.36, 29-Dec-2015
630,Revenue,CAHD,18-25 Year Olds,Day Care / Social Activities,Design 4 Life Ltd,1905.90, 29-Dec-2015
631,Revenue,CAHD,Community Support - South,Preventative Assistance,Design 4 Life Ltd,3811.80, 02-Dec-2015
632,Revenue,CAHD,Home Care - Elderly - South,Supported Living,Design House,5349.36, 22-Dec-2015
633,Revenue,CAHD,Home Care - Elderly - South,Supported Living,Design House,2674.68, 22-Dec-2015
634,Revenue,CAHD,Home Care - Elderly - South,Supported Living,Design House,5718.40, 22-Dec-2015
635,Revenue,CAHD,Home Care - Elderly - South,Supported Living,Design House,2859.20, 22-Dec-2015
636,Revenue,CAHD,Home Care - Elderly - South,Supported Living,Design House,5848.64, 22-Dec-2015
637,Revenue,CAHD,Home Care - Elderly - South,Supported Living,Design House,2924.32, 22-Dec-2015
638,Revenue,CAHD,Home Care - Elderly - South,Supported Living,Design House,2794.08, 22-Dec-2015
639,Revenue,CAHD,Home Care - Elderly - South,Supported Living,Design House,2463.04, 22-Dec-2015
640,Revenue,CAHD,Home Care - Elderly - South,Supported Living,Design House,2463.04, 22-Dec-2015
641,Revenue,CAHD,Home Care - Elderly - South,Supported Living,Design House,4698.16, 22-Dec-2015
642,Revenue,CAHD,Home Care - Elderly - South,Supported Living,Design House,2349.08, 22-Dec-2015
643,Revenue,CAHD,Home Care - Elderly - South,Supported Living,Design House,7600.80, 22-Dec-2015
644,Revenue,CAHD,Home Care - Elderly - South,Supported Living,Design House,3800.40, 22-Dec-2015
645,Revenue,CAHD,Home Care - Elderly - South,Supported Living,Design House,2707.24, 22-Dec-2015
646,Revenue,CAHD,Home Care - Elderly - South,Supported Living,Design House,2756.08, 22-Dec-2015
647,Revenue,CAHD,Home Care - Elderly - South,Supported Living,Design House,2107.28, 22-Dec-2015
648,Revenue,CAHD,Home Care - Elderly - South,Supported Living,Design House,2107.28, 22-Dec-2015
649,Revenue,CAHD,Bed Purchasing - South,Permanent Residential,Devon & Cornwall Autistic Community Trus,8880.84, 22-Dec-2015
650,Revenue,CAHD,CSC - Vinney Green Secure Unit,Medical Fees,DGF Psychology Limited,3200.00, 01-Dec-2015
651,Revenue,CAHD,Home Care - Elderly - South,Day Care / Social Activities,Dhek Bhal,196.00, 01-Dec-2015
652,Revenue,CAHD,Home Care - Elderly - South,Other Small Contracts,Dhek Bhal,196.00, 01-Dec-2015
653,Revenue,CAHD,Home Care - Elderly - North,Other Small Contracts,Dhek Bhal,117.60, 01-Dec-2015
654,Revenue,CAHD,Home Care - Elderly - South,Day Care / Social Activities,Dhek Bhal,137.20, 10-Dec-2015
655,Revenue,CAHD,Home Care - Elderly - South,Other Small Contracts,Dhek Bhal,274.40, 10-Dec-2015
656,Revenue,CAHD,Home Care - Elderly - North,Other Small Contracts,Dhek Bhal,117.60, 10-Dec-2015
657,Revenue,CAHD,Home Care - Elderly - South,Day Care / Social Activities,Dhek Bhal,259.70, 22-Dec-2015
658,Revenue,CAHD,Home Care - Elderly - South,Other Small Contracts,Dhek Bhal,274.40, 22-Dec-2015
659,Revenue,CAHD,Home Care - Elderly - North,Other Small Contracts,Dhek Bhal,117.60, 22-Dec-2015
660,Revenue,CAHD,Home Care - Elderly - South,Day Care / Social Activities,Dhek Bhal,200.90, 22-Dec-2015
661,Revenue,CAHD,Home Care - Elderly - South,Other Small Contracts,Dhek Bhal,230.30, 22-Dec-2015
662,Revenue,CAHD,Home Care - Elderly - North,Other Small Contracts,Dhek Bhal,117.60, 22-Dec-2015
663,Revenue,CAHD,Health Inequalities,Other Small Contracts,Dhek Bhal,500.00, 30-Dec-2015
664,Revenue,CAHD,Bed Purchasing - South,Permanent Residential,Dimensions  Suite 2,4933.76, 22-Dec-2015
665,Revenue,CAHD,Supported Living - South,Private & Voluntary Home Care,Dimensions (UK) Ltd,8006.68, 29-Dec-2015
666,Revenue,CAHD,"Physical Activity, Nutrition & Obesity",Project Funding,Discovery Learning & WMC Ltd,1400.00, 24-Dec-2015
667,Revenue,CAHD,Training Budget - Children`s Social Serv,Training Expenses,Do The Write Thing,1700.00, 24-Dec-2015
668,Revenue,CAHD,Community Support - MH < 65,Preventative Assistance,Dobbins Industrial Cleaning Limited,740.00, 29-Dec-2015
669,Revenue,CAHD,Home Care - Elderly - South,Day Care / Social Activities,DoCare Ltd,40.24, 15-Dec-2015
670,Revenue,CAHD,Home Care - Elderly - South,Other Small Contracts,DoCare Ltd,1881.22, 15-Dec-2015
671,Revenue,CAHD,Home Care - Elderly - North,Other Small Contracts,DoCare Ltd,5668.81, 15-Dec-2015
672,Revenue,CAHD,Home Care - Elderly - South,Day Care / Social Activities,DoCare Ltd,40.24, 15-Dec-2015
673,Revenue,CAHD,Home Care - Elderly - South,Other Small Contracts,DoCare Ltd,1825.89, 15-Dec-2015
674,Revenue,CAHD,Home Care - Elderly - North,Other Small Contracts,DoCare Ltd,5361.98, 15-Dec-2015
675,Revenue,CAHD,Home Care - Elderly - South,Day Care / Social Activities,DoCare Ltd,40.24, 10-Dec-2015
676,Revenue,CAHD,Home Care - Elderly - South,Other Small Contracts,DoCare Ltd,1810.81, 10-Dec-2015
677,Revenue,CAHD,Home Care - Elderly - North,Other Small Contracts,DoCare Ltd,5467.61, 10-Dec-2015
678,Revenue,CAHD,Home Care - Elderly - South,Day Care / Social Activities,DoCare Ltd,30.18, 21-Dec-2015
679,Revenue,CAHD,Home Care - Elderly - South,Other Small Contracts,DoCare Ltd,1770.56, 21-Dec-2015
680,Revenue,CAHD,Home Care - Elderly - North,Other Small Contracts,DoCare Ltd,5301.62, 21-Dec-2015
681,Revenue,CAHD,CSC - Vinney Green Secure Unit,Membership Fees,Dods Parliamentary Communications Limited,645.00, 24-Dec-2015
682,Revenue,CAHD,Statemented Support Academies,Schools Funding,Downend School,591.64, 29-Dec-2015
683,Revenue,CAHD,Statemented Support Academies,Schools Funding,Downend School,1008.30, 29-Dec-2015
684,Revenue,CAHD,Statemented Support Academies,Schools Funding,Downend School,1083.30, 29-Dec-2015
685,Revenue,CAHD,Statemented Support Academies,Schools Funding,Downend School,1166.64, 29-Dec-2015
686,Revenue,CAHD,Statemented Support Academies,Schools Funding,Downend School,583.30, 29-Dec-2015
687,Revenue,CAHD,Statemented Support Academies,Schools Funding,Downend School,583.30, 29-Dec-2015
688,Revenue,CAHD,Schools Specific Grant Income - from OLA,Other Public Bodies,Downend School,633.33, 29-Dec-2015
689,Revenue,CAHD,Schools Specific Grant Income - from OLA,Other Public Bodies,Downend School,633.33, 29-Dec-2015
690,Revenue,CAHD,Social Lettings Agency,Other Supplies & Services,Individual,605.64, 24-Dec-2015
691,Revenue,CAHD,Sexual Health,Other Small Contracts,Drs Male Thompson & Lewis,505.86, 02-Dec-2015
692,Revenue,CAHD,MH Purchasing - Younger,Permanent Residential,Dunraven House,1875.40, 22-Dec-2015
693,Revenue,CAHD,Bed Purchasing - Southmead Hospital,Permanent Residential,Dylan House,790.41, 22-Dec-2015
694,Revenue,CAHD,Statemented Support Payments to OLAs,Other L.A.'s - General,Dyson Perrins C of E Academy,541.64, 29-Dec-2015
695,Revenue,CAHD,Bed and Breakfast,Bed & Breakfast,E J Bartlett,434.00, 01-Dec-2015
696,Revenue,CAHD,Bed and Breakfast,Bed & Breakfast,E J Bartlett,420.00, 01-Dec-2015
697,Revenue,CAHD,Bed and Breakfast,Bed & Breakfast,E J Bartlett,504.00, 10-Dec-2015
698,Revenue,CAHD,Bed and Breakfast,Bed & Breakfast,E J Bartlett,490.00, 01-Dec-2015
699,Revenue,CAHD,Bed and Breakfast,Bed & Breakfast,E J Bartlett,434.00, 10-Dec-2015
700,Revenue,CAHD,Bed and Breakfast,Bed & Breakfast,E J Bartlett,420.00, 09-Dec-2015
701,Revenue,CAHD,Bed and Breakfast,Bed & Breakfast,E J Bartlett,504.00, 09-Dec-2015
702,Revenue,CAHD,Bed and Breakfast,Bed & Breakfast,E J Bartlett,434.00, 15-Dec-2015
703,Revenue,CAHD,Bed and Breakfast,Bed & Breakfast,E J Bartlett,420.00, 15-Dec-2015
704,Revenue,CAHD,Bed and Breakfast,Bed & Breakfast,E J Bartlett,504.00, 21-Dec-2015
705,Revenue,CAHD,Bed and Breakfast,Bed & Breakfast,E J Bartlett,434.00, 24-Dec-2015
706,Revenue,CAHD,Bed and Breakfast,Bed & Breakfast,E J Bartlett,420.00, 24-Dec-2015
707,Revenue,CAHD,Bed Purchasing - North,Permanent Residential,East Court,2238.40, 22-Dec-2015
708,Revenue,CAHD,Home Care - Elderly - South,Day Care / Social Activities,Easton Community Centre,526.08, 22-Dec-2015
709,Revenue,CAHD,Home Care - Elderly - South,Day Care / Social Activities,Easton Community Centre,526.08, 22-Dec-2015
710,Revenue,CAHD,Home Care - Elderly - North,Day Care / Social Activities,Easton Community Centre,526.08, 22-Dec-2015
711,Revenue,CAHD,Home Care - Elderly - North,Day Care / Social Activities,Easton Community Centre,526.08, 22-Dec-2015
712,Revenue,CAHD,CSC - Adoption West Project,Conference Expenses,Eastwood Park Limited,1552.08, 18-Dec-2015
713,Revenue,CAHD,Assistant Directors,Conference Expenses,Eastwood Park Limited,2654.17, 30-Dec-2015
714,Revenue,CAHD,Home Care - Elderly - South,Day Care / Social Activities,Eclipse Office Park,743.04, 22-Dec-2015
715,Revenue,CAHD,Home Care - Elderly - North,Day Care / Social Activities,Eclipse Office Park,990.72, 22-Dec-2015
716,Revenue,CAHD,Home Care - Elderly - South,Day Care / Social Activities,Eclipse Office Park,619.20, 22-Dec-2015
717,Revenue,CAHD,Home Care - Elderly - South,Day Care / Social Activities,Eclipse Office Park,743.04, 22-Dec-2015
718,Revenue,CAHD,Home Care - Elderly - South,Day Care / Social Activities,Eclipse Office Park,866.88, 22-Dec-2015
719,Revenue,CAHD,Home Care - Elderly - South,Day Care / Social Activities,Eclipse Office Park,743.04, 22-Dec-2015
720,Revenue,CAHD,Home Care - Elderly - South,Day Care / Social Activities,Eclipse Office Park,866.88, 22-Dec-2015
721,Revenue,CAHD,Home Care - Elderly - South,Day Care / Social Activities,Eclipse Office Park,1238.40, 22-Dec-2015
722,Revenue,CAHD,Home Care - Elderly - South,Day Care / Social Activities,Eclipse Office Park,743.04, 22-Dec-2015
723,Revenue,CAHD,Home Care - Elderly - South,Day Care / Social Activities,Eclipse Office Park,866.88, 22-Dec-2015
724,Revenue,CAHD,Home Care - Elderly - South,Day Care / Social Activities,Eclipse Office Park,990.72, 22-Dec-2015
725,Revenue,CAHD,Training - Adult Services,Training Expenses,Edge Training & Consultancy Limited,925.00, 03-Dec-2015
726,Revenue,CAHD,Bed Purchasing - Southmead Hospital,Permanent Residential,Edgecumbe Lodge,3417.90, 22-Dec-2015
727,Revenue,CAHD,Bed Purchasing - South,Permanent Residential,Edgecumbe Lodge,1201.56, 22-Dec-2015
728,Revenue,CAHD,Bed Purchasing - South,Permanent Residential,Edgecumbe Lodge,1060.40, 22-Dec-2015
729,Revenue,CAHD,Bed Purchasing - Southmead Hospital,Permanent Residential,Edgecumbe Lodge,1617.48, 22-Dec-2015
730,Revenue,CAHD,Bed Purchasing - Southmead Hospital,Permanent Residential,Edgecumbe Lodge,2021.60, 22-Dec-2015
731,Revenue,CAHD,Bed Purchasing - North,Permanent Residential,Edgecumbe Lodge,1022.44, 22-Dec-2015
732,Revenue,CAHD,Bed Purchasing - South,Permanent Residential,Edgecumbe Lodge,1444.84, 22-Dec-2015
733,Revenue,CAHD,Bed Purchasing - South,Permanent Residential,Edgecumbe Lodge,1569.60, 22-Dec-2015
734,Revenue,CAHD,Bed Purchasing - Southmead Hospital,Permanent Residential,Edgecumbe Lodge,1546.32, 22-Dec-2015
735,Revenue,CAHD,Bed Purchasing - South,Permanent Residential,Edgecumbe Lodge,1145.92, 22-Dec-2015
736,Revenue,CAHD,Bed Purchasing - North,Permanent Residential,Edgecumbe Lodge,1356.56, 22-Dec-2015
737,Revenue,CAHD,South Glos Users in South Glos Homes,Permanent Nursing,Edgemont House Ltd,1008.00, 22-Dec-2015
738,Revenue,CAHD,Bed Purchasing - South,Permanent Residential,Edgemont House Ltd,1150.20, 22-Dec-2015
739,Revenue,CAHD,Bed Purchasing - Southmead Hospital,Permanent Residential,Edgemont House Ltd,1322.80, 22-Dec-2015
740,Revenue,CAHD,Bed Purchasing - North,Permanent Residential,Edgemont House Ltd,1270.80, 22-Dec-2015
741,Revenue,CAHD,Bed Purchasing - South,Permanent Residential,Edgemont House Ltd,1311.36, 22-Dec-2015
742,Revenue,CAHD,Bed Purchasing - South,Permanent Nursing,Edgemont View Nursing Home,1402.24, 22-Dec-2015
743,Revenue,CAHD,South Glos Users in South Glos Homes,Permanent Nursing,Edgemont View Nursing Home,656.00, 22-Dec-2015
744,Revenue,CAHD,Bed Purchasing - North,Permanent Nursing,Edgemont View Nursing Home,1232.16, 22-Dec-2015
745,Revenue,CAHD,Bed Purchasing - South,Permanent Nursing,Edgemont View Nursing Home,1763.04, 22-Dec-2015
746,Revenue,CAHD,Bed Purchasing - South,Permanent Nursing,Edgemont View Nursing Home,1457.44, 22-Dec-2015
747,Revenue,CAHD,Bed Purchasing - South,Permanent Nursing,Edgemont View Nursing Home,1648.40, 22-Dec-2015
748,Revenue,CAHD,Bed Purchasing - South,Permanent Nursing,Edgemont View Nursing Home,1209.88, 22-Dec-2015
749,Revenue,CAHD,Supporting People Programme,Grants to Voluntary Bodies,Elim Housing Association Limited,5072.70, 01-Dec-2015
750,Revenue,CAHD,Supporting People Programme,Grants to Voluntary Bodies,Elim Housing Association Limited,5072.70, 30-Dec-2015
751,Revenue,CAHD,Home Care - Elderly - South,Day Care / Social Activities,Elite Home Care Ltd,35.36, 29-Dec-2015
752,Revenue,CAHD,Home Care - Elderly - South,Other Small Contracts,Elite Home Care Ltd,6382.48, 29-Dec-2015
753,Revenue,CAHD,Home Care - Elderly - North,Other Small Contracts,Elite Home Care Ltd,340.34, 29-Dec-2015
754,Revenue,CAHD,Home Care - Elderly - South,Day Care / Social Activities,Elite Home Care Ltd,35.36, 01-Dec-2015
755,Revenue,CAHD,Home Care - Elderly - South,Other Small Contracts,Elite Home Care Ltd,6223.36, 01-Dec-2015
756,Revenue,CAHD,Home Care - Elderly - North,Other Small Contracts,Elite Home Care Ltd,335.92, 01-Dec-2015
757,Revenue,CAHD,Home Care - Elderly - South,Day Care / Social Activities,Elite Home Care Ltd,35.36, 11-Dec-2015
758,Revenue,CAHD,Home Care - Elderly - South,Other Small Contracts,Elite Home Care Ltd,6006.78, 11-Dec-2015
759,Revenue,CAHD,Home Care - Elderly - North,Other Small Contracts,Elite Home Care Ltd,335.92, 11-Dec-2015
760,Revenue,CAHD,Home Care - Elderly - South,Day Care / Social Activities,Elite Home Care Ltd,35.36, 21-Dec-2015
761,Revenue,CAHD,Home Care - Elderly - South,Other Small Contracts,Elite Home Care Ltd,5997.94, 21-Dec-2015
762,Revenue,CAHD,Home Care - Elderly - North,Other Small Contracts,Elite Home Care Ltd,335.92, 21-Dec-2015
763,Revenue,CAHD,Home Care - Elderly - South,Day Care / Social Activities,Elite Home Care Ltd,35.36, 22-Dec-2015
764,Revenue,CAHD,Home Care - Elderly - South,Other Small Contracts,Elite Home Care Ltd,5975.84, 22-Dec-2015
765,Revenue,CAHD,Home Care - Elderly - North,Other Small Contracts,Elite Home Care Ltd,335.92, 22-Dec-2015
766,Revenue,CAHD,Home Care - Elderly - South,Day Care / Social Activities,Elite Home Care Ltd,35.36, 30-Dec-2015
767,Revenue,CAHD,Home Care - Elderly - South,Other Small Contracts,Elite Home Care Ltd,5613.40, 30-Dec-2015
768,Revenue,CAHD,Home Care - Elderly - North,Other Small Contracts,Elite Home Care Ltd,335.92, 30-Dec-2015
769,Revenue,CAHD,Hospital Tuition,Other Private Contractors,Ellern Mede School,10385.00, 03-Dec-2015
770,Revenue,CAHD,Hospital Tuition,Other Private Contractors,Ellern Mede School,11160.00, 30-Dec-2015
771,Revenue,CAHD,Hospital Tuition,Other Private Contractors,Ellern Mede School,11160.00, 30-Dec-2015
772,Revenue,CAHD,Sexual Health,Other Small Contracts,Emersons Green Medical Centre,846.54, 02-Dec-2015
773,Revenue,CAHD,CSC - Agency Fostering,Foster Parent Allowances,Enhanced Foster Care Ltd,4650.00, 29-Dec-2015
774,Revenue,CAHD,Bed Purchasing - North,Permanent Residential,Epworth House,1053.36, 22-Dec-2015
775,Revenue,CAHD,Home Care - Elderly - South,Other Small Contracts,Everycare (Bristol) Ltd,4312.90, 11-Dec-2015
776,Revenue,CAHD,Home Care - Elderly - North,Day Care / Social Activities,Everycare (Bristol) Ltd,64.50, 11-Dec-2015
777,Revenue,CAHD,Home Care - Elderly - North,Other Small Contracts,Everycare (Bristol) Ltd,1044.90, 11-Dec-2015
778,Revenue,CAHD,Home Care - Elderly - South,Other Small Contracts,Everycare (Bristol) Ltd,4037.70, 11-Dec-2015
779,Revenue,CAHD,Home Care - Elderly - North,Day Care / Social Activities,Everycare (Bristol) Ltd,98.90, 11-Dec-2015
780,Revenue,CAHD,Home Care - Elderly - North,Other Small Contracts,Everycare (Bristol) Ltd,868.60, 11-Dec-2015
781,Revenue,CAHD,Home Care - Elderly - South,Other Small Contracts,Everycare (Bristol) Ltd,3818.40, 11-Dec-2015
782,Revenue,CAHD,Home Care - Elderly - North,Day Care / Social Activities,Everycare (Bristol) Ltd,120.40, 11-Dec-2015
783,Revenue,CAHD,Home Care - Elderly - North,Other Small Contracts,Everycare (Bristol) Ltd,980.40, 11-Dec-2015
784,Revenue,CAHD,Home Care - Elderly - South,Other Small Contracts,Everycare (Bristol) Ltd,3685.10, 22-Dec-2015
785,Revenue,CAHD,Home Care - Elderly - North,Day Care / Social Activities,Everycare (Bristol) Ltd,111.80, 22-Dec-2015
786,Revenue,CAHD,Home Care - Elderly - North,Other Small Contracts,Everycare (Bristol) Ltd,881.50, 22-Dec-2015
787,Revenue,CAHD,Information Systems - Software,Telephones,Evolving Networks Ltd,708.75, 15-Dec-2015
788,Revenue,CAHD,Bed Purchasing - Southmead Hospital,Permanent Nursing,Fairview Court,2446.80, 22-Dec-2015
789,Revenue,CAHD,Bed Purchasing - Southmead Hospital,Permanent Nursing,Fairview Court,2184.64, 22-Dec-2015
790,Revenue,CAHD,Bed Purchasing - South,Permanent Nursing,Fairview Court,16865.44, 22-Dec-2015
791,Revenue,CAHD,Bed Purchasing - South,Permanent Nursing,Fairview Court,2446.80, 22-Dec-2015
792,Revenue,CAHD,Bed Purchasing - Southmead Hospital,Permanent Nursing,Fairview Court,1896.04, 22-Dec-2015
793,Revenue,CAHD,Bed Purchasing - Southmead Hospital,Permanent Nursing,Fairview Court,1204.96, 22-Dec-2015
794,Revenue,CAHD,Bed purchasing - Elderly S117 - South,Permanent Nursing,Fairview Court,2012.00, 22-Dec-2015
795,Revenue,CAHD,Bed Purchasing - South,Permanent Nursing,Fairview Court,7253.01, 22-Dec-2015
796,Revenue,CAHD,Bed Purchasing - South,Permanent Nursing,Fairview Court,2446.80, 22-Dec-2015
797,Revenue,CAHD,South Glos Users in South Glos Homes,Permanent Nursing,Fairview Court,1072.00, 22-Dec-2015
798,Revenue,CAHD,Bed Purchasing - South,Permanent Nursing,Fairview Court,1655.12, 22-Dec-2015
799,Revenue,CAHD,Bed Purchasing - South,Permanent Nursing,Fairview Court,1786.36, 22-Dec-2015
800,Revenue,CAHD,Bed Purchasing - South,Permanent Nursing,Fairview Court,2019.04, 22-Dec-2015
801,Revenue,CAHD,Bed Purchasing - Southmead Hospital,Permanent Nursing,Fairview Court,2349.72, 22-Dec-2015
802,Revenue,CAHD,Bed Purchasing - South,Permanent Nursing,Fairview Court Care Home,1169.44, 29-Dec-2015
803,Revenue,CAHD,Bed Purchasing - South,Permanent Nursing,Fairview Court Care Home,984.86, 29-Dec-2015
804,Revenue,CAHD,Bed Purchasing - South,Permanent Nursing,Fairview Court Care Home,2014.33, 29-Dec-2015
805,Revenue,CAHD,Bed Purchasing - South,Permanent Nursing,Fairview Court Care Home,2014.33, 29-Dec-2015
806,Revenue,CAHD,Bed Purchasing - North,Permanent Nursing,Fairview Court Care Home,1662.94, 29-Dec-2015
807,Revenue,CAHD,Bed purchasing - Elderly S117 - South,Permanent Nursing,Fairview Court Care Home,2555.61, 29-Dec-2015
808,Revenue,CAHD,Bed Purchasing - South,Permanent Nursing,Fairview Court Care Home,1208.42, 29-Dec-2015
809,Revenue,CAHD,Bed Purchasing - South,Permanent Nursing,Fairview Court Care Home,1017.69, 29-Dec-2015
810,Revenue,CAHD,Bed Purchasing - South,Permanent Nursing,Fairview Court Care Home,2081.47, 29-Dec-2015
811,Revenue,CAHD,Bed Purchasing - South,Permanent Nursing,Fairview Court Care Home,2081.47, 29-Dec-2015
812,Revenue,CAHD,Bed Purchasing - North,Permanent Nursing,Fairview Court Care Home,1718.37, 29-Dec-2015
813,Revenue,CAHD,Bed purchasing - Elderly S117 - South,Permanent Nursing,Fairview Court Care Home,2640.80, 29-Dec-2015
814,Revenue,CAHD,Pathway 2 - (Interim Beds),Permanent Nursing,Fairview Court Care Home,10200.00, 07-Dec-2015
815,Revenue,CAHD,Pathway 2 - (Interim Beds),Permanent Nursing,Fairview Court Care Home,10200.00, 14-Dec-2015
816,Revenue,CAHD,Bed purchasing - Elderly S117 - South,Permanent Residential,Fairview House,1937.56, 22-Dec-2015
817,Revenue,CAHD,Bed Purchasing - Southmead Hospital,Permanent Residential,Fairview House,1043.16, 22-Dec-2015
818,Revenue,CAHD,Bed Purchasing - South,Permanent Residential,Fairview House,868.80, 22-Dec-2015
819,Revenue,CAHD,Bed Purchasing - South,Permanent Residential,Fairview House,669.04, 22-Dec-2015
820,Revenue,CAHD,Bed Purchasing - South,Permanent Residential,Fairview House,1270.80, 22-Dec-2015
821,Revenue,CAHD,Bed Purchasing - South,Permanent Residential,Fairview House,1222.60, 22-Dec-2015
822,Revenue,CAHD,Bed Purchasing - South,Permanent Residential,Fairview House,1134.96, 22-Dec-2015
823,Revenue,CAHD,Bed Purchasing - Southmead Hospital,Permanent Residential,Fairview House,1270.80, 22-Dec-2015
824,Revenue,CAHD,Bed Purchasing - South,Permanent Residential,Fairview House,1044.00, 22-Dec-2015
825,Revenue,CAHD,Bed Purchasing - South,Permanent Residential,Fairview House,1455.56, 22-Dec-2015
826,Revenue,CAHD,Bed Purchasing - Southmead Hospital,Permanent Residential,Fairview House,1407.12, 22-Dec-2015
827,Revenue,CAHD,Bed Purchasing - Southmead Hospital,Permanent Residential,Faith House,560.04, 22-Dec-2015
828,Revenue,CAHD,Bed Purchasing - Southmead Hospital,Permanent Residential,Faith House,1252.12, 22-Dec-2015
829,Revenue,CAHD,Bed Purchasing - North,Permanent Residential,Fernbank,7790.28, 22-Dec-2015
830,Revenue,CAHD,Bed Purchasing - North,Permanent Nursing,Field House Care Home,2530.80, 22-Dec-2015
831,Revenue,CAHD,Statemented Support Payments to OLAs,Other L.A.'s - General,Filton Avenue Primary School,608.30, 29-Dec-2015
832,Revenue,CAHD,Home Care - Elderly - South,Other Small Contracts,Firstpoint Homecare Ltd,1867.20, 10-Dec-2015
833,Revenue,CAHD,Home Care - Elderly - North,Other Small Contracts,Firstpoint Homecare Ltd,1104.76, 10-Dec-2015
834,Revenue,CAHD,Home Care - Elderly - South,Other Small Contracts,Firstpoint Homecare Ltd,2096.71, 10-Dec-2015
835,Revenue,CAHD,Home Care - Elderly - North,Day Care / Social Activities,Firstpoint Homecare Ltd,46.68, 10-Dec-2015
836,Revenue,CAHD,Home Care - Elderly - North,Other Small Contracts,Firstpoint Homecare Ltd,1061.97, 10-Dec-2015
837,Revenue,CAHD,Home Care - Elderly - South,Other Small Contracts,Firstpoint Homecare Ltd,1929.44, 10-Dec-2015
838,Revenue,CAHD,Home Care - Elderly - North,Day Care / Social Activities,Firstpoint Homecare Ltd,46.68, 10-Dec-2015
839,Revenue,CAHD,Home Care - Elderly - North,Other Small Contracts,Firstpoint Homecare Ltd,1058.08, 10-Dec-2015
840,Revenue,CAHD,Home Care - Elderly - South,Other Small Contracts,Firstpoint Homecare Ltd,1867.20, 10-Dec-2015
841,Revenue,CAHD,Home Care - Elderly - North,Day Care / Social Activities,Firstpoint Homecare Ltd,46.68, 10-Dec-2015
842,Revenue,CAHD,Home Care - Elderly - North,Other Small Contracts,Firstpoint Homecare Ltd,1030.85, 10-Dec-2015
843,Revenue,CAHD,Home Care - Elderly - South,Other Small Contracts,Firstpoint Homecare Ltd,1443.19, 15-Dec-2015
844,Revenue,CAHD,Home Care - Elderly - North,Day Care / Social Activities,Firstpoint Homecare Ltd,46.68, 15-Dec-2015
845,Revenue,CAHD,Home Care - Elderly - North,Other Small Contracts,Firstpoint Homecare Ltd,851.93, 15-Dec-2015
846,Revenue,CAHD,Home Care - Elderly - South,Other Small Contracts,Firstpoint Homecare Ltd,1921.66, 15-Dec-2015
847,Revenue,CAHD,Home Care - Elderly - North,Day Care / Social Activities,Firstpoint Homecare Ltd,46.68, 15-Dec-2015
848,Revenue,CAHD,Home Care - Elderly - North,Other Small Contracts,Firstpoint Homecare Ltd,1058.08, 15-Dec-2015
849,Revenue,CAHD,Home Care - Elderly - South,Other Small Contracts,Firstpoint Homecare Ltd,1832.19, 15-Dec-2015
850,Revenue,CAHD,Home Care - Elderly - North,Day Care / Social Activities,Firstpoint Homecare Ltd,46.68, 15-Dec-2015
851,Revenue,CAHD,Home Care - Elderly - North,Other Small Contracts,Firstpoint Homecare Ltd,1058.08, 15-Dec-2015
852,Revenue,CAHD,Home Care - Elderly - South,Other Small Contracts,Firstpoint Homecare Ltd,1952.78, 15-Dec-2015
853,Revenue,CAHD,Home Care - Elderly - North,Day Care / Social Activities,Firstpoint Homecare Ltd,46.68, 15-Dec-2015
854,Revenue,CAHD,Home Care - Elderly - North,Other Small Contracts,Firstpoint Homecare Ltd,1091.30, 15-Dec-2015
855,Revenue,CAHD,Home Care - Elderly - South,Other Small Contracts,Firstpoint Homecare Ltd,1960.56, 07-Dec-2015
856,Revenue,CAHD,Home Care - Elderly - North,Day Care / Social Activities,Firstpoint Homecare Ltd,46.68, 07-Dec-2015
857,Revenue,CAHD,Home Care - Elderly - North,Other Small Contracts,Firstpoint Homecare Ltd,813.01, 07-Dec-2015
858,Revenue,CAHD,Home Care - Elderly - South,Other Small Contracts,Firstpoint Homecare Ltd,1964.45, 01-Dec-2015
859,Revenue,CAHD,Home Care - Elderly - North,Day Care / Social Activities,Firstpoint Homecare Ltd,46.68, 01-Dec-2015
860,Revenue,CAHD,Home Care - Elderly - North,Other Small Contracts,Firstpoint Homecare Ltd,692.42, 01-Dec-2015
861,Revenue,CAHD,Home Care - Elderly - South,Other Small Contracts,Firstpoint Homecare Ltd,1902.21, 10-Dec-2015
862,Revenue,CAHD,Home Care - Elderly - North,Day Care / Social Activities,Firstpoint Homecare Ltd,46.68, 10-Dec-2015
863,Revenue,CAHD,Home Care - Elderly - North,Other Small Contracts,Firstpoint Homecare Ltd,785.78, 10-Dec-2015
864,Revenue,CAHD,Home Care - Elderly - South,Other Small Contracts,Firstpoint Homecare Ltd,1898.32, 11-Dec-2015
865,Revenue,CAHD,Home Care - Elderly - North,Day Care / Social Activities,Firstpoint Homecare Ltd,46.68, 11-Dec-2015
866,Revenue,CAHD,Home Care - Elderly - North,Other Small Contracts,Firstpoint Homecare Ltd,774.13, 11-Dec-2015
867,Revenue,CAHD,Home Care - Elderly - South,Other Small Contracts,Firstpoint Homecare Ltd,1956.96, 22-Dec-2015
868,Revenue,CAHD,Home Care - Elderly - North,Day Care / Social Activities,Firstpoint Homecare Ltd,46.68, 22-Dec-2015
869,Revenue,CAHD,Home Care - Elderly - North,Other Small Contracts,Firstpoint Homecare Ltd,801.34, 22-Dec-2015
870,Revenue,CAHD,CSC - Agency Fostering,Foster Parent Allowances,Foster Care Associates Limited,2257.50, 16-Dec-2015
871,Revenue,CAHD,CSC - Agency Fostering,Foster Parent Allowances,Foster Care Associates Limited,3998.40, 16-Dec-2015
872,Revenue,CAHD,CSC - Agency Fostering,Foster Parent Allowances,Foster Care Associates Limited,2332.75, 24-Dec-2015
873,Revenue,CAHD,CSC - Agency Fostering,Foster Parent Allowances,Foster Care Associates Limited,4131.68, 24-Dec-2015
874,Revenue,CAHD,CSC - Agency Fostering,Foster Parent Allowances,Foster Care Associates Limited,5303.44, 24-Dec-2015
875,Revenue,CAHD,Home Care - Elderly - South,Day Care / Social Activities,Fourways Care Limited,337.25, 10-Dec-2015
876,Revenue,CAHD,Home Care - Elderly - South,Other Small Contracts,Fourways Care Limited,1729.00, 10-Dec-2015
877,Revenue,CAHD,Home Care - Elderly - North,Other Small Contracts,Fourways Care Limited,389.50, 10-Dec-2015
878,Revenue,CAHD,Home Care - Elderly - South,Day Care / Social Activities,Fourways Care Limited,446.50, 10-Dec-2015
879,Revenue,CAHD,Home Care - Elderly - South,Other Small Contracts,Fourways Care Limited,2056.75, 10-Dec-2015
880,Revenue,CAHD,Home Care - Elderly - North,Other Small Contracts,Fourways Care Limited,432.25, 10-Dec-2015
881,Revenue,CAHD,Home Care - Elderly - South,Day Care / Social Activities,Fourways Care Limited,389.50, 11-Dec-2015
882,Revenue,CAHD,Home Care - Elderly - South,Other Small Contracts,Fourways Care Limited,1885.75, 11-Dec-2015
883,Revenue,CAHD,Home Care - Elderly - North,Other Small Contracts,Fourways Care Limited,456.00, 11-Dec-2015
884,Revenue,CAHD,Home Care - Elderly - South,Day Care / Social Activities,Fourways Care Limited,389.50, 21-Dec-2015
885,Revenue,CAHD,Home Care - Elderly - South,Other Small Contracts,Fourways Care Limited,1814.50, 21-Dec-2015
886,Revenue,CAHD,Home Care - Elderly - North,Other Small Contracts,Fourways Care Limited,460.75, 21-Dec-2015
887,Revenue,CAHD,Home Care - Elderly - South,Day Care / Social Activities,Fourways Care Limited,332.50, 29-Dec-2015
888,Revenue,CAHD,Home Care - Elderly - South,Other Small Contracts,Fourways Care Limited,2617.25, 29-Dec-2015
889,Revenue,CAHD,Home Care - Elderly - North,Other Small Contracts,Fourways Care Limited,465.50, 29-Dec-2015
890,Revenue,CAHD,Post 16 High Needs Placements,Other Private Contractors,Foxes Academy,19937.67, 04-Dec-2015
891,Revenue,CAHD,Health Inequalities,Other Small Contracts,Frampton Cotterell Carers Group,500.00, 30-Dec-2015
892,Revenue,CAHD,Supporting People Programme,Grants to Voluntary Bodies,Freeways Trust Limited,8053.04, 01-Dec-2015
893,Revenue,CAHD,Supporting People Programme,Grants to Voluntary Bodies,Freeways Trust Limited,8053.04, 30-Dec-2015
894,Revenue,CAHD,Freeways,Permanent Residential,Freeways Trust Limited,3651.28, 14-Dec-2015
895,Revenue,CAHD,Freeways,Permanent Residential,Freeways Trust Limited,2294.48, 14-Dec-2015
896,Revenue,CAHD,Freeways,Permanent Residential,Freeways Trust Limited,2372.68, 14-Dec-2015
897,Revenue,CAHD,Freeways,Permanent Residential,Freeways Trust Limited,3027.08, 14-Dec-2015
898,Revenue,CAHD,Freeways,Permanent Residential,Freeways Trust Limited,2373.28, 14-Dec-2015
899,Revenue,CAHD,Freeways,Permanent Residential,Freeways Trust Limited,3395.68, 14-Dec-2015
900,Revenue,CAHD,Freeways,Permanent Residential,Freeways Trust Limited,3278.08, 14-Dec-2015
901,Revenue,CAHD,Freeways,Permanent Residential,Freeways Trust Limited,3560.84, 14-Dec-2015
902,Revenue,CAHD,Freeways,Permanent Residential,Freeways Trust Limited,2695.08, 14-Dec-2015
903,Revenue,CAHD,Freeways,Permanent Residential,Freeways Trust Limited,2711.48, 14-Dec-2015
904,Revenue,CAHD,Freeways,Permanent Residential,Freeways Trust Limited,3456.40, 14-Dec-2015
905,Revenue,CAHD,Freeways,Permanent Residential,Freeways Trust Limited,3111.64, 14-Dec-2015
906,Revenue,CAHD,Freeways,Permanent Residential,Freeways Trust Limited,3608.28, 14-Dec-2015
907,Revenue,CAHD,Freeways,Permanent Residential,Freeways Trust Limited,2451.72, 14-Dec-2015
908,Revenue,CAHD,Freeways,Permanent Residential,Freeways Trust Limited,2451.72, 14-Dec-2015
909,Revenue,CAHD,Freeways,Permanent Residential,Freeways Trust Limited,2451.72, 14-Dec-2015
910,Revenue,CAHD,Freeways,Permanent Residential,Freeways Trust Limited,513.51, 14-Dec-2015
911,Revenue,CAHD,Supported Living - South,Private & Voluntary Home Care,Freeways Trust Limited,1203.30, 21-Dec-2015
912,Revenue,CAHD,Supported Living - South,Private & Voluntary Home Care,Freeways Trust Limited,1306.44, 04-Dec-2015
913,Revenue,CAHD,Supported Living - South,Private & Voluntary Home Care,Freeways Trust Limited,879.24, 18-Dec-2015
914,Revenue,CAHD,Purchase of Non-Res Care - North,Day Care / Social Activities,Freeways Trust Limited,1936.88, 21-Dec-2015
915,Revenue,CAHD,Bed Purchasing - North,Permanent Residential,Freeways Trust Ltd,2891.96, 22-Dec-2015
916,Revenue,CAHD,Bed purchasing - S28A Under 65 - South,Permanent Residential,Freeways Trust Ltd,2959.48, 22-Dec-2015
917,Revenue,CAHD,Bed Purchasing - North,Permanent Residential,Freeways Trust Ltd,3164.68, 22-Dec-2015
918,Revenue,CAHD,Bed Purchasing - North,Permanent Residential,Freeways Trust Ltd,2312.72, 22-Dec-2015
919,Revenue,CAHD,Bed Purchasing - North,Permanent Residential,Freeways Trust Ltd,2761.92, 22-Dec-2015
920,Revenue,CAHD,Bed Purchasing - South,Permanent Residential,Freeways Trust Ltd,3375.88, 22-Dec-2015
921,Revenue,CAHD,Bed Purchasing - North,Permanent Residential,Freeways Trust Ltd,2286.84, 22-Dec-2015
922,Revenue,CAHD,Bed Purchasing - South,Permanent Residential,Freeways Trust Ltd,2426.72, 22-Dec-2015
923,Revenue,CAHD,Bed Purchasing - North,Permanent Residential,Freeways Trust Ltd,2683.12, 22-Dec-2015
924,Revenue,CAHD,Bed Purchasing - North,Permanent Residential,Freeways Trust Ltd,3185.76, 22-Dec-2015
925,Revenue,CAHD,18-25 Year Olds,Permanent Residential,Freeways Trust Ltd,3409.64, 22-Dec-2015
926,Revenue,CAHD,Bed Purchasing - North,Permanent Residential,Freeways Trust Ltd,3866.08, 22-Dec-2015
927,Revenue,CAHD,Pathway 3 - (Complex Beds),Permanent Nursing,Frenchay House,3120.00, 14-Dec-2015
928,Revenue,CAHD,Bed Purchasing - South,Permanent Nursing,Frenchay Park Nursing Home,2262.60, 22-Dec-2015
929,Revenue,CAHD,Bed Purchasing - South,Permanent Nursing,Frenchay Park Nursing Home,1508.40, 22-Dec-2015
930,Revenue,CAHD,Bed Purchasing - Southmead Hospital,Permanent Nursing,Frenchay Park Nursing Home,2200.00, 22-Dec-2015
931,Revenue,CAHD,Health Inequalities,Other Small Contracts,"Friends, Families and Travellers",2320.00, 21-Dec-2015
932,Revenue,CAHD,Bed Purchasing - South,Permanent Nursing,Fshc  1St Floor,900.32, 22-Dec-2015
933,Revenue,CAHD,Bed Purchasing - South,Permanent Nursing,Fshc  1St Floor,1398.80, 22-Dec-2015
934,Revenue,CAHD,Bed Purchasing - Southmead Hospital,Permanent Residential,Fshc  1St Floor,896.92, 22-Dec-2015
935,Revenue,CAHD,Bed Purchasing - South,Permanent Nursing,Fshc  1St Floor,1013.96, 22-Dec-2015
936,Revenue,CAHD,Bed Purchasing - Southmead Hospital,Permanent Nursing,Fshc  1St Floor,1308.48, 22-Dec-2015
937,Revenue,CAHD,Bed Purchasing - South,Permanent Nursing,Fshc  1St Floor,23350.48, 22-Dec-2015
938,Revenue,CAHD,Bed Purchasing - Southmead Hospital,Permanent Nursing,Fshc  1St Floor,1362.80, 22-Dec-2015
939,Revenue,CAHD,Bed Purchasing - Southmead Hospital,Permanent Nursing,Fshc  1St Floor,1398.80, 22-Dec-2015
940,Revenue,CAHD,Bed Purchasing - Southmead Hospital,Permanent Nursing,Fshc  1St Floor,1398.80, 22-Dec-2015
941,Revenue,CAHD,Bed Purchasing - Southmead Hospital,Permanent Nursing,Fshc  1St Floor,1064.28, 22-Dec-2015
942,Revenue,CAHD,Bed Purchasing - South,Permanent Nursing,Fshc  1St Floor,1261.32, 22-Dec-2015
943,Revenue,CAHD,Bed Purchasing - Southmead Hospital,Permanent Residential,Fshc  1St Floor,580.66, 22-Dec-2015
944,Revenue,CAHD,Bed Purchasing - Southmead Hospital,Permanent Nursing,Fshc  1St Floor,1746.80, 22-Dec-2015
945,Revenue,CAHD,Bed Purchasing - Southmead Hospital,Permanent Nursing,Fshc  1St Floor,1434.87, 22-Dec-2015
946,Revenue,CAHD,Bed Purchasing - Southmead Hospital,Permanent Nursing,Fshc  1St Floor,1398.80, 22-Dec-2015
947,Revenue,CAHD,Bed Purchasing - South,Permanent Nursing,Fshc  1St Floor,1142.76, 22-Dec-2015
948,Revenue,CAHD,Bed Purchasing - Southmead Hospital,Permanent Nursing,Fshc  1St Floor,1382.44, 22-Dec-2015
949,Revenue,CAHD,Bed Purchasing - South,Permanent Nursing,Fshc  1St Floor,1344.08, 22-Dec-2015
950,Revenue,CAHD,Bed Purchasing - Southmead Hospital,Permanent Nursing,Fshc  1St Floor,1398.80, 22-Dec-2015
951,Revenue,CAHD,Bed Purchasing - Southmead Hospital,Permanent Residential,Fshc  1St Floor,546.36, 22-Dec-2015
952,Revenue,CAHD,Bed Purchasing - South,Permanent Nursing,Fshc  1St Floor,1548.67, 22-Dec-2015
953,Revenue,CAHD,Bed Purchasing - South,Permanent Nursing,Fshc  1St Floor,1398.80, 22-Dec-2015
954,Revenue,CAHD,Bed Purchasing - North,Permanent Nursing,Fshc  1St Floor,1904.00, 22-Dec-2015
955,Revenue,CAHD,Bed Purchasing - Southmead Hospital,Permanent Nursing,Fshc  1St Floor,1398.80, 22-Dec-2015
956,Revenue,CAHD,Bed Purchasing - Southmead Hospital,Permanent Nursing,Fshc  1St Floor,1207.68, 22-Dec-2015
957,Revenue,CAHD,Bed Purchasing - South,Permanent Nursing,Fshc  1St Floor,1398.80, 22-Dec-2015
958,Revenue,CAHD,Bed Purchasing - South,Permanent Nursing,Fshc  1St Floor,1354.20, 22-Dec-2015
959,Revenue,CAHD,Bed Purchasing - North,Respite Emergency - Nursing,Fshc  1St Floor,1045.57, 22-Dec-2015
960,Revenue,CAHD,Bed Purchasing - Southmead Hospital,Permanent Nursing,Fshc  1St Floor,1398.80, 22-Dec-2015
961,Revenue,CAHD,Bed Purchasing - North,Permanent Nursing,Fshc  1St Floor,1097.68, 22-Dec-2015
962,Revenue,CAHD,Bed Purchasing - North,Permanent Residential,Fshc  1St Floor,1270.80, 22-Dec-2015
963,Revenue,CAHD,Bed Purchasing - Southmead Hospital,Permanent Nursing,Fshc  1St Floor,1023.00, 22-Dec-2015
964,Revenue,CAHD,Bed Purchasing - Southmead Hospital,Permanent Nursing,Fshc  1St Floor,1622.04, 22-Dec-2015
965,Revenue,CAHD,Bed Purchasing - Southmead Hospital,Permanent Nursing,Fshc  1St Floor,5877.39, 22-Dec-2015
966,Revenue,CAHD,Bed Purchasing - Southmead Hospital,Permanent Nursing,Fshc  1St Floor,935.04, 22-Dec-2015
967,Revenue,CAHD,Bed Purchasing - Southmead Hospital,Permanent Residential,Fshc  1St Floor,1158.00, 22-Dec-2015
968,Revenue,CAHD,Bed Purchasing - North,Permanent Nursing,Fshc  1St Floor,1026.60, 22-Dec-2015
969,Revenue,CAHD,Bed Purchasing - Southmead Hospital,Permanent Nursing,Fshc  1St Floor,1112.44, 22-Dec-2015
970,Revenue,CAHD,Bed Purchasing - Southmead Hospital,Permanent Nursing,Fshc  1St Floor,1132.12, 22-Dec-2015
971,Revenue,CAHD,Bed Purchasing - Southmead Hospital,Permanent Nursing,Fshc  1St Floor,1304.24, 22-Dec-2015
972,Revenue,CAHD,Bed Purchasing - Southmead Hospital,Permanent Nursing,Fshc  1St Floor,1398.80, 22-Dec-2015
973,Revenue,CAHD,Bed Purchasing - North,Permanent Nursing,Fshc  1St Floor,1398.80, 22-Dec-2015
974,Revenue,CAHD,Bed Purchasing - Southmead Hospital,Permanent Nursing,Fshc  1St Floor,1130.76, 22-Dec-2015
975,Revenue,CAHD,Bed Purchasing - North,Permanent Residential,Fshc  1St Floor,1248.40, 22-Dec-2015
976,Revenue,CAHD,Bed Purchasing - South,Permanent Residential,Fshc  1St Floor,1148.76, 22-Dec-2015
977,Revenue,CAHD,Bed Purchasing - Southmead Hospital,Permanent Nursing,Fshc  1St Floor,2080.00, 22-Dec-2015
978,Revenue,CAHD,Bed Purchasing - Southmead Hospital,Permanent Nursing,Fshc  1St Floor,1393.24, 22-Dec-2015
979,Revenue,CAHD,Bed Purchasing - Southmead Hospital,Permanent Nursing,Fshc  1St Floor,1398.80, 22-Dec-2015
980,Revenue,CAHD,Bed Purchasing - North,Permanent Nursing,Fshc  1St Floor,545.84, 22-Dec-2015
981,Revenue,CAHD,Bed Purchasing - North,Permanent Nursing,Fshc  1St Floor,1501.92, 22-Dec-2015
982,Revenue,CAHD,Bed Purchasing - Southmead Hospital,Permanent Residential,Fshc  1St Floor,619.48, 22-Dec-2015
983,Revenue,CAHD,Bed Purchasing - Southmead Hospital,Permanent Nursing,Fshc  1St Floor,1385.72, 22-Dec-2015
984,Revenue,CAHD,Bed Purchasing - North,Permanent Nursing,Fshc  1St Floor,1270.20, 22-Dec-2015
985,Revenue,CAHD,Bed Purchasing - North,Permanent Nursing,Fshc  1St Floor,908.28, 22-Dec-2015
986,Revenue,CAHD,Bed Purchasing - North,Permanent Nursing,Fshc  1St Floor,1398.80, 22-Dec-2015
987,Revenue,CAHD,Bed Purchasing - North,Permanent Nursing,Fshc  1St Floor,1489.56, 22-Dec-2015
988,Revenue,CAHD,Bed Purchasing - North,Permanent Residential,Fshc  1St Floor,1421.84, 22-Dec-2015
989,Revenue,CAHD,Bed Purchasing - North,Permanent Nursing,Fshc  1St Floor,1007.00, 22-Dec-2015
990,Revenue,CAHD,Bed Purchasing - North,Permanent Residential,Fshc  1St Floor,1268.08, 22-Dec-2015
991,Revenue,CAHD,Bed Purchasing - North,Permanent Residential,Fshc  1St Floor,731.16, 22-Dec-2015
992,Revenue,CAHD,Bed Purchasing - Southmead Hospital,Permanent Nursing,Fshc  1St Floor,1108.28, 22-Dec-2015
993,Revenue,CAHD,Bed Purchasing - North,Permanent Nursing,Fshc  1St Floor,1422.80, 22-Dec-2015
994,Revenue,CAHD,Bed Purchasing - North,Permanent Residential,Fshc  1St Floor,1421.60, 22-Dec-2015
995,Revenue,CAHD,Bed Purchasing - North,Permanent Nursing,Fshc  1St Floor,1602.80, 22-Dec-2015
996,Revenue,CAHD,Bed Purchasing - North,Permanent Nursing,Fshc  1St Floor,2623.97, 22-Dec-2015
997,Revenue,CAHD,Bed Purchasing - North,Permanent Nursing,Fshc  1St Floor,1398.80, 22-Dec-2015
998,Revenue,CAHD,Bed Purchasing - South,Permanent Nursing,Fshc  1St Floor,4104.39, 22-Dec-2015
999,Revenue,CAHD,Bed Purchasing - South,Permanent Nursing,Fshc  1St Floor,1418.80, 22-Dec-2015
1000,Revenue,CAHD,Bed Purchasing - Southmead Hospital,Permanent Nursing,Fshc  1St Floor,1197.88, 22-Dec-2015
1001,Revenue,CAHD,Bed Purchasing - North,Permanent Nursing,Fshc  1St Floor,1063.81, 22-Dec-2015
1002,Revenue,CAHD,Bed Purchasing - Southmead Hospital,Respite Planned - Nursing,Fshc  1St Floor,816.00, 22-Dec-2015
1003,Revenue,CAHD,Bed Purchasing - North,Permanent Nursing,Fshc  1St Floor,4330.24, 22-Dec-2015
1004,Revenue,CAHD,Bed Purchasing - North,Permanent Nursing,Fshc  1St Floor,1054.32, 22-Dec-2015
1005,Revenue,CAHD,Bed Purchasing - Southmead Hospital,Permanent Residential,Fshc  1St Floor,1171.20, 22-Dec-2015
1006,Revenue,CAHD,South Glos Users in South Glos Homes,Permanent Nursing,Fshc  1St Floor,1008.00, 22-Dec-2015
1007,Revenue,CAHD,Bed Purchasing - Southmead Hospital,Permanent Nursing,Fshc  1St Floor,1344.04, 22-Dec-2015
1008,Revenue,CAHD,Bed Purchasing - North,Permanent Nursing,Fshc  1St Floor,1019.44, 22-Dec-2015
1009,Revenue,CAHD,South Glos Users in South Glos Homes,Permanent Nursing,Fshc  1St Floor,2471.26, 22-Dec-2015
1010,Revenue,CAHD,Bed Purchasing - North,Permanent Nursing,Fshc  1St Floor,1433.84, 22-Dec-2015
1011,Revenue,CAHD,Bed Purchasing - Southmead Hospital,Permanent Nursing,Fshc  1St Floor,1398.80, 22-Dec-2015
1012,Revenue,CAHD,Bed Purchasing - Southmead Hospital,Permanent Nursing,Fshc  1St Floor,582.08, 22-Dec-2015
1013,Revenue,CAHD,Bed Purchasing - Southmead Hospital,Permanent Nursing,Fshc  1St Floor,1398.80, 22-Dec-2015
1014,Revenue,CAHD,Bed Purchasing - Southmead Hospital,Permanent Nursing,Fshc  1St Floor,1398.80, 22-Dec-2015
1015,Revenue,CAHD,Bed Purchasing - Southmead Hospital,Permanent Nursing,Fshc  1St Floor,874.00, 22-Dec-2015
1016,Revenue,CAHD,Bed Purchasing - Southmead Hospital,Permanent Nursing,Fshc  1St Floor,1398.80, 22-Dec-2015
1017,Revenue,CAHD,Bed Purchasing - North,Permanent Nursing,Fshc  1St Floor,1503.40, 22-Dec-2015
1018,Revenue,CAHD,Bed Purchasing - Southmead Hospital,Permanent Nursing,Fshc  1St Floor,1329.40, 22-Dec-2015
1019,Revenue,CAHD,Bed Purchasing - North,Permanent Nursing,Fshc  1St Floor,1287.04, 22-Dec-2015
1020,Revenue,CAHD,Bed Purchasing - Southmead Hospital,Permanent Nursing,Fshc  1St Floor,1271.84, 22-Dec-2015
1021,Revenue,CAHD,Bed Purchasing - North,Permanent Nursing,Fshc  1St Floor,1023.84, 22-Dec-2015
1022,Revenue,CAHD,Bed Purchasing - Southmead Hospital,Permanent Nursing,Fshc  1St Floor,1848.92, 22-Dec-2015
1023,Revenue,CAHD,Bed Purchasing - North,Permanent Residential,Fshc  1St Floor,3034.68, 22-Dec-2015
1024,Revenue,CAHD,Bed Purchasing - North,Permanent Nursing,Fshc  1St Floor,1405.04, 22-Dec-2015
1025,Revenue,CAHD,Bed Purchasing - South,Respite Planned - Residential,Fshc  1St Floor,633.86, 22-Dec-2015
1026,Revenue,CAHD,Bed Purchasing - South,Permanent Nursing,Fshc  1St Floor,1198.76, 22-Dec-2015
1027,Revenue,CAHD,Bed Purchasing - Southmead Hospital,Permanent Nursing,Fshc  1St Floor,1335.04, 22-Dec-2015
1028,Revenue,CAHD,Bed Purchasing - North,Permanent Nursing,Fshc  1St Floor,689.48, 22-Dec-2015
1029,Revenue,CAHD,Bed Purchasing - North,Respite Emergency - Nursing,Fshc  1St Floor,1700.00, 22-Dec-2015
1030,Revenue,CAHD,Bed Purchasing - South,Permanent Nursing,Fshc  1St Floor,1904.00, 22-Dec-2015
1031,Revenue,CAHD,Bed Purchasing - Southmead Hospital,Permanent Residential,Fshc  1St Floor,1494.80, 22-Dec-2015
1032,Revenue,CAHD,Bed Purchasing - South,Permanent Residential,Fshc  1St Floor,949.60, 22-Dec-2015
1033,Revenue,CAHD,Bed Purchasing - Southmead Hospital,Permanent Nursing,Fshc  1St Floor,1347.66, 22-Dec-2015
1034,Revenue,CAHD,Bed Purchasing - North,Permanent Residential,Fshc  1St Floor,1179.64, 22-Dec-2015
1035,Revenue,CAHD,Bed Purchasing - North,Permanent Nursing,Fshc  1St Floor,1144.52, 22-Dec-2015
1036,Revenue,CAHD,Bed Purchasing - South,Permanent Nursing,Fshc  1St Floor,1374.80, 22-Dec-2015
1037,Revenue,CAHD,Bed purchasing - Elderly MH - North,Respite Emergency - Residential,Fshc  1St Floor,986.00, 22-Dec-2015
1038,Revenue,CAHD,Bed Purchasing - Southmead Hospital,Permanent Nursing,Fshc  1St Floor,1398.80, 22-Dec-2015
1039,Revenue,CAHD,Bed Purchasing - North,Permanent Residential,Fshc  1St Floor,1446.24, 22-Dec-2015
1040,Revenue,CAHD,Bed Purchasing - Southmead Hospital,Permanent Nursing,Fshc  1St Floor,1252.64, 22-Dec-2015
1041,Revenue,CAHD,Bed Purchasing - South,Permanent Nursing,Fshc  1St Floor,1240.84, 22-Dec-2015
1042,Revenue,CAHD,Bed Purchasing - Southmead Hospital,Permanent Nursing,Fshc  1St Floor,1304.40, 22-Dec-2015
1043,Revenue,CAHD,Bed Purchasing - South,Permanent Residential,Fshc  1St Floor,1270.80, 22-Dec-2015
1044,Revenue,CAHD,Bed Purchasing - Southmead Hospital,Permanent Nursing,Fshc  1St Floor,1398.80, 22-Dec-2015
1045,Revenue,CAHD,Bed Purchasing - Southmead Hospital,Respite Emergency - Nursing,Fshc  1St Floor,13600.00, 22-Dec-2015
1046,Revenue,CAHD,Bed Purchasing - Southmead Hospital,Respite Emergency - Nursing,Fshc  1St Floor,1904.00, 22-Dec-2015
1047,Revenue,CAHD,Bed Purchasing - Southmead Hospital,Permanent Nursing,Fshc  1St Floor,1398.80, 22-Dec-2015
1048,Revenue,CAHD,Bed Purchasing - Southmead Hospital,Permanent Nursing,Fshc  1St Floor,1324.72, 22-Dec-2015
1049,Revenue,CAHD,Bed Purchasing - South,Permanent Nursing,Fshc  1St Floor,1240.16, 22-Dec-2015
1050,Revenue,CAHD,Bed Purchasing - Southmead Hospital,Permanent Residential,Fshc  1St Floor,1484.16, 22-Dec-2015
1051,Revenue,CAHD,Bed Purchasing - Southmead Hospital,Permanent Nursing,Fshc  1St Floor,1398.80, 22-Dec-2015
1052,Revenue,CAHD,Bed Purchasing - South,Permanent Residential,Fshc  1St Floor,1466.80, 22-Dec-2015
1053,Revenue,CAHD,Bed Purchasing - South,Permanent Residential,Fshc  1St Floor,995.33, 22-Dec-2015
1054,Revenue,CAHD,Bed purchasing - Elderly S117 - South,Permanent Nursing,Fshc  1St Floor,1904.00, 22-Dec-2015
1055,Revenue,CAHD,Bed Purchasing - Southmead Hospital,Permanent Residential,Fshc  1St Floor,1131.52, 22-Dec-2015
1056,Revenue,CAHD,Bed Purchasing - South,Permanent Nursing,Fshc  1St Floor,1402.52, 22-Dec-2015
1057,Revenue,CAHD,Bed Purchasing - South,Permanent Residential,Fshc  1St Floor,1386.96, 22-Dec-2015
1058,Revenue,CAHD,Bed Purchasing - Southmead Hospital,Permanent Nursing,Fshc  1St Floor,813.60, 22-Dec-2015
1059,Revenue,CAHD,Bed Purchasing - South,Permanent Nursing,Fshc  1St Floor,1398.80, 22-Dec-2015
1060,Revenue,CAHD,Bed Purchasing - North,Permanent Residential,Fshc  1St Floor,1233.32, 22-Dec-2015
1061,Revenue,CAHD,Bed Purchasing - South,Permanent Nursing,Fshc  1St Floor,1267.20, 22-Dec-2015
1062,Revenue,CAHD,Bed Purchasing - South,Permanent Nursing,Fshc  1St Floor,1352.12, 22-Dec-2015
1063,Revenue,CAHD,Bed Purchasing - South,Permanent Nursing,Fshc  1St Floor,1681.08, 22-Dec-2015
1064,Revenue,CAHD,Bed Purchasing - South,Permanent Nursing,Fshc  1St Floor,1132.64, 22-Dec-2015
1065,Revenue,CAHD,Bed Purchasing - Southmead Hospital,Permanent Nursing,Fshc  1St Floor,1240.64, 22-Dec-2015
1066,Revenue,CAHD,Bed Purchasing - Southmead Hospital,Permanent Nursing,Fshc  1St Floor,956.72, 22-Dec-2015
1067,Revenue,CAHD,Bed Purchasing - Southmead Hospital,Permanent Nursing,Fshc  1St Floor,1566.40, 22-Dec-2015
1068,Revenue,CAHD,Bed Purchasing - Southmead Hospital,Permanent Nursing,Fshc  1St Floor,1398.80, 22-Dec-2015
1069,Revenue,CAHD,Bed Purchasing - Southmead Hospital,Permanent Nursing,Fshc  1St Floor,894.72, 22-Dec-2015
1070,Revenue,CAHD,Bed Purchasing - South,Permanent Nursing,Fshc  1St Floor,1255.12, 22-Dec-2015
1071,Revenue,CAHD,Bed Purchasing - North,Permanent Nursing,Fshc  1St Floor,1356.20, 22-Dec-2015
1072,Revenue,CAHD,Pathway 2 - (Interim Beds),Permanent Nursing,Fshc  1St Floor,720.00, 22-Dec-2015
1073,Revenue,CAHD,South Glos Users in South Glos Homes,Permanent Nursing,Fshc  1St Floor,720.00, 22-Dec-2015
1074,Revenue,CAHD,Bed Purchasing - Southmead Hospital,Respite Planned - Nursing,Fshc  1St Floor,1904.00, 22-Dec-2015
1075,Revenue,CAHD,Bed Purchasing - North,Permanent Nursing,Fshc  1St Floor,1364.16, 22-Dec-2015
1076,Revenue,CAHD,Bed Purchasing - Southmead Hospital,Respite Planned - Nursing,Fshc  1St Floor,1935.20, 22-Dec-2015
1077,Revenue,CAHD,Bed Purchasing - North,Permanent Nursing,Fshc  1St Floor,845.84, 22-Dec-2015
1078,Revenue,CAHD,Bed Purchasing - North,Permanent Nursing,Fshc  1St Floor,1506.80, 22-Dec-2015
1079,Revenue,CAHD,Bed purchasing - Elderly S117 - South,Permanent Nursing,Fshc  1St Floor,2080.00, 22-Dec-2015
1080,Revenue,CAHD,Bed Purchasing - Southmead Hospital,Permanent Nursing,Fshc  1St Floor,1462.20, 22-Dec-2015
1081,Revenue,CAHD,Bed Purchasing - Southmead Hospital,Permanent Nursing,Fshc  1St Floor,731.10, 22-Dec-2015
1082,Revenue,CAHD,Bed Purchasing - Southmead Hospital,Respite Emergency - Nursing,Fshc  1St Floor,13188.86, 22-Dec-2015
1083,Revenue,CAHD,Bed Purchasing - Southmead Hospital,Permanent Nursing,Fshc  1St Floor,1355.76, 22-Dec-2015
1084,Revenue,CAHD,Bed Purchasing - Southmead Hospital,Permanent Nursing,Fshc  1St Floor,1506.80, 22-Dec-2015
1085,Revenue,CAHD,Bed Purchasing - North,Permanent Nursing,Fshc  1St Floor,1374.32, 22-Dec-2015
1086,Revenue,CAHD,Bed Purchasing - North,Permanent Nursing,Fshc  1St Floor,1302.52, 22-Dec-2015
1087,Revenue,CAHD,Bed Purchasing - North,Permanent Nursing,Fshc  1St Floor,1411.28, 22-Dec-2015
1088,Revenue,CAHD,Bed Purchasing - Southmead Hospital,Permanent Nursing,Fshc  1St Floor,1574.80, 22-Dec-2015
1089,Revenue,CAHD,Bed Purchasing - South,Permanent Nursing,Fshc  1St Floor,1221.40, 22-Dec-2015
1090,Revenue,CAHD,Bed Purchasing - Southmead Hospital,Permanent Residential,Fshc  1St Floor,1250.68, 22-Dec-2015
1091,Revenue,CAHD,Bed Purchasing - Southmead Hospital,Permanent Nursing,Fshc  1St Floor,1382.28, 22-Dec-2015
1092,Revenue,CAHD,Bed Purchasing - Southmead Hospital,Permanent Nursing,Fshc  1St Floor,3430.82, 22-Dec-2015
1093,Revenue,CAHD,Bed Purchasing - Southmead Hospital,Permanent Nursing,Fshc  1St Floor,1574.80, 22-Dec-2015
1094,Revenue,CAHD,Bed Purchasing - Southmead Hospital,Permanent Nursing,Fshc  1St Floor,1242.28, 22-Dec-2015
1095,Revenue,CAHD,Bed Purchasing - North,Permanent Residential,Fshc  1St Floor,1128.92, 22-Dec-2015
1096,Revenue,CAHD,Bed Purchasing - Southmead Hospital,Permanent Nursing,Fshc  1St Floor,950.80, 22-Dec-2015
1097,Revenue,CAHD,Bed Purchasing - Elderly S117- North,Permanent Nursing,Fshc  1St Floor,2012.00, 22-Dec-2015
1098,Revenue,CAHD,Bed Purchasing - Southmead Hospital,Permanent Nursing,Fshc  1St Floor,1694.80, 22-Dec-2015
1099,Revenue,CAHD,Bed Purchasing - North,Permanent Nursing,Fshc  1St Floor,1506.80, 22-Dec-2015
1100,Revenue,CAHD,Bed Purchasing - Southmead Hospital,Permanent Nursing,Fshc  1St Floor,2080.00, 22-Dec-2015
1101,Revenue,CAHD,Bed Purchasing - Southmead Hospital,Permanent Nursing,Fshc  1St Floor,1101.28, 22-Dec-2015
1102,Revenue,CAHD,Bed Purchasing - North,Permanent Residential,Fshc  1St Floor,1050.88, 22-Dec-2015
1103,Revenue,CAHD,Bed Purchasing - South,Permanent Residential,Fshc  1St Floor,2736.16, 22-Dec-2015
1104,Revenue,CAHD,Bed Purchasing - Southmead Hospital,Permanent Residential,Fshc  1St Floor,808.44, 22-Dec-2015
1105,Revenue,CAHD,CSC - OT Equipment - Children,Daily Living Equipment,G & S Smirthwaite Limited,2482.00, 24-Dec-2015
1106,Revenue,CAHD,CSC - Residential Placements,Permanent Residential,G4S Care & Justice Services (UK) Limited,9079.57, 30-Dec-2015
1107,Revenue,CAHD,Assistant Directors,Advertising for Recruitment,Gatenby Sanderson Limited,2555.20, 15-Dec-2015
1108,Revenue,CAHD,Training - Adult Services,Training Expenses,Gizware Systems Limited,500.00, 09-Dec-2015
1109,Revenue,CAHD,Section 117 Placements MH Younger,Permanent Residential,Gladstone House,2792.00, 22-Dec-2015
1110,Revenue,CAHD,Bed Purchasing - South,Permanent Residential,Glasallt Fawr,4666.48, 22-Dec-2015
1111,Revenue,CAHD,Bed Purchasing - North,Permanent Residential,Glebe House Nursing Home,2163.16, 22-Dec-2015
1112,Revenue,CAHD,Bed Purchasing - North,Permanent Nursing,Glebe House Nursing Home,2140.68, 22-Dec-2015
1113,Revenue,CAHD,Bed Purchasing - South,Permanent Residential,Glebe House Nursing Home,2073.76, 22-Dec-2015
1114,Revenue,CAHD,Bed Purchasing - North,Permanent Nursing,Glebe House Nursing Home,2257.08, 22-Dec-2015
1115,Revenue,CAHD,South Glos Users in South Glos Homes,Permanent Nursing,Glebe House Nursing Home,512.00, 22-Dec-2015
1116,Revenue,CAHD,Bed Purchasing - North,Permanent Nursing,Glebe House Nursing Home,2186.96, 22-Dec-2015
1117,Revenue,CAHD,Bed Purchasing - North,Permanent Residential,Glebe House Nursing Home,2628.08, 22-Dec-2015
1118,Revenue,CAHD,CSC - Safeguarding Board,Other Supplies & Services,Gloucestershire County Council,500.00, 18-Dec-2015
1119,Revenue,CAHD,Bed Purchasing - South,Permanent Residential,Goldcare House,2558.20, 22-Dec-2015
1120,Revenue,CAHD,Bed Purchasing - South,Permanent Residential,Gordena Care Home,2137.52, 22-Dec-2015
1121,Revenue,CAHD,Bed Purchasing - South,Permanent Residential,Gordena Care Home,3189.84, 22-Dec-2015
1122,Revenue,CAHD,Bed Purchasing - South,Permanent Residential,Gordena Care Home,2996.16, 22-Dec-2015
1123,Revenue,CAHD,Bed Purchasing - South,Permanent Residential,Gordena Care Home,1950.08, 22-Dec-2015
1124,Revenue,CAHD,Bed Purchasing - South,Permanent Residential,Gordena Care Limited,4264.60, 22-Dec-2015
1125,Revenue,CAHD,Bed purchasing - S28A Under 65 - South,Permanent Residential,Gordena Care Limited,4161.28, 22-Dec-2015
1126,Revenue,CAHD,Bed Purchasing - North,Permanent Residential,Gordena Care Limited,4260.48, 22-Dec-2015
1127,Revenue,CAHD,Bed Purchasing - South,Permanent Nursing,Gracefields Nursing Home,1712.72, 22-Dec-2015
1128,Revenue,CAHD,Bed Purchasing - Southmead Hospital,Permanent Nursing,Gracefields Nursing Home,1733.76, 22-Dec-2015
1129,Revenue,CAHD,Bed Purchasing - Southmead Hospital,Permanent Nursing,Gracefields Nursing Home,1655.96, 22-Dec-2015
1130,Revenue,CAHD,Bed Purchasing - Southmead Hospital,Permanent Nursing,Gracefields Nursing Home,883.28, 22-Dec-2015
1131,Revenue,CAHD,Bed purchasing - Elderly S117 - South,Permanent Nursing,Gracefields Nursing Home,2381.88, 22-Dec-2015
1132,Revenue,CAHD,Swift Dump Code,Permanent Residential,Gracefields Nursing Home,4204.97, 22-Dec-2015
1133,Revenue,CAHD,Bed Purchasing - South,Permanent Nursing,Gracefields Nursing Home,1132.40, 22-Dec-2015
1134,Revenue,CAHD,Bed Purchasing - Southmead Hospital,Permanent Nursing,Gracefields Nursing Home,1586.56, 22-Dec-2015
1135,Revenue,CAHD,Bed Purchasing - South,Permanent Nursing,Gracefields Nursing Home,2658.88, 22-Dec-2015
1136,Revenue,CAHD,Bed Purchasing - South,Permanent Nursing,Gracefields Nursing Home,1601.96, 22-Dec-2015
1137,Revenue,CAHD,Bed Purchasing - South,Permanent Nursing,Gracefields Nursing Home,1330.80, 22-Dec-2015
1138,Revenue,CAHD,Bed Purchasing - Southmead Hospital,Permanent Nursing,Gracefields Nursing Home,1539.00, 22-Dec-2015
1139,Revenue,CAHD,Bed Purchasing - Southmead Hospital,Permanent Residential,Granada House Residential Home,1043.36, 22-Dec-2015
1140,Revenue,CAHD,CSC - Residential Placements,Permanent Residential,Greenfields Adolecent Development Limited,20357.14, 17-Dec-2015
1141,Revenue,CAHD,Bed Purchasing - North,Permanent Residential,Greensleeves,1344.52, 22-Dec-2015
1142,Revenue,CAHD,Independent Special Placements - Pre 16,Other Private Contractors,Grittleton House,30450.00, 17-Dec-2015
1143,Revenue,CAHD,Bed Purchasing - South,Permanent Residential,Grove Care,1883.40, 22-Dec-2015
1144,Revenue,CAHD,Bed Purchasing - South,Permanent Residential,Gwendoline House,846.44, 22-Dec-2015
1145,Revenue,CAHD,Bed Purchasing - Southmead Hospital,Permanent Residential,Gwendoline House,1282.04, 22-Dec-2015
1146,Revenue,CAHD,Bed Purchasing - South,Permanent Residential,Gwendoline House,955.96, 22-Dec-2015
1147,Revenue,CAHD,Bed Purchasing - South,Permanent Residential,Gwendoline House,1159.80, 22-Dec-2015
1148,Revenue,CAHD,Bed Purchasing - Southmead Hospital,Permanent Residential,Gwendoline House,1474.80, 22-Dec-2015
1149,Revenue,CAHD,Bed Purchasing - Southmead Hospital,Permanent Residential,Gwendoline House,526.71, 22-Dec-2015
1150,Revenue,CAHD,Supporting People Programme,Grants to Voluntary Bodies,Habinteg Housing Association,1373.26, 01-Dec-2015
1151,Revenue,CAHD,Supporting People Programme,Grants to Voluntary Bodies,Habinteg Housing Association,1373.26, 30-Dec-2015
1152,Revenue,CAHD,Bed Purchasing - North,Permanent Nursing,Hambledon House,2988.36, 22-Dec-2015
1153,Revenue,CAHD,Social Lettings Agency,Fees - General,Individual,16.46, 24-Dec-2015
1154,Revenue,CAHD,Social Lettings Agency,Other Supplies & Services,Individual,559.60, 24-Dec-2015
1155,Revenue,CAHD,CSC - Family Placement Team-Adoptions,Agency Staff (Admin/Support Staff) Pay,Hampton`s Resourcing,9676.00, 09-Dec-2015
1156,Revenue,CAHD,CSC - Family Placement Team-Adoptions,Agency Staff (Admin/Support Staff) Pay,Hampton`s Resourcing,10915.00, 29-Dec-2015
1157,Revenue,CAHD,CSC - Through & Leaving Care Team,Agency Staff (Admin/Support Staff) Pay,Hampton`s Resourcing,1998.00, 01-Dec-2015
1158,Revenue,CAHD,CSC - Through & Leaving Care Team,Agency Staff (Admin/Support Staff) Pay,Hampton`s Resourcing,1674.00, 08-Dec-2015
1159,Revenue,CAHD,CSC - Through & Leaving Care Team,Agency Staff (Admin/Support Staff) Pay,Hampton`s Resourcing,1998.00, 15-Dec-2015
1160,Revenue,CAHD,CSC - Through & Leaving Care Team,Agency Staff (Admin/Support Staff) Pay,Hampton`s Resourcing,1998.00, 22-Dec-2015
1161,Revenue,CAHD,CSC - Through & Leaving Care Team,Agency Staff (Admin/Support Staff) Pay,Hampton`s Resourcing,1620.00, 29-Dec-2015
1162,Revenue,CAHD,CSC - Special Guardianship Orders,Special Payments,Individual,506.00, 30-Dec-2015
1163,Revenue,CAHD,Supporting People Programme,Grants to Voluntary Bodies,Hanover Housing Association,982.83, 01-Dec-2015
1164,Revenue,CAHD,Supporting People Programme,Grants to Voluntary Bodies,Hanover Housing Association,982.83, 30-Dec-2015
1165,Revenue,CAHD,Bed Purchasing - South,Permanent Residential,Harefield Hall,1219.24, 22-Dec-2015
1166,Revenue,CAHD,Bed Purchasing - South,Permanent Residential,Harefield Hall,1150.52, 22-Dec-2015
1167,Revenue,CAHD,Bed Purchasing - South,Permanent Residential,Harefield Hall,1672.93, 22-Dec-2015
1168,Revenue,CAHD,Bed Purchasing - South,Permanent Residential,Harefield Hall,1039.04, 22-Dec-2015
1169,Revenue,CAHD,Bed Purchasing - South,Permanent Residential,Harefield Hall,1313.12, 22-Dec-2015
1170,Revenue,CAHD,Bed Purchasing - South,Permanent Residential,Harefield Hall,1254.36, 22-Dec-2015
1171,Revenue,CAHD,Bed Purchasing - Southmead Hospital,Permanent Nursing,Hc-One Ltd,1648.40, 22-Dec-2015
1172,Revenue,CAHD,Bed Purchasing - Southmead Hospital,Permanent Nursing,Hc-One Ltd,3482.19, 22-Dec-2015
1173,Revenue,CAHD,Bed Purchasing - Southmead Hospital,Permanent Nursing,Hc-One Ltd,1455.24, 22-Dec-2015
1174,Revenue,CAHD,Bed Purchasing - North,Permanent Nursing,Hc-One Ltd,1511.16, 22-Dec-2015
1175,Revenue,CAHD,Bed Purchasing - North,Permanent Residential,Hc-One Ltd,2083.68, 22-Dec-2015
1176,Revenue,CAHD,Bed Purchasing - North,Permanent Residential,Hc-One Ltd,520.92, 22-Dec-2015
1177,Revenue,CAHD,Bed Purchasing - North,Permanent Residential,Hc-One Ltd,1112.44, 22-Dec-2015
1178,Revenue,CAHD,Bed Purchasing - North,Permanent Residential,Hc-One Ltd,3944.11, 22-Dec-2015
1179,Revenue,CAHD,Bed Purchasing - North,Permanent Nursing,Hc-One Ltd,822.84, 22-Dec-2015
1180,Revenue,CAHD,Bed Purchasing - Southmead Hospital,Permanent Nursing,Hc-One Ltd,5867.30, 22-Dec-2015
1181,Revenue,CAHD,Bed Purchasing - Southmead Hospital,Permanent Nursing,Hc-One Ltd,1480.04, 22-Dec-2015
1182,Revenue,CAHD,Bed Purchasing - South,Permanent Nursing,Hc-One Ltd,1616.01, 22-Dec-2015
1183,Revenue,CAHD,Bed Purchasing - Southmead Hospital,Permanent Residential,Head Office,1694.80, 22-Dec-2015
1184,Revenue,CAHD,CSC - Residential Placements,Permanent Residential,Headway Adolescent Resources Limited,12400.00, 24-Dec-2015
1185,Revenue,CAHD,CSC - Residential Placements,Permanent Residential,Headway Adolescent Resources Limited,12400.00, 24-Dec-2015
1186,Revenue,CAHD,Home Care - Elderly - South,Day Care / Social Activities,Headway Bristol,315.60, 10-Dec-2015
1187,Revenue,CAHD,Home Care - Elderly - North,Day Care / Social Activities,Headway Bristol,757.44, 10-Dec-2015
1188,Revenue,CAHD,Home Care - Elderly - South,Day Care / Social Activities,Headway Bristol,294.56, 10-Dec-2015
1189,Revenue,CAHD,Home Care - Elderly - North,Day Care / Social Activities,Headway Bristol,757.44, 10-Dec-2015
1190,Revenue,CAHD,Home Care - Elderly - South,Day Care / Social Activities,Headway Bristol,315.60, 10-Dec-2015
1191,Revenue,CAHD,Home Care - Elderly - North,Day Care / Social Activities,Headway Bristol,810.04, 10-Dec-2015
1192,Revenue,CAHD,Home Care - Elderly - South,Day Care / Social Activities,Headway Bristol,168.32, 30-Dec-2015
1193,Revenue,CAHD,Home Care - Elderly - North,Day Care / Social Activities,Headway Bristol,452.36, 30-Dec-2015
1194,Revenue,CAHD,Home Care - Elderly - South,Day Care / Social Activities,Headway Bristol,441.84, 30-Dec-2015
1195,Revenue,CAHD,Home Care - Elderly - North,Day Care / Social Activities,Headway Bristol,536.52, 30-Dec-2015
1196,Revenue,CAHD,Day Care - South,Day Care / Social Activities,Headway Bristol,545.55, 18-Dec-2015
1197,Revenue,CAHD,Home Care - Elderly - North,Day Care / Social Activities,Headway Bristol,561.60, 08-Dec-2015
1198,Revenue,CAHD,Day Care - South,Day Care / Social Activities,Headway Bristol,769.60, 18-Dec-2015
1199,Revenue,CAHD,Home Care - Elderly - North,Day Care / Social Activities,Headway Bristol,728.00, 08-Dec-2015
1200,Revenue,CAHD,Leadership and Business Support,Conference Expenses,Health Education England,1325.00, 24-Dec-2015
1201,Revenue,CAHD,Home Care - Elderly - South,Day Care / Social Activities,Helping Hands Homecare,126.72, 03-Dec-2015
1202,Revenue,CAHD,Home Care - Elderly - South,Other Small Contracts,Helping Hands Homecare,1485.00, 03-Dec-2015
1203,Revenue,CAHD,Home Care - Elderly - North,Day Care / Social Activities,Helping Hands Homecare,198.00, 03-Dec-2015
1204,Revenue,CAHD,Home Care - Elderly - North,Other Small Contracts,Helping Hands Homecare,2086.92, 03-Dec-2015
1205,Revenue,CAHD,Day Care - North,Day Care / Social Activities,Helping Hands Homecare,75.24, 03-Dec-2015
1206,Revenue,CAHD,Under 65s -MH  Home Care Purch,Other Small Contracts,Helping Hands Homecare,31.68, 03-Dec-2015
1207,Revenue,CAHD,Home care - Elderly MH - North,Other Small Contracts,Helping Hands Homecare,31.68, 03-Dec-2015
1208,Revenue,CAHD,Home Care - Elderly - South,Other Small Contracts,Helping Hands Homecare,1809.72, 03-Dec-2015
1209,Revenue,CAHD,Home Care - Elderly - North,Day Care / Social Activities,Helping Hands Homecare,178.20, 03-Dec-2015
1210,Revenue,CAHD,Home Care - Elderly - North,Other Small Contracts,Helping Hands Homecare,2439.36, 03-Dec-2015
1211,Revenue,CAHD,Day Care - North,Day Care / Social Activities,Helping Hands Homecare,67.32, 03-Dec-2015
1212,Revenue,CAHD,Under 65s -MH  Home Care Purch,Other Small Contracts,Helping Hands Homecare,31.68, 03-Dec-2015
1213,Revenue,CAHD,Home care - Elderly MH - North,Other Small Contracts,Helping Hands Homecare,63.36, 03-Dec-2015
1214,Revenue,CAHD,Home Care - Elderly - South,Other Small Contracts,Helping Hands Homecare,1572.12, 11-Dec-2015
1215,Revenue,CAHD,Home Care - Elderly - North,Day Care / Social Activities,Helping Hands Homecare,198.00, 11-Dec-2015
1216,Revenue,CAHD,Home Care - Elderly - North,Other Small Contracts,Helping Hands Homecare,2356.20, 11-Dec-2015
1217,Revenue,CAHD,Day Care - North,Day Care / Social Activities,Helping Hands Homecare,31.68, 11-Dec-2015
1218,Revenue,CAHD,Home care - Elderly MH - North,Other Small Contracts,Helping Hands Homecare,63.36, 11-Dec-2015
1219,Revenue,CAHD,Home Care - Elderly - South,Other Small Contracts,Helping Hands Homecare,1572.12, 30-Dec-2015
1220,Revenue,CAHD,Home Care - Elderly - North,Day Care / Social Activities,Helping Hands Homecare,213.84, 30-Dec-2015
1221,Revenue,CAHD,Home Care - Elderly - North,Other Small Contracts,Helping Hands Homecare,2300.76, 30-Dec-2015
1222,Revenue,CAHD,Day Care - North,Day Care / Social Activities,Helping Hands Homecare,63.36, 30-Dec-2015
1223,Revenue,CAHD,Under 65s -MH  Home Care Purch,Other Small Contracts,Helping Hands Homecare,23.76, 30-Dec-2015
1224,Revenue,CAHD,Home care - Elderly MH - North,Other Small Contracts,Helping Hands Homecare,63.36, 30-Dec-2015
1225,Revenue,CAHD,Placements OLA Special Schools and RB,Other L.A.'s - General,Henbury Court Primary Academy,833.33, 30-Dec-2015
1226,Revenue,CAHD,S117 Placements PCT,Permanent Residential,Hesley Hall,18406.20, 22-Dec-2015
1227,Revenue,CAHD,Bed Purchasing - Southmead Hospital,Permanent Residential,High Border Lodge,1442.40, 22-Dec-2015
1228,Revenue,CAHD,Bed Purchasing - Southmead Hospital,Permanent Residential,Highfield House,2092.56, 22-Dec-2015
1229,Revenue,CAHD,Bed Purchasing - Southmead Hospital,Permanent Residential,Highgate Studios,1179.08, 22-Dec-2015
1230,Revenue,CAHD,Bed and Breakfast,Bed & Breakfast,Holiday Inn,704.17, 30-Dec-2015
1231,Revenue,CAHD,Bed and Breakfast,Bed & Breakfast,Holiday Inn,807.50, 24-Dec-2015
1232,Revenue,CAHD,Bed Purchasing - North,Permanent Residential,Holmleigh Care Homes Ltd,4115.32, 22-Dec-2015
1233,Revenue,CAHD,Bed Purchasing - South,Permanent Residential,Holmleigh Care Homes Ltd,5079.96, 22-Dec-2015
1234,Revenue,CAHD,Bed Purchasing - North,Permanent Residential,Home Farm Trust Ltd  5-6 Brook Office Pa,2700.52, 22-Dec-2015
1235,Revenue,CAHD,Bed Purchasing - South,Permanent Residential,Home Farm Trust Ltd  5-6 Brook Office Pa,5174.76, 22-Dec-2015
1236,Revenue,CAHD,Bed Purchasing - North,Permanent Residential,Home Farm Trust Ltd  5-6 Brook Office Pa,3386.32, 22-Dec-2015
1237,Revenue,CAHD,Bed Purchasing - South,Permanent Residential,Home Farm Trust Ltd  5-6 Brook Office Pa,5607.24, 22-Dec-2015
1238,Revenue,CAHD,18-25 Year Olds,Permanent Residential,Home From Home Care Ltd,9086.16, 22-Dec-2015
1239,Revenue,CAHD,Home Care - Elderly - South,Other Small Contracts,Homecare 4U,725.81, 21-Dec-2015
1240,Revenue,CAHD,Home Care - Elderly - North,Other Small Contracts,Homecare 4U,846.11, 21-Dec-2015
1241,Revenue,CAHD,Home Care - Elderly - South,Other Small Contracts,Homecare 4U,725.81, 10-Dec-2015
1242,Revenue,CAHD,Home Care - Elderly - North,Other Small Contracts,Homecare 4U,822.05, 10-Dec-2015
1243,Revenue,CAHD,Home Care - Elderly - South,Other Small Contracts,Homecare 4U,509.27, 10-Dec-2015
1244,Revenue,CAHD,Home Care - Elderly - North,Other Small Contracts,Homecare 4U,789.97, 10-Dec-2015
1245,Revenue,CAHD,Home Care - Elderly - South,Other Small Contracts,Homecare 4U,401.00, 11-Dec-2015
1246,Revenue,CAHD,Home Care - Elderly - North,Other Small Contracts,Homecare 4U,1018.54, 11-Dec-2015
1247,Revenue,CAHD,Home Care - Elderly - South,Other Small Contracts,Homecare 4U,677.69, 15-Dec-2015
1248,Revenue,CAHD,Home Care - Elderly - North,Other Small Contracts,Homecare 4U,982.45, 15-Dec-2015
1249,Revenue,CAHD,Home Care - Elderly - South,Other Small Contracts,Homecare 4U,737.84, 11-Dec-2015
1250,Revenue,CAHD,Home Care - Elderly - North,Other Small Contracts,Homecare 4U,1114.78, 11-Dec-2015
1251,Revenue,CAHD,Home Care - Elderly - South,Other Small Contracts,Homecare 4U,878.19, 22-Dec-2015
1252,Revenue,CAHD,Home Care - Elderly - North,Other Small Contracts,Homecare 4U,1146.86, 22-Dec-2015
1253,Revenue,CAHD,Home Care - Elderly - South,Other Small Contracts,Homecare 4U,862.15, 29-Dec-2015
1254,Revenue,CAHD,Home Care - Elderly - North,Other Small Contracts,Homecare 4U,1002.50, 29-Dec-2015
1255,Revenue,CAHD,Bed Purchasing - North,Permanent Residential,Homes Caring For Autism Ltd  Churchill H,10015.24, 22-Dec-2015
1256,Revenue,CAHD,18-25 Year Olds,Permanent Residential,Homes Caring For Autism Ltd  Churchill H,13043.96, 22-Dec-2015
1257,Revenue,CAHD,Home Care - Elderly - North,Private & Voluntary Home Care,Housing & Care 21,9098.35, 02-Dec-2015
1258,Revenue,CAHD,Home Care - Elderly - South,Private & Voluntary Home Care,Housing & Care 21,9098.35, 02-Dec-2015
1259,Revenue,CAHD,Supporting People Programme,Grants to Voluntary Bodies,Housing 21,623.07, 01-Dec-2015
1260,Revenue,CAHD,Supporting People Programme,Grants to Voluntary Bodies,Housing 21,945.10, 01-Dec-2015
1261,Revenue,CAHD,Supporting People Programme,Grants to Voluntary Bodies,Housing 21,623.07, 30-Dec-2015
1262,Revenue,CAHD,Supporting People Programme,Grants to Voluntary Bodies,Housing 21,945.10, 30-Dec-2015
1263,Revenue,CAHD,Home Care - Elderly - North,Private & Voluntary Home Care,Housing 21,38183.98, 10-Dec-2015
1264,Revenue,CAHD,Home Care - Elderly - South,Private & Voluntary Home Care,Housing 21,24541.48, 01-Dec-2015
1265,Revenue,CAHD,Home Care - Elderly - South,Private & Voluntary Home Care,Housing 21,24541.48, 30-Dec-2015
1266,Revenue,CAHD,CSC - Corporate Parenting,Computer Services,IAP UK Limited,3862.50, 03-Dec-2015
1267,Revenue,CAHD,CSC - Corporate Parenting,Computer Services,IAP UK Limited,3840.00, 18-Dec-2015
1268,Revenue,CAHD,CSC - Corporate Parenting,Computer Services,IAP UK Limited,3869.25, 03-Dec-2015
1269,Revenue,CAHD,Breakthrough and Inclusion Work,Other Supplies & Services,Impact Mentoring,2373.00, 01-Dec-2015
1270,Revenue,CAHD,CSC - LAT Placements,Personal Needs of Clients,Impact Mentoring,1190.00, 09-Dec-2015
1271,Revenue,CAHD,CSC - LAT Placements,Personal Needs of Clients,Impact Mentoring,1105.00, 30-Dec-2015
1272,Revenue,CAHD,Quality and Standards,Consultants Fees,Improve Maths Ltd,1562.50, 18-Dec-2015
1273,Revenue,CAHD,Alexandra Way,Electricity,IMServ Europe Limited,27.72, 30-Dec-2015
1274,Revenue,CAHD,Woodleaze,Electricity,IMServ Europe Limited,27.72, 30-Dec-2015
1275,Revenue,CAHD,Independent Special Placements - Pre 16,Other Private Contractors,Include Limited,4833.33, 29-Dec-2015
1276,Revenue,CAHD,NHS Health Checks & Tobacco Control,External Lecturers Expenses,Inspire4Change Consulting Ltd,1800.00, 24-Dec-2015
1277,Revenue,CAHD,CSC - Vinney Green Secure Unit,Premises Maintenance by Contractor,Integral UK Limited,4093.50, 16-Dec-2015
1278,Revenue,CAHD,Care Management Team - South,Agency Staff (Operational)/PCT Pay,IPE,552.50, 30-Dec-2015
1279,Revenue,CAHD,Social Lettings Agency,Fees - General,Individual,12.22, 11-Dec-2015
1280,Revenue,CAHD,Social Lettings Agency,Other Supplies & Services,Individual,690.32, 11-Dec-2015
1281,Revenue,CAHD,Social Lettings Agency,Fees - General,Individual,10.53, 01-Dec-2015
1282,Revenue,CAHD,Social Lettings Agency,Other Supplies & Services,Individual,595.11, 01-Dec-2015
1283,Revenue,CAHD,Social Lettings Agency,Fees - General,Individual,10.53, 30-Dec-2015
1284,Revenue,CAHD,Social Lettings Agency,Other Supplies & Services,Individual,595.11, 30-Dec-2015
1285,Revenue,CAHD,CSC - Safeguarding Board,Professional Fees,JD Children`s Services Consulting Limited,1065.00, 01-Dec-2015
1286,Revenue,CAHD,Quality and Standards,Consultants Fees,Individual,2000.00, 07-Dec-2015
1287,Revenue,CAHD,Quality and Standards,Consultants Fees,Individual,2400.00, 07-Dec-2015
1288,Revenue,CAHD,Training - Adult Services,Training Expenses,Jo Williams,1064.00, 08-Dec-2015
1289,Revenue,CAHD,Training - Adult Services,Training Expenses,Jo Williams,622.00, 24-Dec-2015
1290,Revenue,CAHD,Quality and Standards,Consultants Fees,Individual,1600.00, 14-Dec-2015
1291,Revenue,CAHD,Quality and Standards,Consultants Fees,Individual,2800.00, 14-Dec-2015
1292,Revenue,CAHD,Home Care - Elderly - South,Supported Living,Julia Simone- Supp. Ind.,1178.36, 22-Dec-2015
1293,Revenue,CAHD,Younger MH non-res purchasing,Supported Living,Julia Simone- Supp. Ind.,1178.36, 22-Dec-2015
1294,Revenue,CAHD,Younger MH non-res purchasing,Supported Living,Julia Simone- Supp. Ind.,1178.36, 22-Dec-2015
1295,Revenue,CAHD,Home Care - Elderly - North,Supported Living,Julia Simone- Supp. Ind.,1212.32, 22-Dec-2015
1296,Revenue,CAHD,Younger MH non-res purchasing,Supported Living,Julia Simone- Supp. Ind.,1178.20, 22-Dec-2015
1297,Revenue,CAHD,Bed Purchasing - South,Permanent Residential,Julia Simone- Supp. Ind.,4004.36, 22-Dec-2015
1298,Revenue,CAHD,Bed purchasing -S28A  Under 65 - North,Permanent Residential,Julia Simone- Supp. Ind.,3533.32, 22-Dec-2015
1299,Revenue,CAHD,CSC - Social Work Team - NORTH,Interpreting & Translation,K International Plc,595.00, 24-Dec-2015
1300,Revenue,CAHD,Preventative Services Management,Consultants Fees,Individual,5969.40, 14-Dec-2015
1301,Revenue,CAHD,Statemented Support Payments to OLAs,Other L.A.'s - General,Katharine Lady Berkeley School,533.30, 29-Dec-2015
1302,Revenue,CAHD,Early Years Development,Conference Expenses,Individual,1695.99, 11-Dec-2015
1303,Revenue,CAHD,Community Support - North,Preventative Assistance,KCC Cleaning Services Limited,955.00, 30-Dec-2015
1304,Revenue,CAHD,Sexual Health,Other Small Contracts,Kennedy Way Surgery,1063.34, 02-Dec-2015
1305,Revenue,CAHD,Home Care - Elderly - South,Other Small Contracts,Kensington Community Care,1039.19, 07-Dec-2015
1306,Revenue,CAHD,Home Care - Elderly - North,Other Small Contracts,Kensington Community Care,4064.22, 07-Dec-2015
1307,Revenue,CAHD,Home Care - Elderly - South,Other Small Contracts,Kensington Community Care,1149.72, 07-Dec-2015
1308,Revenue,CAHD,Home Care - Elderly - North,Other Small Contracts,Kensington Community Care,3671.38, 07-Dec-2015
1309,Revenue,CAHD,Home Care - Elderly - South,Other Small Contracts,Kensington Community Care,1201.98, 10-Dec-2015
1310,Revenue,CAHD,Home Care - Elderly - North,Other Small Contracts,Kensington Community Care,3670.26, 10-Dec-2015
1311,Revenue,CAHD,Home Care - Elderly - South,Other Small Contracts,Kensington Community Care,1206.00, 15-Dec-2015
1312,Revenue,CAHD,Home Care - Elderly - North,Other Small Contracts,Kensington Community Care,3312.48, 15-Dec-2015
1313,Revenue,CAHD,Home Care - Elderly - South,Other Small Contracts,Kensington Community Care,1069.32, 29-Dec-2015
1314,Revenue,CAHD,Home Care - Elderly - North,Other Small Contracts,Kensington Community Care,3457.20, 29-Dec-2015
1315,Revenue,CAHD,Day Care - South,Day Care / Social Activities,Kenver House,992.00, 07-Dec-2015
1316,Revenue,CAHD,Bed Purchasing - Southmead Hospital,Permanent Residential,Kenver House Residential Home,1664.04, 22-Dec-2015
1317,Revenue,CAHD,Bed Purchasing - Southmead Hospital,Permanent Residential,Kenver House Residential Home,1685.08, 22-Dec-2015
1318,Revenue,CAHD,Bed Purchasing - South,Permanent Residential,Kenver House Residential Home,1539.20, 22-Dec-2015
1319,Revenue,CAHD,Bed Purchasing - South,Permanent Residential,Kenver House Residential Home,1153.00, 22-Dec-2015
1320,Revenue,CAHD,MH Purchasing - Younger,Permanent Residential,Kenver House Residential Home,7560.46, 22-Dec-2015
1321,Revenue,CAHD,MH Purchasing - Younger,Permanent Residential,Kenver House Residential Home,1721.08, 22-Dec-2015
1322,Revenue,CAHD,Bed Purchasing - South,Permanent Residential,Kenver House Residential Home,1388.84, 22-Dec-2015
1323,Revenue,CAHD,Bed Purchasing - South,Permanent Residential,Kenver House Residential Home,1685.08, 22-Dec-2015
1324,Revenue,CAHD,Bed Purchasing - Southmead Hospital,Respite Planned - Residential,Kenver House Residential Home,2190.28, 22-Dec-2015
1325,Revenue,CAHD,Bed Purchasing - South,Permanent Residential,Kenver House Residential Home,1294.36, 22-Dec-2015
1326,Revenue,CAHD,Bed Purchasing - North,Permanent Residential,Kenver House Residential Home,1542.36, 22-Dec-2015
1327,Revenue,CAHD,Bed Purchasing - North,Permanent Residential,Kenver House Residential Home,1046.60, 22-Dec-2015
1328,Revenue,CAHD,Bed Purchasing - Southmead Hospital,Permanent Residential,Kenver House Residential Home,1682.68, 22-Dec-2015
1329,Revenue,CAHD,Bed Purchasing - Southmead Hospital,Permanent Residential,Kenver House Residential Home,1562.49, 22-Dec-2015
1330,Revenue,CAHD,Bed Purchasing - South,Permanent Residential,Kenver House Residential Home,1277.20, 22-Dec-2015
1331,Revenue,CAHD,Bed Purchasing - Southmead Hospital,Permanent Residential,Kenver House Residential Home,1685.00, 22-Dec-2015
1332,Revenue,CAHD,Bed Purchasing - South,Permanent Residential,Kenver House Residential Home,1685.08, 22-Dec-2015
1333,Revenue,CAHD,CSC - Legal Fees,Legal Fees,Kerseys Solicitors,500.00, 10-Dec-2015
1334,Revenue,CAHD,CSC - Care Leavers Independent Living,Adults - Family Support,Key2 Futures Limited,2967.01, 29-Dec-2015
1335,Revenue,CAHD,CSC - Care Leavers Independent Living,Adults - Family Support,Key2 Futures Limited,2501.39, 29-Dec-2015
1336,Revenue,CAHD,CSC - Care Leavers Independent Living,Independent Living,Key2 Futures Limited,2967.01, 29-Dec-2015
1337,Revenue,CAHD,CSC - Care Leavers Independent Living,Adults - Family Support,Key2 Futures Limited,967.51, 29-Dec-2015
1338,Revenue,CAHD,CSC - Care Leavers Independent Living,Independent Living,Key2 Futures Limited,2967.01, 29-Dec-2015
1339,Revenue,CAHD,CSC - Care Leavers Independent Living,Independent Living,Key2 Futures Limited,3021.30, 30-Dec-2015
1340,Revenue,CAHD,CSC - Care Leavers Independent Living,Adults - Family Support,Key2 Futures Limited,2871.30, 30-Dec-2015
1341,Revenue,CAHD,CSC - Care Leavers Independent Living,Adults - Family Support,Key2 Futures Limited,2420.70, 30-Dec-2015
1342,Revenue,CAHD,CSC - Care Leavers Independent Living,Independent Living,Key2 Futures Limited,2871.30, 30-Dec-2015
1343,Revenue,CAHD,CSC - Care Leavers Independent Living,Adults - Family Support,Key2 Futures Limited,936.30, 30-Dec-2015
1344,Revenue,CAHD,CSC - Care Leavers Independent Living,Independent Living,Key2 Futures Limited,2871.30, 30-Dec-2015
1345,Revenue,CAHD,CSC - Care Leavers Independent Living,Adults - Family Support,Key2 Futures Limited,2476.80, 30-Dec-2015
1346,Revenue,CAHD,Supporting People Programme,Grants to Voluntary Bodies,Keyring Living Support Networks,2948.50, 01-Dec-2015
1347,Revenue,CAHD,Supporting People Programme,Grants to Voluntary Bodies,Keyring Living Support Networks,2948.50, 30-Dec-2015
1348,Revenue,CAHD,Children & Young People�s Health,Other Supplies & Services,Kid Rapt Limited,1160.00, 04-Dec-2015
1349,Revenue,CAHD,CSC - Kids Contract,Grants to Voluntary Bodies,Kids,43750.00, 22-Dec-2015
1350,Revenue,CAHD,CSC - Short Breaks,Grants to Voluntary Bodies,Kids,1344.00, 22-Dec-2015
1351,Revenue,CAHD,Bed Purchasing - North,Permanent Nursing,Kingfisher Lodge Care Centre,2531.88, 22-Dec-2015
1352,Revenue,CAHD,Sexual Health,Other Small Contracts,Kingswood Health Centre,3138.36, 02-Dec-2015
1353,Revenue,CAHD,Supporting People Programme,Grants to Voluntary Bodies,Kingswood Young Homeless Project,17126.66, 01-Dec-2015
1354,Revenue,CAHD,Supporting People Programme,Grants to Voluntary Bodies,Kingswood Young Homeless Project,17126.66, 30-Dec-2015
1355,Revenue,CAHD,CSC - LAC Housing Support Grants,Training Expenses,Kingswood Young Homeless Project,9436.00, 22-Dec-2015
1356,Revenue,CAHD,Community Care Contact Centre,Office Supplies & Equipment,Kinnarps UK Limited (Invoice Account),447.85, 01-Dec-2015
1357,Revenue,CAHD,CSC - Adoption West Project,Consultants Fees,Individual,3600.00, 17-Dec-2015
1358,Revenue,CAHD,Bed Purchasing - North,Permanent Residential,Kisimul Group,11512.80, 22-Dec-2015
1359,Revenue,CAHD,Early Years High Needs Support,Other Private Contractors,KMC Pre-School,672.10, 18-Dec-2015
1360,Revenue,CAHD,Supporting People Programme,Grants to Voluntary Bodies,Knightstone Housing Association Limited,13659.70, 01-Dec-2015
1361,Revenue,CAHD,Supporting People Programme,Grants to Voluntary Bodies,Knightstone Housing Association Limited,7684.61, 01-Dec-2015
1362,Revenue,CAHD,Supporting People Programme,Grants to Voluntary Bodies,Knightstone Housing Association Limited,1809.08, 01-Dec-2015
1363,Revenue,CAHD,Supporting People Programme,Grants to Voluntary Bodies,Knightstone Housing Association Limited,2509.56, 01-Dec-2015
1364,Revenue,CAHD,Supporting People Programme,Grants to Voluntary Bodies,Knightstone Housing Association Limited,2510.15, 01-Dec-2015
1365,Revenue,CAHD,Supporting People Programme,Grants to Voluntary Bodies,Knightstone Housing Association Limited,853.70, 01-Dec-2015
1366,Revenue,CAHD,Supporting People Programme,Grants to Voluntary Bodies,Knightstone Housing Association Limited,8630.13, 01-Dec-2015
1367,Revenue,CAHD,Supporting People Programme,Grants to Voluntary Bodies,Knightstone Housing Association Limited,13659.70, 30-Dec-2015
1368,Revenue,CAHD,Supporting People Programme,Grants to Voluntary Bodies,Knightstone Housing Association Limited,7684.61, 30-Dec-2015
1369,Revenue,CAHD,Supporting People Programme,Grants to Voluntary Bodies,Knightstone Housing Association Limited,1809.08, 30-Dec-2015
1370,Revenue,CAHD,Supporting People Programme,Grants to Voluntary Bodies,Knightstone Housing Association Limited,2509.56, 30-Dec-2015
1371,Revenue,CAHD,Supporting People Programme,Grants to Voluntary Bodies,Knightstone Housing Association Limited,2510.15, 30-Dec-2015
1372,Revenue,CAHD,Supporting People Programme,Grants to Voluntary Bodies,Knightstone Housing Association Limited,853.70, 30-Dec-2015
1373,Revenue,CAHD,Supporting People Programme,Grants to Voluntary Bodies,Knightstone Housing Association Limited,8630.13, 30-Dec-2015
1374,Revenue,CAHD,Placements OLA Special Schools and RB,Other L.A.'s - General,Knowle DGE,2083.33, 30-Dec-2015
1375,Revenue,CAHD,Placements OLA Special Schools and RB,Other L.A.'s - General,Knowle DGE,833.33, 30-Dec-2015
1376,Revenue,CAHD,Placements OLA Special Schools and RB,Other L.A.'s - General,Knowle DGE,1250.00, 30-Dec-2015
1377,Revenue,CAHD,Home Care - Elderly - South,Other Small Contracts,Kumari Care Limited,2033.20, 01-Dec-2015
1378,Revenue,CAHD,Home Care - Elderly - North,Other Small Contracts,Kumari Care Limited,833.86, 01-Dec-2015
1379,Revenue,CAHD,Home Care - Elderly - South,Other Small Contracts,Kumari Care Limited,2021.47, 10-Dec-2015
1380,Revenue,CAHD,Home Care - Elderly - North,Other Small Contracts,Kumari Care Limited,833.86, 10-Dec-2015
1381,Revenue,CAHD,Home Care - Elderly - South,Other Small Contracts,Kumari Care Limited,2017.56, 15-Dec-2015
1382,Revenue,CAHD,Home Care - Elderly - North,Other Small Contracts,Kumari Care Limited,833.86, 15-Dec-2015
1383,Revenue,CAHD,Home Care - Elderly - South,Other Small Contracts,Kumari Care Limited,2009.74, 22-Dec-2015
1384,Revenue,CAHD,Home Care - Elderly - North,Other Small Contracts,Kumari Care Limited,831.42, 22-Dec-2015
1385,Revenue,CAHD,Serious Case Review Child Safeguarding,Professional Fees,Lake Consulting (Bradley) Ltd,2200.00, 11-Dec-2015
1386,Revenue,CAHD,Bed Purchasing - North,Permanent Nursing,Leonard Cheshire  National Account Centr,5090.88, 22-Dec-2015
1387,Revenue,CAHD,Bed Purchasing - North,Permanent Residential,Leonard Cheshire  National Account Centr,2948.64, 22-Dec-2015
1388,Revenue,CAHD,Bed Purchasing - South,Permanent Residential,Leonard Cheshire  National Account Centr,3376.16, 22-Dec-2015
1389,Revenue,CAHD,Bed Purchasing - North,Permanent Nursing,Leonard Cheshire  National Account Centr,3559.68, 22-Dec-2015
1390,Revenue,CAHD,Bed Purchasing - North,Permanent Nursing,Leonard Cheshire  National Account Centr,2858.32, 22-Dec-2015
1391,Revenue,CAHD,18-25 Year Olds,Permanent Residential,Leonard Cheshire  National Account Centr,3231.92, 22-Dec-2015
1392,Revenue,CAHD,Bed Purchasing - North,Permanent Residential,Leonard Cheshire  National Account Centr,6024.88, 22-Dec-2015
1393,Revenue,CAHD,Bed Purchasing - North,Permanent Residential,Leonard Cheshire  National Account Centr,6023.32, 22-Dec-2015
1394,Revenue,CAHD,Bed Purchasing - South,Permanent Residential,Leonard Cheshire  National Account Centr,4544.12, 22-Dec-2015
1395,Revenue,CAHD,Bed Purchasing - North,Permanent Nursing,Leonard Cheshire  National Account Centr,2913.28, 22-Dec-2015
1396,Revenue,CAHD,Bed Purchasing - North,Permanent Nursing,Leonard Cheshire  National Account Centr,3912.16, 22-Dec-2015
1397,Revenue,CAHD,Bed Purchasing - North,Permanent Residential,Leonard Cheshire  National Account Centr,2965.36, 22-Dec-2015
1398,Revenue,CAHD,Bed Purchasing - North,Permanent Nursing,Leonard Cheshire  National Account Centr,3306.84, 22-Dec-2015
1399,Revenue,CAHD,Bed Purchasing - North,Permanent Nursing,Leonard Cheshire  National Account Centr,5663.60, 22-Dec-2015
1400,Revenue,CAHD,Bed Purchasing - South,Permanent Nursing,Leonard Cheshire  National Account Centr,2940.92, 22-Dec-2015
1401,Revenue,CAHD,Bed Purchasing - Southmead Hospital,Permanent Nursing,Leonard Cheshire  National Account Centr,3075.12, 22-Dec-2015
1402,Revenue,CAHD,South Glos Users in all other LA Homes,Permanent Nursing,Leonard Cheshire  National Account Centr,616.56, 22-Dec-2015
1403,Revenue,CAHD,Bed Purchasing - North,Permanent Nursing,Leonard Cheshire  National Account Centr,3363.96, 22-Dec-2015
1404,Revenue,CAHD,Bed Purchasing - North,Permanent Nursing,Leonard Cheshire  National Account Centr,4167.96, 22-Dec-2015
1405,Revenue,CAHD,Tenancy Start Up Scheme,Other Supplies & Services,Lifestyle Lettings (Rent),650.00, 10-Dec-2015
1406,Revenue,CAHD,Supported Living - North,Private & Voluntary Home Care,Lifeways Community Care (Gloucester) Limited,11758.56, 04-Dec-2015
1407,Revenue,CAHD,Day Care - North,Day Care / Social Activities,Lifeways Community Care (Gloucester) Limited,1228.01, 24-Dec-2015
1408,Revenue,CAHD,CSC - Allowances,Membership Fees,Link Maker Systems,2500.00, 14-Dec-2015
1409,Revenue,CAHD,Alexandra Way,Premises Maintenance by Contractor,Lionel Saunders & Co (Bristol) Limited,1872.00, 18-Dec-2015
1410,Revenue,CAHD,Bed Purchasing - Southmead Hospital,Permanent Residential,Little Croft,1085.24, 22-Dec-2015
1411,Revenue,CAHD,Bed Purchasing - Southmead Hospital,Permanent Residential,Little Croft,1269.32, 22-Dec-2015
1412,Revenue,CAHD,Bed Purchasing - North,Permanent Residential,Little Croft,1230.92, 22-Dec-2015
1413,Revenue,CAHD,Bed Purchasing - Southmead Hospital,Permanent Residential,Little Croft,1278.80, 22-Dec-2015
1414,Revenue,CAHD,Bed Purchasing - North,Permanent Residential,Little Croft,1217.96, 22-Dec-2015
1415,Revenue,CAHD,Bed Purchasing - Southmead Hospital,Permanent Residential,Little Croft,1694.80, 22-Dec-2015
1416,Revenue,CAHD,Bed Purchasing - South,Permanent Residential,Little Croft,908.60, 22-Dec-2015
1417,Revenue,CAHD,Bed Purchasing - Southmead Hospital,Permanent Residential,Little Croft,1763.48, 22-Dec-2015
1418,Revenue,CAHD,Bed Purchasing - Southmead Hospital,Permanent Residential,Little Croft,1776.00, 22-Dec-2015
1419,Revenue,CAHD,Bed Purchasing - Southmead Hospital,Permanent Residential,Little Croft,1478.80, 22-Dec-2015
1420,Revenue,CAHD,Bed Purchasing - Southmead Hospital,Permanent Residential,Little Croft,1442.80, 22-Dec-2015
1421,Revenue,CAHD,Bed Purchasing - Southmead Hospital,Permanent Residential,Little Croft,1233.68, 22-Dec-2015
1422,Revenue,CAHD,Bed Purchasing - North,Permanent Residential,Little Croft,1075.60, 22-Dec-2015
1423,Revenue,CAHD,Bed Purchasing - South,Permanent Residential,Little Croft,1241.84, 22-Dec-2015
1424,Revenue,CAHD,Bed Purchasing - South,Permanent Residential,Little Croft,1422.92, 22-Dec-2015
1425,Revenue,CAHD,Bed Purchasing - Southmead Hospital,Permanent Residential,Little Croft,1270.80, 22-Dec-2015
1426,Revenue,CAHD,Bed Purchasing - North,Permanent Residential,Little Croft,1408.44, 22-Dec-2015
1427,Revenue,CAHD,Bed Purchasing - Southmead Hospital,Permanent Residential,Little Croft,1270.80, 22-Dec-2015
1428,Revenue,CAHD,Bed Purchasing - Southmead Hospital,Permanent Residential,Little Croft,1494.80, 22-Dec-2015
1429,Revenue,CAHD,Early Years High Needs Support,Other Private Contractors,Little Oaks Day Nursery & Pre-school,974.16, 10-Dec-2015
1430,Revenue,CAHD,Bed Purchasing - North,Permanent Residential,Littlecroft Residential Homes  Longcroft,6478.92, 22-Dec-2015
1431,Revenue,CAHD,Home Care - Elderly - South,Day Care / Social Activities,Lloyds TSB Commercial Finance Limited,4729.34, 10-Dec-2015
1432,Revenue,CAHD,Home Care - Elderly - South,Other Small Contracts,Lloyds TSB Commercial Finance Limited,5275.65, 10-Dec-2015
1433,Revenue,CAHD,Home Care - Elderly - South,Supported Living,Lloyds TSB Commercial Finance Limited,8115.17, 10-Dec-2015
1434,Revenue,CAHD,Home Care - Elderly - North,Day Care / Social Activities,Lloyds TSB Commercial Finance Limited,407.00, 10-Dec-2015
1435,Revenue,CAHD,Home Care - Elderly - North,Supported Living,Lloyds TSB Commercial Finance Limited,1823.36, 10-Dec-2015
1436,Revenue,CAHD,Younger MH non-res purchasing,Other Small Contracts,Lloyds TSB Commercial Finance Limited,10620.52, 10-Dec-2015
1437,Revenue,CAHD,Younger MH non-res purchasing,Supported Living,Lloyds TSB Commercial Finance Limited,105.20, 10-Dec-2015
1438,Revenue,CAHD,Home Care - Elderly - South,Day Care / Social Activities,Lloyds TSB Commercial Finance Limited,4647.94, 10-Dec-2015
1439,Revenue,CAHD,Home Care - Elderly - South,Other Small Contracts,Lloyds TSB Commercial Finance Limited,5365.85, 10-Dec-2015
1440,Revenue,CAHD,Home Care - Elderly - South,Supported Living,Lloyds TSB Commercial Finance Limited,7134.99, 10-Dec-2015
1441,Revenue,CAHD,Home Care - Elderly - North,Day Care / Social Activities,Lloyds TSB Commercial Finance Limited,48.84, 10-Dec-2015
1442,Revenue,CAHD,Home Care - Elderly - North,Supported Living,Lloyds TSB Commercial Finance Limited,1461.13, 10-Dec-2015
1443,Revenue,CAHD,Younger MH non-res purchasing,Other Small Contracts,Lloyds TSB Commercial Finance Limited,10631.04, 10-Dec-2015
1444,Revenue,CAHD,Younger MH non-res purchasing,Supported Living,Lloyds TSB Commercial Finance Limited,105.20, 10-Dec-2015
1445,Revenue,CAHD,Home Care - Elderly - South,Day Care / Social Activities,Lloyds TSB Commercial Finance Limited,4517.70, 22-Dec-2015
1446,Revenue,CAHD,Home Care - Elderly - South,Other Small Contracts,Lloyds TSB Commercial Finance Limited,5365.85, 22-Dec-2015
1447,Revenue,CAHD,Home Care - Elderly - South,Supported Living,Lloyds TSB Commercial Finance Limited,7860.26, 22-Dec-2015
1448,Revenue,CAHD,Home Care - Elderly - North,Day Care / Social Activities,Lloyds TSB Commercial Finance Limited,48.84, 22-Dec-2015
1449,Revenue,CAHD,Home Care - Elderly - North,Supported Living,Lloyds TSB Commercial Finance Limited,736.67, 22-Dec-2015
1450,Revenue,CAHD,Younger MH non-res purchasing,Other Small Contracts,Lloyds TSB Commercial Finance Limited,10646.82, 22-Dec-2015
1451,Revenue,CAHD,Younger MH non-res purchasing,Supported Living,Lloyds TSB Commercial Finance Limited,105.20, 22-Dec-2015
1452,Revenue,CAHD,Home Care - Elderly - South,Day Care / Social Activities,Lloyds TSB Commercial Finance Limited,4664.22, 29-Dec-2015
1453,Revenue,CAHD,Home Care - Elderly - South,Other Small Contracts,Lloyds TSB Commercial Finance Limited,5382.13, 29-Dec-2015
1454,Revenue,CAHD,Home Care - Elderly - South,Supported Living,Lloyds TSB Commercial Finance Limited,7280.61, 29-Dec-2015
1455,Revenue,CAHD,Home Care - Elderly - North,Day Care / Social Activities,Lloyds TSB Commercial Finance Limited,48.84, 29-Dec-2015
1456,Revenue,CAHD,Home Care - Elderly - North,Supported Living,Lloyds TSB Commercial Finance Limited,1400.08, 29-Dec-2015
1457,Revenue,CAHD,Younger MH non-res purchasing,Other Small Contracts,Lloyds TSB Commercial Finance Limited,10620.36, 29-Dec-2015
1458,Revenue,CAHD,Younger MH non-res purchasing,Supported Living,Lloyds TSB Commercial Finance Limited,105.20, 29-Dec-2015
1459,Revenue,CAHD,Home Care - Elderly - South,Day Care / Social Activities,Lloyds TSB Commercial Finance Limited,4733.41, 29-Dec-2015
1460,Revenue,CAHD,Home Care - Elderly - South,Other Small Contracts,Lloyds TSB Commercial Finance Limited,5386.20, 29-Dec-2015
1461,Revenue,CAHD,Home Care - Elderly - South,Supported Living,Lloyds TSB Commercial Finance Limited,8090.69, 29-Dec-2015
1462,Revenue,CAHD,Home Care - Elderly - North,Day Care / Social Activities,Lloyds TSB Commercial Finance Limited,48.84, 29-Dec-2015
1463,Revenue,CAHD,Home Care - Elderly - North,Supported Living,Lloyds TSB Commercial Finance Limited,1823.36, 29-Dec-2015
1464,Revenue,CAHD,Younger MH non-res purchasing,Other Small Contracts,Lloyds TSB Commercial Finance Limited,10641.56, 29-Dec-2015
1465,Revenue,CAHD,Younger MH non-res purchasing,Supported Living,Lloyds TSB Commercial Finance Limited,105.20, 29-Dec-2015
1466,Revenue,CAHD,CSC - Fostering General,Advertising - General,Local World Limited,1455.20, 03-Dec-2015
1467,Revenue,CAHD,Home Care - Elderly - North,Day Care / Social Activities,Lower Kilcott,1481.84, 22-Dec-2015
1468,Revenue,CAHD,Home Care - Elderly - North,Day Care / Social Activities,Lower Kilcott,710.16, 22-Dec-2015
1469,Revenue,CAHD,Home Care - Elderly - North,Day Care / Social Activities,Lower Kilcott,566.68, 22-Dec-2015
1470,Revenue,CAHD,TSG Practice Placements,Training Expenses,M Harris,560.00, 18-Dec-2015
1471,Revenue,CAHD,Bed Purchasing - Southmead Hospital,Permanent Nursing,Majestic 3 Limited,1004.20, 22-Dec-2015
1472,Revenue,CAHD,18-25 Year Olds,Day Care / Social Activities,Make it Mentoring CIC Ltd,820.00, 24-Dec-2015
1473,Revenue,CAHD,18-25 Year Olds,Day Care / Social Activities,Make it Mentoring CIC Ltd,3500.00, 24-Dec-2015
1474,Revenue,CAHD,18-25 Year Olds,Day Care / Social Activities,Make it Mentoring CIC Ltd,1120.00, 24-Dec-2015
1475,Revenue,CAHD,18-25 Year Olds,Day Care / Social Activities,Make it Mentoring CIC Ltd,546.00, 24-Dec-2015
1476,Revenue,CAHD,18-25 Year Olds,Day Care / Social Activities,Make it Mentoring CIC Ltd,1008.00, 24-Dec-2015
1477,Revenue,CAHD,18-25 Year Olds,Day Care / Social Activities,Make it Mentoring CIC Ltd,1456.00, 24-Dec-2015
1478,Revenue,CAHD,18-25 Year Olds,Day Care / Social Activities,Make it Mentoring CIC Ltd,3059.00, 24-Dec-2015
1479,Revenue,CAHD,Purchase of Non-Res Care - North,Day Care / Social Activities,Make it Mentoring CIC Ltd,2562.00, 01-Dec-2015
1480,Revenue,CAHD,18-25 Year Olds,Day Care / Social Activities,Make it Mentoring CIC Ltd,854.00, 02-Dec-2015
1481,Revenue,CAHD,EY Childcare Voucher Scheme,Childcare Voucher Payment to Providers,Mama Bear`s Day Nursery Ltd,620.00, 14-Dec-2015
1482,Revenue,CAHD,Bed Purchasing - South,Permanent Residential,Manor Cottage,1865.68, 22-Dec-2015
1483,Revenue,CAHD,Bed Purchasing - Southmead Hospital,Permanent Residential,Manor Cottage,1270.80, 22-Dec-2015
1484,Revenue,CAHD,Bed Purchasing - South,Respite Emergency - Residential,Manor Cottage,4037.43, 22-Dec-2015
1485,Revenue,CAHD,Bed Purchasing - Southmead Hospital,Permanent Residential,Manor Cottage,1041.92, 22-Dec-2015
1486,Revenue,CAHD,Bed Purchasing - South,Permanent Residential,Manor Cottage,1464.20, 22-Dec-2015
1487,Revenue,CAHD,Bed Purchasing - South,Permanent Residential,Manor Cottage,1516.40, 22-Dec-2015
1488,Revenue,CAHD,Bed Purchasing - North,Permanent Residential,Manton Hall Residential Home,1542.80, 22-Dec-2015
1489,Revenue,CAHD,Home Care - Elderly - South,Supported Living,Maples Community Care Limited,1400.00, 22-Dec-2015
1490,Revenue,CAHD,Home Care - Elderly - South,Supported Living,Maples Community Care Limited,1400.00, 22-Dec-2015
1491,Revenue,CAHD,Younger MH non-res purchasing,Supported Living,Maples Community Care Limited,1400.00, 22-Dec-2015
1492,Revenue,CAHD,Younger MH non-res purchasing,Supported Living,Maples Community Care Limited,1400.00, 22-Dec-2015
1493,Revenue,CAHD,Younger MH non-res purchasing,Supported Living,Maples Community Care Limited,1400.00, 22-Dec-2015
1494,Revenue,CAHD,Social Lettings Agency,Fees - General,Individual,12.22, 18-Dec-2015
1495,Revenue,CAHD,Social Lettings Agency,Other Supplies & Services,Individual,690.32, 18-Dec-2015
1496,Revenue,CAHD,Bed Purchasing - South,Permanent Residential,Marsden Healthcare Ltd,1276.04, 22-Dec-2015
1497,Revenue,CAHD,Bed Purchasing - South,Permanent Residential,Marsden Healthcare Ltd,3278.84, 22-Dec-2015
1498,Revenue,CAHD,Bed Purchasing - South,Permanent Residential,Marsden Healthcare Ltd,1538.08, 22-Dec-2015
1499,Revenue,CAHD,Early Years High Needs Support,Other Private Contractors,Marshfield Pre School Playgroup,592.20, 29-Dec-2015
1500,Revenue,CAHD,Independent Special Placements - Pre 16,Other Private Contractors,Mary Hare School,1864.00, 24-Dec-2015
1501,Revenue,CAHD,CSC - Agency Fostering,Foster Parent Allowances,Match Foster Care Ltd,6200.00, 24-Dec-2015
1502,Revenue,CAHD,Bed Purchasing - South,Permanent Nursing,Meadow Care Home,1552.32, 22-Dec-2015
1503,Revenue,CAHD,Bed Purchasing - Elderly S117- North,Permanent Nursing,Meadow Care Home,3800.00, 22-Dec-2015
1504,Revenue,CAHD,Bed purchasing - Elderly S117 - South,Permanent Nursing,Meadow Care Home,2420.00, 22-Dec-2015
1505,Revenue,CAHD,Bed Purchasing - Elderly S117- North,Permanent Nursing,Meadow Care Home,3800.00, 22-Dec-2015
1506,Revenue,CAHD,Home Care - Elderly - South,Day Care / Social Activities,Mears Care,89.70, 10-Dec-2015
1507,Revenue,CAHD,Home Care - Elderly - South,Other Small Contracts,Mears Care,1337.70, 10-Dec-2015
1508,Revenue,CAHD,Home Care - Elderly - North,Other Small Contracts,Mears Care,2850.90, 10-Dec-2015
1509,Revenue,CAHD,Under 65s -MH  Home Care Purch,Other Small Contracts,Mears Care,117.00, 10-Dec-2015
1510,Revenue,CAHD,Home Care - Elderly - South,Day Care / Social Activities,Mears Care,78.00, 10-Dec-2015
1511,Revenue,CAHD,Home Care - Elderly - South,Other Small Contracts,Mears Care,1209.00, 10-Dec-2015
1512,Revenue,CAHD,Home Care - Elderly - North,Other Small Contracts,Mears Care,2897.70, 10-Dec-2015
1513,Revenue,CAHD,Under 65s -MH  Home Care Purch,Other Small Contracts,Mears Care,117.00, 10-Dec-2015
1514,Revenue,CAHD,Home Care - Elderly - South,Day Care / Social Activities,Mears Care,89.70, 10-Dec-2015
1515,Revenue,CAHD,Home Care - Elderly - South,Other Small Contracts,Mears Care,1466.40, 10-Dec-2015
1516,Revenue,CAHD,Home Care - Elderly - North,Other Small Contracts,Mears Care,3217.50, 10-Dec-2015
1517,Revenue,CAHD,Under 65s -MH  Home Care Purch,Other Small Contracts,Mears Care,120.90, 10-Dec-2015
1518,Revenue,CAHD,Home Care - Elderly - South,Day Care / Social Activities,Mears Care,78.00, 10-Dec-2015
1519,Revenue,CAHD,Home Care - Elderly - South,Other Small Contracts,Mears Care,1505.40, 10-Dec-2015
1520,Revenue,CAHD,Home Care - Elderly - North,Other Small Contracts,Mears Care,3194.10, 10-Dec-2015
1521,Revenue,CAHD,Under 65s -MH  Home Care Purch,Other Small Contracts,Mears Care,117.00, 10-Dec-2015
1522,Revenue,CAHD,Home Care - Elderly - South,Day Care / Social Activities,Mears Care,89.70, 18-Dec-2015
1523,Revenue,CAHD,Home Care - Elderly - South,Other Small Contracts,Mears Care,1236.30, 18-Dec-2015
1524,Revenue,CAHD,Home Care - Elderly - North,Other Small Contracts,Mears Care,3354.00, 18-Dec-2015
1525,Revenue,CAHD,Under 65s -MH  Home Care Purch,Other Small Contracts,Mears Care,124.80, 18-Dec-2015
1526,Revenue,CAHD,Home Care - Elderly - South,Day Care / Social Activities,Mears Care,89.70, 10-Dec-2015
1527,Revenue,CAHD,Home Care - Elderly - South,Other Small Contracts,Mears Care,1388.40, 10-Dec-2015
1528,Revenue,CAHD,Home Care - Elderly - North,Other Small Contracts,Mears Care,3357.90, 10-Dec-2015
1529,Revenue,CAHD,Under 65s -MH  Home Care Purch,Other Small Contracts,Mears Care,7.80, 10-Dec-2015
1530,Revenue,CAHD,Home Care - Elderly - South,Day Care / Social Activities,Mears Care,93.60, 16-Dec-2015
1531,Revenue,CAHD,Home Care - Elderly - South,Other Small Contracts,Mears Care,1548.30, 16-Dec-2015
1532,Revenue,CAHD,Home Care - Elderly - North,Other Small Contracts,Mears Care,3506.10, 16-Dec-2015
1533,Revenue,CAHD,Home Care - Elderly - South,Day Care / Social Activities,Mears Care,93.60, 21-Dec-2015
1534,Revenue,CAHD,Home Care - Elderly - South,Other Small Contracts,Mears Care,1407.90, 21-Dec-2015
1535,Revenue,CAHD,Home Care - Elderly - North,Other Small Contracts,Mears Care,3381.30, 21-Dec-2015
1536,Revenue,CAHD,Home Care - Elderly - South,Private & Voluntary Home Care,Mears Care,49770.25, 24-Dec-2015
1537,Revenue,CAHD,Home Care - Elderly - South,Other Small Contracts,Medacs Home Care,35.40, 22-Dec-2015
1538,Revenue,CAHD,Home Care - Elderly - North,Other Small Contracts,Medacs Home Care,686.76, 22-Dec-2015
1539,Revenue,CAHD,Home Care - Elderly - South,Other Small Contracts,Medacs Home Care,35.40, 15-Dec-2015
1540,Revenue,CAHD,Home Care - Elderly - North,Other Small Contracts,Medacs Home Care,722.16, 15-Dec-2015
1541,Revenue,CAHD,CSC - OT Equipment - Children,Daily Living Equipment,Medequip Assistive Technology Limited,484.68, 01-Dec-2015
1542,Revenue,CAHD,ICES / NRS Contract,Daily Living Equipment,Medequip Assistive Technology Limited,323.13, 01-Dec-2015
1543,Revenue,CAHD,ICES / NRS Contract,Daily Living Equipment,Medequip Assistive Technology Limited,484.69, 01-Dec-2015
1544,Revenue,CAHD,CSC - OT Equipment - Children,Daily Living Equipment,Medequip Assistive Technology Limited,6907.58, 14-Dec-2015
1545,Revenue,CAHD,ICES / NRS Contract,Daily Living Equipment,Medequip Assistive Technology Limited,7473.76, 14-Dec-2015
1546,Revenue,CAHD,ICES / NRS Contract,Daily Living Equipment,Medequip Assistive Technology Limited,72035.41, 14-Dec-2015
1547,Revenue,CAHD,Rapid Response Service,Operational Equipment,Meltemi  Limited,422.45, 07-Dec-2015
1548,Revenue,CAHD,Bed Purchasing - South,Permanent Residential,Mencap,2277.84, 22-Dec-2015
1549,Revenue,CAHD,Supported Living (S28a) South,Private & Voluntary Home Care,Mencap - PS Central & Cymru,3841.88, 01-Dec-2015
1550,Revenue,CAHD,Supported Living (S28a) South,Private & Voluntary Home Care,Mencap - PS Central & Cymru,3841.88, 24-Dec-2015
1551,Revenue,CAHD,CSC - Section 17,Preventative Assistance,Meridian Business Support Ltd,781.60, 10-Dec-2015
1552,Revenue,CAHD,CSC - Section 17,Preventative Assistance,Meridian Business Support Ltd,781.60, 17-Dec-2015
1553,Revenue,CAHD,CSC - Section 17,Preventative Assistance,Meridian Business Support Ltd,781.60, 24-Dec-2015
1554,Revenue,CAHD,CSC - Section 17,Preventative Assistance,Meridian Business Support Ltd,1016.18, 30-Dec-2015
1555,Revenue,CAHD,Supporting People Programme,Grants to Voluntary Bodies,Merlin Housing Society,14786.49, 01-Dec-2015
1556,Revenue,CAHD,Supporting People Programme,Grants to Voluntary Bodies,Merlin Housing Society,2485.47, 01-Dec-2015
1557,Revenue,CAHD,Supporting People Programme,Grants to Voluntary Bodies,Merlin Housing Society,47076.50, 01-Dec-2015
1558,Revenue,CAHD,Supporting People Programme,Grants to Voluntary Bodies,Merlin Housing Society,1053.09, 01-Dec-2015
1559,Revenue,CAHD,Supporting People Programme,Grants to Voluntary Bodies,Merlin Housing Society,14786.49, 30-Dec-2015
1560,Revenue,CAHD,Supporting People Programme,Grants to Voluntary Bodies,Merlin Housing Society,2485.47, 30-Dec-2015
1561,Revenue,CAHD,Supporting People Programme,Grants to Voluntary Bodies,Merlin Housing Society,47076.50, 30-Dec-2015
1562,Revenue,CAHD,Supporting People Programme,Grants to Voluntary Bodies,Merlin Housing Society,1053.09, 30-Dec-2015
1563,Revenue,CAHD,Intermediate Care Accommodation,Other Supplies & Services,Merlin Housing Society,491.12, 23-Dec-2015
1564,Revenue,CAHD,Intermediate Care Accommodation,Other Supplies & Services,Merlin Housing Society,491.12, 23-Dec-2015
1565,Revenue,CAHD,Intermediate Care Accommodation,Other Supplies & Services,Merlin Housing Society,491.12, 23-Dec-2015
1566,Revenue,CAHD,Intermediate Care Accommodation,Other Supplies & Services,Merlin Housing Society,613.91, 23-Dec-2015
1567,Revenue,CAHD,Intermediate Care Accommodation,Other Supplies & Services,Merlin Housing Society,491.13, 30-Dec-2015
1568,Revenue,CAHD,Home Care - Elderly - South,Supported Living,Milestones - Unit 10,3631.76, 22-Dec-2015
1569,Revenue,CAHD,Home Care - Elderly - North,Supported Living,Milestones - Unit 10,4304.16, 22-Dec-2015
1570,Revenue,CAHD,Home Care - Elderly - South,Supported Living,Milestones - Unit 10,3631.76, 22-Dec-2015
1571,Revenue,CAHD,Supported Living (S28a) North,Private & Voluntary Home Care,Milestones - Unit 10,4076.32, 22-Dec-2015
1572,Revenue,CAHD,Home Care - Elderly - South,Supported Living,Milestones - Unit 10,3643.60, 22-Dec-2015
1573,Revenue,CAHD,Home Care - Elderly - South,Supported Living,Milestones - Unit 10,2317.68, 22-Dec-2015
1574,Revenue,CAHD,Home Care - Elderly - South,Supported Living,Milestones - Unit 10,3715.52, 22-Dec-2015
1575,Revenue,CAHD,Home Care - Elderly - South,Other Small Contracts,Milestones - Unit 10,3719.52, 22-Dec-2015
1576,Revenue,CAHD,Supported Living (S28a) North,Private & Voluntary Home Care,Milestones - Unit 10,4076.32, 22-Dec-2015
1577,Revenue,CAHD,Supported Living (S28a) South,Supported Living,Milestones - Unit 10,3881.32, 22-Dec-2015
1578,Revenue,CAHD,Supported Living (S28a) North,Private & Voluntary Home Care,Milestones - Unit 10,3603.08, 22-Dec-2015
1579,Revenue,CAHD,Supported Living (S28a) North,Private & Voluntary Home Care,Milestones - Unit 10,3603.08, 22-Dec-2015
1580,Revenue,CAHD,Home Care - Elderly - South,Supported Living,Milestones - Unit 10,1251.04, 22-Dec-2015
1581,Revenue,CAHD,Supported Living (S28a) South,Supported Living,Milestones - Unit 10,5505.80, 22-Dec-2015
1582,Revenue,CAHD,Home Care - Elderly - South,Supported Living,Milestones - Unit 10,2232.52, 22-Dec-2015
1583,Revenue,CAHD,Supported Living (S28a) South,Supported Living,Milestones - Unit 10,2232.52, 22-Dec-2015
1584,Revenue,CAHD,Home Care - Elderly - North,Supported Living,Milestones - Unit 10,4304.16, 22-Dec-2015
1585,Revenue,CAHD,Supported Living (S28a) North,Private & Voluntary Home Care,Milestones - Unit 10,3615.20, 22-Dec-2015
1586,Revenue,CAHD,Supported Living (S28a) South,Supported Living,Milestones - Unit 10,2232.52, 22-Dec-2015
1587,Revenue,CAHD,Supported Living (S28a) South,Supported Living,Milestones - Unit 10,2232.52, 22-Dec-2015
1588,Revenue,CAHD,South Glos Users in South Glos Homes,Permanent Nursing,Milestones - Unit 10,976.00, 22-Dec-2015
1589,Revenue,CAHD,Bed Purchasing - North,Permanent Residential,Milestones - Unit 10,3496.32, 22-Dec-2015
1590,Revenue,CAHD,Bed Purchasing - South,Permanent Residential,Milestones - Unit 10,4921.56, 22-Dec-2015
1591,Revenue,CAHD,Bed Purchasing - South,Permanent Residential,Milestones - Unit 10,6443.92, 22-Dec-2015
1592,Revenue,CAHD,Bed Purchasing - Under 65s PWLD - South,Permanent Residential,Milestones - Unit 10,6765.72, 22-Dec-2015
1593,Revenue,CAHD,Bed Purchasing - South,Permanent Residential,Milestones - Unit 10,941.60, 22-Dec-2015
1594,Revenue,CAHD,Bed Purchasing - South,Permanent Nursing,Milestones - Unit 10,2763.44, 22-Dec-2015
1595,Revenue,CAHD,Bed Purchasing - South,Permanent Nursing,Milestones - Unit 10,1286.44, 22-Dec-2015
1596,Revenue,CAHD,Bed Purchasing - South,Permanent Residential,Milestones - Unit 10,3640.84, 22-Dec-2015
1597,Revenue,CAHD,Bed purchasing - Elderly S117 - South,Permanent Nursing,Milestones - Unit 10,7711.36, 22-Dec-2015
1598,Revenue,CAHD,Bed Purchasing - North,Permanent Nursing,Milestones - Unit 10,1440.08, 22-Dec-2015
1599,Revenue,CAHD,Bed Purchasing - North,Permanent Residential,Milestones - Unit 10,8845.08, 22-Dec-2015
1600,Revenue,CAHD,Bed Purchasing - South,Permanent Residential,Milestones - Unit 10,4165.64, 22-Dec-2015
1601,Revenue,CAHD,Bed Purchasing - North,Permanent Nursing,Milestones - Unit 10,4246.80, 22-Dec-2015
1602,Revenue,CAHD,Bed purchasing -S28A  Under 65 - North,Permanent Residential,Milestones - Unit 10,5387.68, 22-Dec-2015
1603,Revenue,CAHD,Bed purchasing - S28A Under 65 - South,Permanent Residential,Milestones - Unit 10,5588.64, 22-Dec-2015
1604,Revenue,CAHD,Bed Purchasing - South,Permanent Residential,Milestones - Unit 10,1317.44, 22-Dec-2015
1605,Revenue,CAHD,Bed Purchasing - South,Permanent Residential,Milestones - Unit 10,5042.32, 22-Dec-2015
1606,Revenue,CAHD,Bed Purchasing - South,Permanent Residential,Milestones - Unit 10,5595.76, 22-Dec-2015
1607,Revenue,CAHD,Bed purchasing - S28A Under 65 - South,Permanent Nursing,Milestones - Unit 10,7369.04, 22-Dec-2015
1608,Revenue,CAHD,MH Purchasing - Younger,Permanent Residential,Milestones - Unit 10,866.80, 22-Dec-2015
1609,Revenue,CAHD,Bed purchasing - Elderly PWLD - South,Permanent Residential,Milestones - Unit 10,5933.24, 22-Dec-2015
1610,Revenue,CAHD,Bed Purchasing - South,Permanent Residential,Milestones - Unit 10,4886.20, 22-Dec-2015
1611,Revenue,CAHD,Bed Purchasing - South,Permanent Residential,Milestones - Unit 10,6546.70, 22-Dec-2015
1612,Revenue,CAHD,Bed Purchasing - South,Permanent Residential,Milestones - Unit 10,5175.80, 22-Dec-2015
1613,Revenue,CAHD,Bed Purchasing - North,Permanent Residential,Milestones - Unit 10,4062.96, 22-Dec-2015
1614,Revenue,CAHD,Bed purchasing -S28A  Under 65 - North,Permanent Residential,Milestones - Unit 10,5316.80, 22-Dec-2015
1615,Revenue,CAHD,Bed Purchasing - North,Permanent Residential,Milestones - Unit 10,4685.96, 22-Dec-2015
1616,Revenue,CAHD,Bed purchasing -S28A  Under 65 - North,Permanent Residential,Milestones - Unit 10,7136.00, 22-Dec-2015
1617,Revenue,CAHD,Bed purchasing -S28A  Under 65 - North,Permanent Nursing,Milestones - Unit 10,5865.04, 22-Dec-2015
1618,Revenue,CAHD,Bed Purchasing - South,Permanent Residential,Milestones - Unit 10,3245.72, 22-Dec-2015
1619,Revenue,CAHD,Bed purchasing -S28A  Under 65 - North,Permanent Residential,Milestones - Unit 10,6829.12, 22-Dec-2015
1620,Revenue,CAHD,Bed purchasing - S28A Under 65 - South,Permanent Residential,Milestones - Unit 10,4575.80, 22-Dec-2015
1621,Revenue,CAHD,Bed Purchasing - S28A - Over 65- North,Permanent Residential,Milestones - Unit 10,6670.00, 22-Dec-2015
1622,Revenue,CAHD,Bed purchasing -S28A  Under 65 - North,Permanent Residential,Milestones - Unit 10,7089.20, 22-Dec-2015
1623,Revenue,CAHD,Bed purchasing -S28A  Under 65 - North,Permanent Residential,Milestones - Unit 10,7136.20, 22-Dec-2015
1624,Revenue,CAHD,Bed Purchasing - LD S28A- Over 65- South,Permanent Residential,Milestones - Unit 10,4134.48, 22-Dec-2015
1625,Revenue,CAHD,Bed purchasing - S28A Under 65 - South,Permanent Residential,Milestones - Unit 10,4527.72, 22-Dec-2015
1626,Revenue,CAHD,Bed purchasing - S28A Under 65 - South,Permanent Residential,Milestones - Unit 10,3704.60, 22-Dec-2015
1627,Revenue,CAHD,Bed Purchasing - LD S28A- Over 65- South,Permanent Residential,Milestones - Unit 10,5142.04, 22-Dec-2015
1628,Revenue,CAHD,Bed Purchasing - LD S28A- Over 65- South,Permanent Residential,Milestones - Unit 10,4968.40, 22-Dec-2015
1629,Revenue,CAHD,Bed Purchasing - LD S28A- Over 65- South,Permanent Residential,Milestones - Unit 10,5126.08, 22-Dec-2015
1630,Revenue,CAHD,Bed Purchasing - LD S28A- Over 65- South,Permanent Residential,Milestones - Unit 10,4396.24, 22-Dec-2015
1631,Revenue,CAHD,Bed Purchasing - LD S28A- Over 65- South,Permanent Residential,Milestones - Unit 10,5222.00, 22-Dec-2015
1632,Revenue,CAHD,Bed Purchasing - S28A - Over 65- North,Permanent Residential,Milestones - Unit 10,2902.08, 22-Dec-2015
1633,Revenue,CAHD,Section 117 Placements MH Younger,Permanent Residential,Milestones - Unit 10,1372.00, 22-Dec-2015
1634,Revenue,CAHD,Bed Purchasing - South,Permanent Residential,Milestones - Unit 10,866.80, 22-Dec-2015
1635,Revenue,CAHD,Bed purchasing - S28A Under 65 - South,Permanent Residential,Milestones - Unit 10,4988.84, 22-Dec-2015
1636,Revenue,CAHD,Bed Purchasing - North,Permanent Residential,Milestones - Unit 10,4349.92, 22-Dec-2015
1637,Revenue,CAHD,Bed Purchasing - North,Permanent Nursing,Milestones - Unit 10,6971.80, 22-Dec-2015
1638,Revenue,CAHD,Bed Purchasing - South,Permanent Residential,Milestones - Unit 10,4318.72, 22-Dec-2015
1639,Revenue,CAHD,Bed purchasing -S28A  Under 65 - North,Permanent Residential,Milestones - Unit 10,5737.92, 22-Dec-2015
1640,Revenue,CAHD,Bed Purchasing - S28A - Over 65- North,Permanent Residential,Milestones - Unit 10,3633.92, 22-Dec-2015
1641,Revenue,CAHD,MH Purchasing - Younger,Permanent Residential,Milestones - Unit 10,1050.20, 22-Dec-2015
1642,Revenue,CAHD,Bed Purchasing - S28A - Over 65- North,Permanent Residential,Milestones - Unit 10,3245.24, 22-Dec-2015
1643,Revenue,CAHD,Bed Purchasing - LD S28A- Over 65- South,Permanent Residential,Milestones - Unit 10,3919.96, 22-Dec-2015
1644,Revenue,CAHD,Bed purchasing - S28A Under 65 - South,Permanent Residential,Milestones - Unit 10,5228.28, 22-Dec-2015
1645,Revenue,CAHD,Bed purchasing - S28A Under 65 - South,Permanent Nursing,Milestones - Unit 10,5239.84, 22-Dec-2015
1646,Revenue,CAHD,Bed Purchasing - LD S28A- Over 65- South,Permanent Nursing,Milestones - Unit 10,5277.92, 22-Dec-2015
1647,Revenue,CAHD,Bed Purchasing - LD S28A- Over 65- South,Permanent Residential,Milestones - Unit 10,4800.72, 22-Dec-2015
1648,Revenue,CAHD,Bed Purchasing - LD S28A- Over 65- South,Permanent Residential,Milestones - Unit 10,4645.48, 22-Dec-2015
1649,Revenue,CAHD,Bed purchasing - S28A Under 65 - South,Permanent Residential,Milestones - Unit 10,6111.04, 22-Dec-2015
1650,Revenue,CAHD,Bed Purchasing - LD S28A- Over 65- South,Permanent Residential,Milestones - Unit 10,4713.52, 22-Dec-2015
1651,Revenue,CAHD,Bed Purchasing - S28A - Over 65- North,Permanent Residential,Milestones - Unit 10,4776.40, 22-Dec-2015
1652,Revenue,CAHD,Bed Purchasing - South,Permanent Nursing,Milestones - Unit 10,3319.80, 22-Dec-2015
1653,Revenue,CAHD,Bed Purchasing - S28A - Over 65- North,Permanent Residential,Milestones - Unit 10,4634.04, 22-Dec-2015
1654,Revenue,CAHD,Bed Purchasing - S28A - Over 65- North,Permanent Residential,Milestones - Unit 10,4806.64, 22-Dec-2015
1655,Revenue,CAHD,Bed purchasing - S28A Under 65 - South,Permanent Residential,Milestones - Unit 10,4808.68, 22-Dec-2015
1656,Revenue,CAHD,Bed Purchasing - S28A - Over 65- North,Permanent Residential,Milestones - Unit 10,4547.76, 22-Dec-2015
1657,Revenue,CAHD,Bed purchasing -S28A  Under 65 - North,Permanent Residential,Milestones - Unit 10,7136.20, 22-Dec-2015
1658,Revenue,CAHD,Bed purchasing -S28A  Under 65 - North,Permanent Residential,Milestones - Unit 10,3340.76, 22-Dec-2015
1659,Revenue,CAHD,Bed Purchasing - North,Permanent Residential,Milestones - Unit 10,3162.44, 22-Dec-2015
1660,Revenue,CAHD,Bed Purchasing - S28A - Over 65- North,Permanent Residential,Milestones - Unit 10,3464.24, 22-Dec-2015
1661,Revenue,CAHD,Bed Purchasing - North,Permanent Nursing,Milestones - Unit 10,1330.80, 22-Dec-2015
1662,Revenue,CAHD,MH Purchasing - Younger,Permanent Nursing,Milestones - Unit 10,950.96, 22-Dec-2015
1663,Revenue,CAHD,MH Purchasing - Younger,Permanent Nursing,Milestones - Unit 10,958.80, 22-Dec-2015
1664,Revenue,CAHD,Bed Purchasing - South,Permanent Residential,Milestones - Unit 10,3285.36, 22-Dec-2015
1665,Revenue,CAHD,Bed purchasing - S28A Under 65 - South,Permanent Residential,Milestones - Unit 10,5984.08, 22-Dec-2015
1666,Revenue,CAHD,Bed purchasing - S28A Under 65 - South,Permanent Residential,Milestones - Unit 10,6071.04, 22-Dec-2015
1667,Revenue,CAHD,Bed Purchasing - Southmead Hospital,Permanent Nursing,Milestones - Unit 10,14591.60, 22-Dec-2015
1668,Revenue,CAHD,Bed Purchasing - Southmead Hospital,Permanent Nursing,Milestones - Unit 10,5836.64, 22-Dec-2015
1669,Revenue,CAHD,Bed Purchasing - LD S28A- Over 65- South,Permanent Residential,Milestones - Unit 10,4396.24, 22-Dec-2015
1670,Revenue,CAHD,Bed Purchasing - South,Permanent Residential,Milestones - Unit 10,5984.52, 22-Dec-2015
1671,Revenue,CAHD,Bed Purchasing - LD S28A- Over 65- South,Permanent Nursing,Milestones - Unit 10,5277.92, 22-Dec-2015
1672,Revenue,CAHD,Bed Purchasing - LD S28A- Over 65- South,Permanent Residential,Milestones - Unit 10,3575.16, 22-Dec-2015
1673,Revenue,CAHD,Bed Purchasing - South,Permanent Residential,Milestones - Unit 10,1239.36, 22-Dec-2015
1674,Revenue,CAHD,Bed purchasing -S28A  Under 65 - North,Permanent Nursing,Milestones - Unit 10,7697.08, 22-Dec-2015
1675,Revenue,CAHD,Bed Purchasing - Southmead Hospital,Permanent Nursing,Milestones - Unit 10,1368.08, 22-Dec-2015
1676,Revenue,CAHD,Bed Purchasing - South,Permanent Residential,Milestones - Unit 10,5319.52, 22-Dec-2015
1677,Revenue,CAHD,Bed Purchasing - North,Permanent Nursing,Milestones - Unit 10,1460.24, 22-Dec-2015
1678,Revenue,CAHD,Bed Purchasing - North,Permanent Nursing,Milestones - Unit 10,834.36, 22-Dec-2015
1679,Revenue,CAHD,18-25 Year Olds,Permanent Residential,Milestones - Unit 10,9919.20, 22-Dec-2015
1680,Revenue,CAHD,Section 117 Placements MH Younger,Permanent Residential,Milestones - Unit 10,1372.00, 22-Dec-2015
1681,Revenue,CAHD,Bed Purchasing - South,Permanent Nursing,Milestones - Unit 10,3399.64, 22-Dec-2015
1682,Revenue,CAHD,Bed Purchasing - South,Permanent Nursing,Milestones - Unit 10,2808.92, 22-Dec-2015
1683,Revenue,CAHD,Bed Purchasing - LD S28A- Over 65- South,Permanent Nursing,Milestones - Unit 10,2793.28, 22-Dec-2015
1684,Revenue,CAHD,Bed Purchasing - S28A - Over 65- North,Permanent Nursing,Milestones - Unit 10,3670.84, 22-Dec-2015
1685,Revenue,CAHD,Bed Purchasing - S28A - Over 65- North,Permanent Nursing,Milestones - Unit 10,3666.84, 22-Dec-2015
1686,Revenue,CAHD,MH Purchasing - Younger,Respite Planned - Residential,Milestones - Unit 10,3774.80, 22-Dec-2015
1687,Revenue,CAHD,Home Care - Elderly - South,Day Care / Social Activities,Milestones Homecare & Dementia Service,27.51, 04-Dec-2015
1688,Revenue,CAHD,Home Care - Elderly - South,Other Small Contracts,Milestones Homecare & Dementia Service,1607.37, 04-Dec-2015
1689,Revenue,CAHD,Home Care - Elderly - North,Other Small Contracts,Milestones Homecare & Dementia Service,1886.63, 04-Dec-2015
1690,Revenue,CAHD,Home care - Elderly MH - North,Other Small Contracts,Milestones Homecare & Dementia Service,47.16, 04-Dec-2015
1691,Revenue,CAHD,Home Care - Elderly - South,Day Care / Social Activities,Milestones Homecare & Dementia Service,31.44, 04-Dec-2015
1692,Revenue,CAHD,Home Care - Elderly - South,Other Small Contracts,Milestones Homecare & Dementia Service,1568.07, 04-Dec-2015
1693,Revenue,CAHD,Home Care - Elderly - North,Other Small Contracts,Milestones Homecare & Dementia Service,1830.13, 04-Dec-2015
1694,Revenue,CAHD,Home care - Elderly MH - North,Other Small Contracts,Milestones Homecare & Dementia Service,58.95, 04-Dec-2015
1695,Revenue,CAHD,Home Care - Elderly - South,Day Care / Social Activities,Milestones Homecare & Dementia Service,31.44, 04-Dec-2015
1696,Revenue,CAHD,Home Care - Elderly - South,Other Small Contracts,Milestones Homecare & Dementia Service,1807.80, 04-Dec-2015
1697,Revenue,CAHD,Home Care - Elderly - North,Other Small Contracts,Milestones Homecare & Dementia Service,1794.96, 04-Dec-2015
1698,Revenue,CAHD,Home care - Elderly MH - North,Other Small Contracts,Milestones Homecare & Dementia Service,39.30, 04-Dec-2015
1699,Revenue,CAHD,Home Care - Elderly - South,Day Care / Social Activities,Milestones Homecare & Dementia Service,27.51, 04-Dec-2015
1700,Revenue,CAHD,Home Care - Elderly - South,Other Small Contracts,Milestones Homecare & Dementia Service,1509.12, 04-Dec-2015
1701,Revenue,CAHD,Home Care - Elderly - North,Other Small Contracts,Milestones Homecare & Dementia Service,1657.26, 04-Dec-2015
1702,Revenue,CAHD,Home care - Elderly MH - North,Other Small Contracts,Milestones Homecare & Dementia Service,62.88, 04-Dec-2015
1703,Revenue,CAHD,Home Care - Elderly - South,Day Care / Social Activities,Milestones Homecare & Dementia Service,31.44, 04-Dec-2015
1704,Revenue,CAHD,Home Care - Elderly - South,Other Small Contracts,Milestones Homecare & Dementia Service,1355.85, 04-Dec-2015
1705,Revenue,CAHD,Home Care - Elderly - North,Other Small Contracts,Milestones Homecare & Dementia Service,1543.29, 04-Dec-2015
1706,Revenue,CAHD,Home care - Elderly MH - North,Other Small Contracts,Milestones Homecare & Dementia Service,70.74, 04-Dec-2015
1707,Revenue,CAHD,Home Care - Elderly - South,Day Care / Social Activities,Milestones Homecare & Dementia Service,31.44, 04-Dec-2015
1708,Revenue,CAHD,Home Care - Elderly - South,Other Small Contracts,Milestones Homecare & Dementia Service,1277.25, 04-Dec-2015
1709,Revenue,CAHD,Home Care - Elderly - North,Other Small Contracts,Milestones Homecare & Dementia Service,1586.27, 04-Dec-2015
1710,Revenue,CAHD,Home care - Elderly MH - North,Other Small Contracts,Milestones Homecare & Dementia Service,47.16, 04-Dec-2015
1711,Revenue,CAHD,Home Care - Elderly - South,Day Care / Social Activities,Milestones Homecare & Dementia Service,31.44, 10-Dec-2015
1712,Revenue,CAHD,Home Care - Elderly - South,Other Small Contracts,Milestones Homecare & Dementia Service,1332.27, 10-Dec-2015
1713,Revenue,CAHD,Home Care - Elderly - North,Other Small Contracts,Milestones Homecare & Dementia Service,1578.76, 10-Dec-2015
1714,Revenue,CAHD,Home care - Elderly MH - North,Other Small Contracts,Milestones Homecare & Dementia Service,43.23, 10-Dec-2015
1715,Revenue,CAHD,Home Care - Elderly - South,Day Care / Social Activities,Milestones Homecare & Dementia Service,31.44, 11-Dec-2015
1716,Revenue,CAHD,Home Care - Elderly - South,Other Small Contracts,Milestones Homecare & Dementia Service,1434.45, 11-Dec-2015
1717,Revenue,CAHD,Home Care - Elderly - North,Other Small Contracts,Milestones Homecare & Dementia Service,1594.28, 11-Dec-2015
1718,Revenue,CAHD,Home care - Elderly MH - North,Other Small Contracts,Milestones Homecare & Dementia Service,55.02, 11-Dec-2015
1719,Revenue,CAHD,Home Care - Elderly - South,Day Care / Social Activities,Milestones Homecare & Dementia Service,31.44, 30-Dec-2015
1720,Revenue,CAHD,Home Care - Elderly - South,Other Small Contracts,Milestones Homecare & Dementia Service,1037.52, 30-Dec-2015
1721,Revenue,CAHD,Home Care - Elderly - North,Other Small Contracts,Milestones Homecare & Dementia Service,1736.16, 30-Dec-2015
1722,Revenue,CAHD,Home care - Elderly MH - North,Other Small Contracts,Milestones Homecare & Dementia Service,55.02, 30-Dec-2015
1723,Revenue,CAHD,Home Care - Elderly - South,Day Care / Social Activities,Milestones Homecare & Dementia Service,31.44, 24-Dec-2015
1724,Revenue,CAHD,Home Care - Elderly - South,Other Small Contracts,Milestones Homecare & Dementia Service,923.55, 24-Dec-2015
1725,Revenue,CAHD,Home Care - Elderly - North,Other Small Contracts,Milestones Homecare & Dementia Service,1677.06, 24-Dec-2015
1726,Revenue,CAHD,Home care - Elderly MH - North,Other Small Contracts,Milestones Homecare & Dementia Service,55.02, 24-Dec-2015
1727,Revenue,CAHD,Home Care - Elderly - South,Other Small Contracts,Milestones Homecare & Dementia Service,664.17, 30-Dec-2015
1728,Revenue,CAHD,Home Care - Elderly - North,Other Small Contracts,Milestones Homecare & Dementia Service,1720.29, 30-Dec-2015
1729,Revenue,CAHD,Home care - Elderly MH - North,Other Small Contracts,Milestones Homecare & Dementia Service,55.02, 30-Dec-2015
1730,Revenue,CAHD,Home Care - Elderly - South,Day Care / Social Activities,Milestones Supported Living Services,7442.06, 07-Dec-2015
1731,Revenue,CAHD,Home Care - Elderly - South,Other Small Contracts,Milestones Supported Living Services,515.50, 07-Dec-2015
1732,Revenue,CAHD,Home Care - Elderly - South,Supported Living,Milestones Supported Living Services,4555.32, 07-Dec-2015
1733,Revenue,CAHD,Home Care - Elderly - North,Day Care / Social Activities,Milestones Supported Living Services,3101.50, 07-Dec-2015
1734,Revenue,CAHD,Home Care - Elderly - North,Other Small Contracts,Milestones Supported Living Services,284.48, 07-Dec-2015
1735,Revenue,CAHD,Home Care - Elderly - North,Supported Living,Milestones Supported Living Services,162.40, 07-Dec-2015
1736,Revenue,CAHD,Day Care - South,Day Care / Social Activities,Milestones Supported Living Services,109.44, 07-Dec-2015
1737,Revenue,CAHD,Day Care - North,Day Care / Social Activities,Milestones Supported Living Services,175.96, 07-Dec-2015
1738,Revenue,CAHD,Younger MH non-res purchasing,Day Care / Social Activities,Milestones Supported Living Services,27.36, 07-Dec-2015
1739,Revenue,CAHD,Home care - Elderly MH - North,Other Small Contracts,Milestones Supported Living Services,76.29, 07-Dec-2015
1740,Revenue,CAHD,Home Care - Elderly - South,Day Care / Social Activities,Milestones Supported Living Services,7432.56, 07-Dec-2015
1741,Revenue,CAHD,Home Care - Elderly - South,Other Small Contracts,Milestones Supported Living Services,2007.93, 07-Dec-2015
1742,Revenue,CAHD,Home Care - Elderly - South,Supported Living,Milestones Supported Living Services,3576.86, 07-Dec-2015
1743,Revenue,CAHD,Home Care - Elderly - North,Day Care / Social Activities,Milestones Supported Living Services,2913.24, 07-Dec-2015
1744,Revenue,CAHD,Home Care - Elderly - North,Other Small Contracts,Milestones Supported Living Services,284.48, 07-Dec-2015
1745,Revenue,CAHD,Home Care - Elderly - North,Supported Living,Milestones Supported Living Services,162.40, 07-Dec-2015
1746,Revenue,CAHD,Day Care - South,Day Care / Social Activities,Milestones Supported Living Services,114.00, 07-Dec-2015
1747,Revenue,CAHD,Day Care - North,Day Care / Social Activities,Milestones Supported Living Services,167.34, 07-Dec-2015
1748,Revenue,CAHD,Younger MH non-res purchasing,Day Care / Social Activities,Milestones Supported Living Services,27.36, 07-Dec-2015
1749,Revenue,CAHD,Home care - Elderly MH - North,Other Small Contracts,Milestones Supported Living Services,100.65, 07-Dec-2015
1750,Revenue,CAHD,Home Care - Elderly - South,Day Care / Social Activities,Milestones Supported Living Services,6313.49, 29-Dec-2015
1751,Revenue,CAHD,Home Care - Elderly - South,Other Small Contracts,Milestones Supported Living Services,2116.16, 29-Dec-2015
1752,Revenue,CAHD,Home Care - Elderly - South,Supported Living,Milestones Supported Living Services,1883.84, 29-Dec-2015
1753,Revenue,CAHD,Home Care - Elderly - North,Day Care / Social Activities,Milestones Supported Living Services,3120.40, 29-Dec-2015
1754,Revenue,CAHD,Home Care - Elderly - North,Other Small Contracts,Milestones Supported Living Services,284.48, 29-Dec-2015
1755,Revenue,CAHD,Home Care - Elderly - North,Supported Living,Milestones Supported Living Services,121.80, 29-Dec-2015
1756,Revenue,CAHD,Day Care - South,Day Care / Social Activities,Milestones Supported Living Services,114.00, 29-Dec-2015
1757,Revenue,CAHD,Day Care - North,Day Care / Social Activities,Milestones Supported Living Services,130.86, 29-Dec-2015
1758,Revenue,CAHD,Younger MH non-res purchasing,Day Care / Social Activities,Milestones Supported Living Services,27.36, 29-Dec-2015
1759,Revenue,CAHD,Home care - Elderly MH - North,Other Small Contracts,Milestones Supported Living Services,129.12, 29-Dec-2015
1760,Revenue,CAHD,Home Care - Elderly - South,Day Care / Social Activities,Milestones Supported Living Services,7220.24, 17-Dec-2015
1761,Revenue,CAHD,Home Care - Elderly - South,Other Small Contracts,Milestones Supported Living Services,2224.36, 17-Dec-2015
1762,Revenue,CAHD,Home Care - Elderly - South,Supported Living,Milestones Supported Living Services,1932.56, 17-Dec-2015
1763,Revenue,CAHD,Home Care - Elderly - North,Day Care / Social Activities,Milestones Supported Living Services,3278.19, 17-Dec-2015
1764,Revenue,CAHD,Home Care - Elderly - North,Other Small Contracts,Milestones Supported Living Services,284.48, 17-Dec-2015
1765,Revenue,CAHD,Home Care - Elderly - North,Supported Living,Milestones Supported Living Services,162.40, 17-Dec-2015
1766,Revenue,CAHD,Day Care - South,Day Care / Social Activities,Milestones Supported Living Services,109.44, 17-Dec-2015
1767,Revenue,CAHD,Day Care - North,Day Care / Social Activities,Milestones Supported Living Services,135.92, 17-Dec-2015
1768,Revenue,CAHD,Home care - Elderly MH - North,Other Small Contracts,Milestones Supported Living Services,112.88, 17-Dec-2015
1769,Revenue,CAHD,Home Care - Elderly - South,Day Care / Social Activities,Milestones Supported Living Services,7315.40, 04-Dec-2015
1770,Revenue,CAHD,Home Care - Elderly - South,Other Small Contracts,Milestones Supported Living Services,2228.17, 04-Dec-2015
1771,Revenue,CAHD,Home Care - Elderly - South,Supported Living,Milestones Supported Living Services,1944.74, 04-Dec-2015
1772,Revenue,CAHD,Home Care - Elderly - North,Day Care / Social Activities,Milestones Supported Living Services,2906.62, 04-Dec-2015
1773,Revenue,CAHD,Home Care - Elderly - North,Other Small Contracts,Milestones Supported Living Services,359.41, 04-Dec-2015
1774,Revenue,CAHD,Home Care - Elderly - North,Supported Living,Milestones Supported Living Services,162.40, 04-Dec-2015
1775,Revenue,CAHD,Day Care - South,Day Care / Social Activities,Milestones Supported Living Services,109.44, 04-Dec-2015
1776,Revenue,CAHD,Day Care - North,Day Care / Social Activities,Milestones Supported Living Services,158.72, 04-Dec-2015
1777,Revenue,CAHD,Younger MH non-res purchasing,Day Care / Social Activities,Milestones Supported Living Services,27.36, 04-Dec-2015
1778,Revenue,CAHD,Home care - Elderly MH - North,Other Small Contracts,Milestones Supported Living Services,113.08, 04-Dec-2015
1779,Revenue,CAHD,Bed Purchasing - North,Permanent Residential,Millennium House,1429.56, 22-Dec-2015
1780,Revenue,CAHD,CSC - Allowances,ADPN Allowances,Individual,1906.86, 11-Dec-2015
1781,Revenue,CAHD,CSC - Age Related Allowances,Children - Family Support,Individual,774.00, 30-Dec-2015
1782,Revenue,CAHD,Health Inequalities,Other Small Contracts,Mo Dymond Support Groups,500.00, 30-Dec-2015
1783,Revenue,CAHD,Health Inequalities,Other Small Contracts,Mo Dymond Support Groups,500.00, 30-Dec-2015
1784,Revenue,CAHD,Health Inequalities,Other Small Contracts,Mo Dymond Support Groups,500.00, 30-Dec-2015
1785,Revenue,CAHD,Bed Purchasing - Southmead Hospital,Permanent Residential,Mostyn Lodge Residential Home,1143.20, 22-Dec-2015
1786,Revenue,CAHD,Bed Purchasing - North,Permanent Residential,Mostyn Lodge Residential Home,1239.80, 22-Dec-2015
1787,Revenue,CAHD,18-25 Year Olds,Permanent Residential,Moving On,908.60, 11-Dec-2015
1788,Revenue,CAHD,18-25 Year Olds,Permanent Residential,Moving On,512.12, 11-Dec-2015
1789,Revenue,CAHD,Home Care - Elderly - South,Supported Living,Moving On,859.48, 23-Dec-2015
1790,Revenue,CAHD,Home Care - Elderly - South,Supported Living,Moving On,859.48, 23-Dec-2015
1791,Revenue,CAHD,Home Care - Elderly - South,Supported Living,Moving On (UK) Limited,1811.46, 22-Dec-2015
1792,Revenue,CAHD,Home Care - Elderly - South,Supported Living,Moving On (UK) Limited,1811.46, 22-Dec-2015
1793,Revenue,CAHD,Social Lettings Agency,Fees - General,Individual,10.53, 07-Dec-2015
1794,Revenue,CAHD,Social Lettings Agency,Other Supplies & Services,Individual,595.11, 07-Dec-2015
